Workbook

Sheet Invulinstructie
B2: Invulinstructie
B6: Start
B8: Dit sjabloon is een onderdeel van de aanvraag voor meerzorgtoekenning aan een intramuraal wonende cliënt (ZZP of VPT). Dit sjabloon geldt voor alle meerzorgaanvragen, zowel individueel als in groepsverband; voor cliënten die eerder geen meerzorgtoekenning hebben én voor heraanvragen. Bij (her-)aanvragen gebaseerd op gedragsproblematiek, zal het zorgkantoor na beoordeling van dit sjabloon besluiten of een verdere inhoudelijke toetsing door het CCE uitgevoerd mag worden. Gebruik altijd per cliënt of cliëntgroep een recent, nieuw en leeg sjabloon. Alle lichtblauwe velden zijn invulbaar of via een rolmenu te benaderen.
B10: Voorblad
B12: Vul alle lichtblauwe cellen in. Indien een verplichte cel niet of foutief wordt ingevuld dan wordt deze rood. Witte velden worden automatisch gevuld en of berekend. Onderteken het formulier (is tevens akkoord cliënt c.q. cliëntvertegenwoordiger, akkoordverklaring in cliëntdossier).
B14: Cliënt(en)
B16: Afhankelijk van de keuze voor een individuele of groepsaanvraag, zal er één respectievelijk 15 cliëntregels te zien zijn. Er zitten controles op een juiste BSN-nummer, logische data en het correcte Nza-product. Let op dat bij de indicatie ook de dagbesteding en behandeling aan of uit wordt gezet. Indien fout dan kleurt de cel rood. Het BSN-nummer kan via "Plakken speciaal, als waarde" ingevoegd worden. Datumnotatie is volgens dd-mm-jjjj, bijvoorbeeld 15-3-2002.
B18: Uren zorg
B20: Uren worden ingevuld volgens uren:minuten, bijvoorbeeld 5:00 of 1:30. Uren worden op weekbasis ingevuld. Restposturen en minuren moeten worden toegelicht bij de overige opmerkingen. Let op: indien een cliënt vanuit een woonsituatie ook dagbesteding ontvangt (vanuit de woning), dient ook de dagbestedingscomponent ingevuld te worden. Indien een cliënt meerzorgwaardig is, kleurt deze groen. Indien niet meerzorgwaardig, kleurt deze rood en wordt niet verder in berekening meegenomen. Meerzorgwaardig is een cliënt welke aan de voorwaarden voldoet én waarvan de zorg boven de drempelvan de zzp-/vpt-waarde komt.
B22: Berekening
B24: Afhankelijk van de keuze voor welke sector is gekozen, wordt op basis van de vastgestelde normbedragen een berekening gemaakt. Bij de indirecte kosten kunnen jaarbedragen worden opgenomen. Deze dienen te worden voorzien van een omschrijving en bij de overige opmerkingen te worden toegelicht. Indien er geen fouten zijn in het sjabloon, wordt uiteindelijk het etmaalbedrag per cliënt berekend. Van de totale kosten zorg wordt uiteindelijk het loon-deel uit het VPT/ZZP-tarief afgetrokken. Het bedrag wat overblijft wordt daarna berekend per meerzorgwaardige client per etmaal.

Sheet 1. Voorblad
B1: Alleen een verhuizing doorgeven? Klik hier! | I1: vanaf hier verbergen
B2: Sjabloon Aanvraag Meerzorg 2019
B4: Wlz-zorgaanbieder
D5: cat. | E5: nr.
B6: Registratienummer NZa | D6: 300
G7: © 2019 Zorgverzekeraars Nederland
B8: AGB-code | G8: Versie 2019.03
B10: Zorgaanbieder | F10: Zorgkantoor
B12: Naam | C12: =IFERROR(VLOOKUP(E6,'Data (verbergen)'!A:E,2,0),"") ->  | F12: Rechtspersoon | G12: =IFERROR(VLOOKUP(E6,'Data (verbergen)'!A:E,4,0),"") -> 
B13: Plaats | F13: Zorgkantoor | G13: =IFERROR(VLOOKUP(E6,'Data (verbergen)'!A:E,5,0),"") -> 
B14: Contactpersoon | F14: Contactpersoon
B15: Telefoon | F15: Telefoon
B16: Email | F16: Email
M17: ='2. Cliënt(en)'!AH40 -> 0 | N17: Controle Nza
B18: Afgesproken tarief-% zorgkantoor | F18: Voor welke sector vraagt de WLZ aanbieder meerzorg aan? | J18: cao | L18: =IF(C19="","FOUT","") -> FOUT | M18: =IF(L18="FOUT",1,0) -> 1 | N18: Controle tarief%
J19: =IFERROR(VLOOKUP(G19,'Data (verbergen)'!G25:H27,2,0),0) -> 0 | L19: =IF(C22="","FOUT","") -> FOUT | M19: 1 | N19: Controle type
C20: =IF(C19>100%,"Percentage is maximaal 100%","") ->  | L20: =IF(G19="","FOUT","") -> FOUT | M20: 1 | N20: Controle cao
B21: Geef aan om welk type aanvraag het gaat | F21: Geef aan om welke soort aanvraag het gaat | L21: =IF(F22="","FOUT","") -> FOUT | M21: 1 | N21: Controle soort
J22: aanvraag | K22: =IF(C22='Data (verbergen)'!G8,1,IF(C22='Data (verbergen)'!G9,2,0)) -> 0 | M22: =SUM(M17:M21) -> 4
B23: =IF(C22="Meervoudige aanvraag (groepsmeerzorg)","Groepsnaam","") -> 
B25: Aantal cliënten | F25: Aantal cliënten dat in aanmerking komt voor meerzorg
B28: Door ondertekening van het sjabloon verklaart zorgaanbieder:
C29: - dat de opgegeven tijden en de daaruit voortvloeiende bedragen reëel zijn;
C30: - dat de te ontvangen gelden worden ingezet ten behoeve van de betreffende cliënt(en) en niet aan andere doeleinden zullen worden besteed.
B32: (handtekening)
B37: Naam | G37: Totaal jaarbedrag procedure Meerzorg 2019
B38: Datum | G38: =IF('4. Berekening'!P41>0,'4. Berekening'!P41,0) -> 0

Sheet 2. Cliënt(en)
X1: vanaf hier verbergen
D2: Overzicht Cliënt(en)
D3: Let op: datumnotatie is dd-mm-jj
V6: Indien van toepassing: CCE-verklaring geldig tot
D8: Naam cliënt | F8: Geboorte- datum | H8: BSN | J8: Geïndiceerd ZZP | L8: Dagbesteding van toepassing? Ja/Nee | N8: Behandeling van toepassing? Ja/Nee | P8: Prestatie- code NZA | R8: Datum opname | T8: Beoogde ingang | AC8: Codering | AD8: Etmaal | AE8: NZA-jaar | AF8: Aanbieder | AG8: Geldig BSN | AH8: Geldig NZA
B10: 1 | AC10: =CONCATENATE(J10,N10,L10) ->  | AD10: =IFERROR(VLOOKUP(AC10,'Data (verbergen)'!O:T,4,0),0) -> 0 | AE10: =IF('3. Uren zorg'!AO11=1,'2. Cliënt(en)'!AD10*365,0) -> 0 | AF10: =AE10 -> 0 | AG10: =IF((MOD(SUM({9;8;7;6;5;4;3;2;-1}*MID(TEXT(H10,"000000000"),{1;2;3;4;5;6;7;8;9},1)),11)=0),"geldig","ongeldig") -> geldig | AH10: =IF(P10="Niet geldig",1,0) -> 0
B12: 2 | Z12: =IF('1. Voorblad'!C22='Data (verbergen)'!G8,1,0) -> 0 | AC12: =CONCATENATE(J12,N12,L12) ->  | AD12: =IFERROR(VLOOKUP(AC12,'Data (verbergen)'!O:T,4,0),0) -> 0 | AE12: =IF('3. Uren zorg'!AO13=1,'2. Cliënt(en)'!AD12*365,0) -> 0 | AF12: =AE12 -> 0 | AG12: =IF((MOD(SUM({9;8;7;6;5;4;3;2;-1}*MID(TEXT(H12,"000000000"),{1;2;3;4;5;6;7;8;9},1)),11)=0),"geldig","ongeldig") -> geldig | AH12: =IF(P12="Niet geldig",1,0) -> 0
B14: 3 | P14: =IF(AC14<>"",IFERROR((VLOOKUP(AC14,'Data (verbergen)'!O:T,3,0)),"Niet geldig"),"") ->  | Z14: controle enkel/groep | AC14: =CONCATENATE(J14,N14,L14) ->  | AD14: =IFERROR(VLOOKUP(AC14,'Data (verbergen)'!O:T,4,0),0) -> 0 | AE14: =IF('3. Uren zorg'!AO15=1,'2. Cliënt(en)'!AD14*365,0) -> 0 | AF14: =AE14 -> 0 | AG14: =IF((MOD(SUM({9;8;7;6;5;4;3;2;-1}*MID(TEXT(H14,"000000000"),{1;2;3;4;5;6;7;8;9},1)),11)=0),"geldig","ongeldig") -> geldig | AH14: =IF(P14="Niet geldig",1,0) -> 0
B16: 4 | P16: =IF(AC16<>"",IFERROR((VLOOKUP(AC16,'Data (verbergen)'!O:T,3,0)),"Niet geldig"),"") ->  | Z16: 2019-01-01 | AC16: =CONCATENATE(J16,N16,L16) ->  | AD16: =IFERROR(VLOOKUP(AC16,'Data (verbergen)'!O:T,4,0),0) -> 0 | AE16: =IF('3. Uren zorg'!AO17=1,'2. Cliënt(en)'!AD16*365,0) -> 0 | AF16: =AE16 -> 0 | AG16: =IF((MOD(SUM({9;8;7;6;5;4;3;2;-1}*MID(TEXT(H16,"000000000"),{1;2;3;4;5;6;7;8;9},1)),11)=0),"geldig","ongeldig") -> geldig | AH16: =IF(P16="Niet geldig",1,0) -> 0
B18: 5 | P18: =IF(AC18<>"",IFERROR((VLOOKUP(AC18,'Data (verbergen)'!O:T,3,0)),"Niet geldig"),"") ->  | Z18: Controle opname | AC18: =CONCATENATE(J18,N18,L18) ->  | AD18: =IFERROR(VLOOKUP(AC18,'Data (verbergen)'!O:T,4,0),0) -> 0 | AE18: =IF('3. Uren zorg'!AO19=1,'2. Cliënt(en)'!AD18*365,0) -> 0 | AF18: =AE18 -> 0 | AG18: =IF((MOD(SUM({9;8;7;6;5;4;3;2;-1}*MID(TEXT(H18,"000000000"),{1;2;3;4;5;6;7;8;9},1)),11)=0),"geldig","ongeldig") -> geldig | AH18: =IF(P18="Niet geldig",1,0) -> 0
B20: 6 | P20: =IF(AC20<>"",IFERROR((VLOOKUP(AC20,'Data (verbergen)'!O:T,3,0)),"Niet geldig"),"") ->  | Z20: 2018-12-31 | AC20: =CONCATENATE(J20,N20,L20) ->  | AD20: =IFERROR(VLOOKUP(AC20,'Data (verbergen)'!O:T,4,0),0) -> 0 | AE20: =IF('3. Uren zorg'!AO21=1,'2. Cliënt(en)'!AD20*365,0) -> 0 | AF20: =AE20 -> 0 | AG20: =IF((MOD(SUM({9;8;7;6;5;4;3;2;-1}*MID(TEXT(H20,"000000000"),{1;2;3;4;5;6;7;8;9},1)),11)=0),"geldig","ongeldig") -> geldig | AH20: =IF(P20="Niet geldig",1,0) -> 0
B22: 7 | P22: =IF(AC22<>"",IFERROR((VLOOKUP(AC22,'Data (verbergen)'!O:T,3,0)),"Niet geldig"),"") ->  | Z22: Controle ingang | AC22: =CONCATENATE(J22,N22,L22) ->  | AD22: =IFERROR(VLOOKUP(AC22,'Data (verbergen)'!O:T,4,0),0) -> 0 | AE22: =IF('3. Uren zorg'!AO23=1,'2. Cliënt(en)'!AD22*365,0) -> 0 | AF22: =AE22 -> 0 | AG22: =IF((MOD(SUM({9;8;7;6;5;4;3;2;-1}*MID(TEXT(H22,"000000000"),{1;2;3;4;5;6;7;8;9},1)),11)=0),"geldig","ongeldig") -> geldig | AH22: =IF(P22="Niet geldig",1,0) -> 0
B24: 8 | P24: =IF(AC24<>"",IFERROR((VLOOKUP(AC24,'Data (verbergen)'!O:T,3,0)),"Niet geldig"),"") ->  | Z24: 2020-01-01 | AC24: =CONCATENATE(J24,N24,L24) ->  | AD24: =IFERROR(VLOOKUP(AC24,'Data (verbergen)'!O:T,4,0),0) -> 0 | AE24: =IF('3. Uren zorg'!AO25=1,'2. Cliënt(en)'!AD24*365,0) -> 0 | AF24: =AE24 -> 0 | AG24: =IF((MOD(SUM({9;8;7;6;5;4;3;2;-1}*MID(TEXT(H24,"000000000"),{1;2;3;4;5;6;7;8;9},1)),11)=0),"geldig","ongeldig") -> geldig | AH24: =IF(P24="Niet geldig",1,0) -> 0
B26: 9 | P26: =IF(AC26<>"",IFERROR((VLOOKUP(AC26,'Data (verbergen)'!O:T,3,0)),"Niet geldig"),"") ->  | Z26: Controle leeftijd | AC26: =CONCATENATE(J26,N26,L26) ->  | AD26: =IFERROR(VLOOKUP(AC26,'Data (verbergen)'!O:T,4,0),0) -> 0 | AE26: =IF('3. Uren zorg'!AO27=1,'2. Cliënt(en)'!AD26*365,0) -> 0 | AF26: =AE26 -> 0 | AG26: =IF((MOD(SUM({9;8;7;6;5;4;3;2;-1}*MID(TEXT(H26,"000000000"),{1;2;3;4;5;6;7;8;9},1)),11)=0),"geldig","ongeldig") -> geldig | AH26: =IF(P26="Niet geldig",1,0) -> 0
B28: 10 | P28: =IF(AC28<>"",IFERROR((VLOOKUP(AC28,'Data (verbergen)'!O:T,3,0)),"Niet geldig"),"") ->  | AC28: =CONCATENATE(J28,N28,L28) ->  | AD28: =IFERROR(VLOOKUP(AC28,'Data (verbergen)'!O:T,4,0),0) -> 0 | AE28: =IF('3. Uren zorg'!AO29=1,'2. Cliënt(en)'!AD28*365,0) -> 0 | AF28: =AE28 -> 0 | AG28: =IF((MOD(SUM({9;8;7;6;5;4;3;2;-1}*MID(TEXT(H28,"000000000"),{1;2;3;4;5;6;7;8;9},1)),11)=0),"geldig","ongeldig") -> geldig | AH28: =IF(P28="Niet geldig",1,0) -> 0
B30: 11 | P30: =IF(AC30<>"",IFERROR((VLOOKUP(AC30,'Data (verbergen)'!O:T,3,0)),"Niet geldig"),"") ->  | AC30: =CONCATENATE(J30,N30,L30) ->  | AD30: =IFERROR(VLOOKUP(AC30,'Data (verbergen)'!O:T,4,0),0) -> 0 | AE30: =IF('3. Uren zorg'!AO31=1,'2. Cliënt(en)'!AD30*365,0) -> 0 | AF30: =AE30 -> 0 | AG30: =IF((MOD(SUM({9;8;7;6;5;4;3;2;-1}*MID(TEXT(H30,"000000000"),{1;2;3;4;5;6;7;8;9},1)),11)=0),"geldig","ongeldig") -> geldig | AH30: =IF(P30="Niet geldig",1,0) -> 0
B32: 12 | P32: =IF(AC32<>"",IFERROR((VLOOKUP(AC32,'Data (verbergen)'!O:T,3,0)),"Niet geldig"),"") ->  | AC32: =CONCATENATE(J32,N32,L32) ->  | AD32: =IFERROR(VLOOKUP(AC32,'Data (verbergen)'!O:T,4,0),0) -> 0 | AE32: =IF('3. Uren zorg'!AO33=1,'2. Cliënt(en)'!AD32*365,0) -> 0 | AF32: =AE32 -> 0 | AG32: =IF((MOD(SUM({9;8;7;6;5;4;3;2;-1}*MID(TEXT(H32,"000000000"),{1;2;3;4;5;6;7;8;9},1)),11)=0),"geldig","ongeldig") -> geldig | AH32: =IF(P32="Niet geldig",1,0) -> 0
B34: 13 | P34: =IF(AC34<>"",IFERROR((VLOOKUP(AC34,'Data (verbergen)'!O:T,3,0)),"Niet geldig"),"") ->  | AC34: =CONCATENATE(J34,N34,L34) ->  | AD34: =IFERROR(VLOOKUP(AC34,'Data (verbergen)'!O:T,4,0),0) -> 0 | AE34: =IF('3. Uren zorg'!AO35=1,'2. Cliënt(en)'!AD34*365,0) -> 0 | AF34: =AE34 -> 0 | AG34: =IF((MOD(SUM({9;8;7;6;5;4;3;2;-1}*MID(TEXT(H34,"000000000"),{1;2;3;4;5;6;7;8;9},1)),11)=0),"geldig","ongeldig") -> geldig | AH34: =IF(P34="Niet geldig",1,0) -> 0
B36: 14 | P36: =IF(AC36<>"",IFERROR((VLOOKUP(AC36,'Data (verbergen)'!O:T,3,0)),"Niet geldig"),"") ->  | AC36: =CONCATENATE(J36,N36,L36) ->  | AD36: =IFERROR(VLOOKUP(AC36,'Data (verbergen)'!O:T,4,0),0) -> 0 | AE36: =IF('3. Uren zorg'!AO37=1,'2. Cliënt(en)'!AD36*365,0) -> 0 | AF36: =AE36 -> 0 | AG36: =IF((MOD(SUM({9;8;7;6;5;4;3;2;-1}*MID(TEXT(H36,"000000000"),{1;2;3;4;5;6;7;8;9},1)),11)=0),"geldig","ongeldig") -> geldig | AH36: =IF(P36="Niet geldig",1,0) -> 0
B38: 15 | P38: =IF(AC38<>"",IFERROR((VLOOKUP(AC38,'Data (verbergen)'!O:T,3,0)),"Niet geldig"),"") ->  | AC38: =CONCATENATE(J38,N38,L38) ->  | AD38: =IFERROR(VLOOKUP(AC38,'Data (verbergen)'!O:T,4,0),0) -> 0 | AE38: =IF('3. Uren zorg'!AO39=1,'2. Cliënt(en)'!AD38*365,0) -> 0 | AF38: =AE38 -> 0 | AG38: =IF((MOD(SUM({9;8;7;6;5;4;3;2;-1}*MID(TEXT(H38,"000000000"),{1;2;3;4;5;6;7;8;9},1)),11)=0),"geldig","ongeldig") -> geldig | AH38: =IF(P38="Niet geldig",1,0) -> 0
B40: vanaf hier verbergen | AE40: =SUM(AE10:AE38) -> 0 | AF40: 0 | AH40: =SUM(AH10:AH38) -> 0

Sheet 3. Uren zorg
AN1: vanaf hier verbergen
D2: Uren zorg
D3: Let op: urennotatie is uu:mm | AQ3: Controle uren
AQ4: 23:59:00
BA5: 1.25 | BE5: 0.1
F7: Wonen ma-vr | J7: Wonen za-zo | P7: Dagbesteding | V7: Behandeling (uren per week) | AF7: Overig (uren per week) | AR7: Rekenkundig | AV7: Uren ZZP | AZ7: Drempel | BD7: Saldo | BH7: T.b.v. berekening
D9: Naam cliënt | F9: Uren per dag | H9: Dagen per week | J9: Uren per dag | L9: Dagen per week | N9: Totaal Wonen | P9: Uren per dag | R9: Dagen per week | T9: Totaal Dagbs. | V9: Gedrags- deskundige | X9: Psychiater | Z9: Arts | AB9: Overig | AD9: Totaal Behan. | AF9: Nacht- opvang | AH9: Restpost uren* | AJ9: Min uren** | AL9: Meerzorgwaardig? | AP9: Wonen | AQ9: Dagbesteding | AR9: Wonen | AS9: Dagbesteding | AT9: Behandeling | AU9: Totaal | AV9: Wonen | AW9: Dagbesteding | AX9: Behandeling | AY9: Totaal | AZ9: Wonen | BA9: Dagbesteding | BB9: Behandeling | BC9: Totaal | BD9: Wonen | BE9: Dagbesteding | BF9: Behandeling | BG9: Totaal | BH9: Wonen | BI9: Dagbesteding | BJ9: Behandeling | BK9: Totaal
B11: 1 | D11: =IF('2. Cliënt(en)'!D10<>0,'2. Cliënt(en)'!D10,"") ->  | N11: =(F11*H11)+(J11*L11) -> 0 | T11: =P11*R11 -> 0 | AD11: =V11+X11+Z11+AB11 -> 0 | AL11: =BG11 -> 0 | AN11: =IF(D11<>"",1,0) -> 0 | AO11: =IF(AL11>0,1,0) -> 0 | AP11: =(F11*H11)+(J11*L11)+AF11+AH11-AJ11 -> 0 | AQ11: =P11*R11 -> 0 | AR11: =IF(AV11>0,AP11*24,0) -> 0 | AS11: 0 | AT11: =IF(AX11>0,(V11+X11+Z11+AB11)*24,0) -> 0 | AU11: =AR11+AS11+AT11 -> 0 | AV11: =IFERROR(VLOOKUP('2. Cliënt(en)'!J10,'Data (verbergen)'!I:M,2,0),0) -> 0 | AW11: =IFERROR(IF('2. Cliënt(en)'!L10="Ja",VLOOKUP('2. Cliënt(en)'!J10,'Data (verbergen)'!I:M,3,0),0),0) -> 0 | AX11: =IFERROR(IF('2. Cliënt(en)'!N10="Ja",VLOOKUP('2. Cliënt(en)'!J10,'Data (verbergen)'!I:M,4,0),0),0) -> 0 | AY11: =SUM(AV11:AX11) -> 0 | AZ11: =AV11*$BA$5 -> 0 | BA11: 0 | BB11: 0 | BC11: =SUM(AZ11:BB11) -> 0 | BD11: =(AV11*$BE$5)+(AR11-AZ11) -> 0 | BE11: 0 | BF11: 0 | BG11: =IF(AND('2. Cliënt(en)'!D10<>"",'2. Cliënt(en)'!J10<>""),SUM(BD11:BF11),0) -> 0 | BH11: =IF(AO11=1,AR11,0) -> 0 | BI11: =IF(AO11=1,AS11,0) -> 0 | BJ11: =IF(AO11=1,AT11,0) -> 0 | BK11: =SUM(BH11:BJ11) -> 0
B13: 2 | D13: =IF('2. Cliënt(en)'!D12<>0,'2. Cliënt(en)'!D12,"") ->  | N13: =(F13*H13)+(J13*L13) -> 0 | T13: =P13*R13 -> 0 | AD13: =V13+X13+Z13+AB13 -> 0 | AL13: =BG13 -> 0 | AN13: =IF(D13<>"",1,0) -> 0 | AO13: =IF(AL13>0,1,0) -> 0 | AP13: =(F13*H13)+(J13*L13)+AF13+AH13-AJ13 -> 0 | AQ13: =P13*R13 -> 0 | AR13: =IF(AV13>0,AP13*24,0) -> 0 | AS13: 0 | AT13: =IF(AX13>0,(V13+X13+Z13+AB13)*24,0) -> 0 | AU13: =AR13+AS13+AT13 -> 0 | AV13: =IFERROR(VLOOKUP('2. Cliënt(en)'!J12,'Data (verbergen)'!I:M,2,0),0) -> 0 | AW13: =IFERROR(IF('2. Cliënt(en)'!L12="Ja",VLOOKUP('2. Cliënt(en)'!J12,'Data (verbergen)'!I:M,3,0),0),0) -> 0 | AX13: =IFERROR(IF('2. Cliënt(en)'!N12="Ja",VLOOKUP('2. Cliënt(en)'!J12,'Data (verbergen)'!I:M,4,0),0),0) -> 0 | AY13: =SUM(AV13:AX13) -> 0 | AZ13: =AV13*$BA$5 -> 0 | BA13: 0 | BB13: 0 | BC13: =SUM(AZ13:BB13) -> 0 | BD13: =(AV13*$BE$5)+(AR13-AZ13) -> 0 | BE13: 0 | BF13: 0 | BG13: =IF(AND('2. Cliënt(en)'!D12<>"",'2. Cliënt(en)'!J12<>""),SUM(BD13:BF13),0) -> 0 | BH13: =IF(AO13=1,AR13,0) -> 0 | BI13: =IF(AO13=1,AS13,0) -> 0 | BJ13: =IF(AO13=1,AT13,0) -> 0 | BK13: =SUM(BH13:BJ13) -> 0
B15: 3 | D15: =IF('2. Cliënt(en)'!D14<>0,'2. Cliënt(en)'!D14,"") ->  | N15: =(F15*H15)+(J15*L15) -> 0 | T15: =P15*R15 -> 0 | AD15: =V15+X15+Z15+AB15 -> 0 | AL15: =BG15 -> 0 | AN15: =IF(D15<>"",1,0) -> 0 | AO15: =IF(AL15>0,1,0) -> 0 | AP15: =(F15*H15)+(J15*L15)+AF15+AH15-AJ15 -> 0 | AQ15: =P15*R15 -> 0 | AR15: =IF(AV15>0,AP15*24,0) -> 0 | AS15: 0 | AT15: =IF(AX15>0,(V15+X15+Z15+AB15)*24,0) -> 0 | AU15: =AR15+AS15+AT15 -> 0 | AV15: =IFERROR(VLOOKUP('2. Cliënt(en)'!J14,'Data (verbergen)'!I:M,2,0),0) -> 0 | AW15: =IFERROR(IF('2. Cliënt(en)'!L14="Ja",VLOOKUP('2. Cliënt(en)'!J14,'Data (verbergen)'!I:M,3,0),0),0) -> 0 | AX15: =IFERROR(IF('2. Cliënt(en)'!N14="Ja",VLOOKUP('2. Cliënt(en)'!J14,'Data (verbergen)'!I:M,4,0),0),0) -> 0 | AY15: =SUM(AV15:AX15) -> 0 | AZ15: =AV15*$BA$5 -> 0 | BA15: 0 | BB15: 0 | BC15: =SUM(AZ15:BB15) -> 0 | BD15: =(AV15*$BE$5)+(AR15-AZ15) -> 0 | BE15: 0 | BF15: 0 | BG15: =IF(AND('2. Cliënt(en)'!D14<>"",'2. Cliënt(en)'!J14<>""),SUM(BD15:BF15),0) -> 0 | BH15: =IF(AO15=1,AR15,0) -> 0 | BI15: =IF(AO15=1,AS15,0) -> 0 | BJ15: =IF(AO15=1,AT15,0) -> 0 | BK15: =SUM(BH15:BJ15) -> 0
B17: 4 | D17: =IF('2. Cliënt(en)'!D16<>0,'2. Cliënt(en)'!D16,"") ->  | N17: =(F17*H17)+(J17*L17) -> 0 | T17: =P17*R17 -> 0 | AD17: =V17+X17+Z17+AB17 -> 0 | AL17: =BG17 -> 0 | AN17: =IF(D17<>"",1,0) -> 0 | AO17: =IF(AL17>0,1,0) -> 0 | AP17: =(F17*H17)+(J17*L17)+AF17+AH17-AJ17 -> 0 | AQ17: =P17*R17 -> 0 | AR17: =IF(AV17>0,AP17*24,0) -> 0 | AS17: 0 | AT17: =IF(AX17>0,(V17+X17+Z17+AB17)*24,0) -> 0 | AU17: =AR17+AS17+AT17 -> 0 | AV17: =IFERROR(VLOOKUP('2. Cliënt(en)'!J16,'Data (verbergen)'!I:M,2,0),0) -> 0 | AW17: =IFERROR(IF('2. Cliënt(en)'!L16="Ja",VLOOKUP('2. Cliënt(en)'!J16,'Data (verbergen)'!I:M,3,0),0),0) -> 0 | AX17: =IFERROR(IF('2. Cliënt(en)'!N16="Ja",VLOOKUP('2. Cliënt(en)'!J16,'Data (verbergen)'!I:M,4,0),0),0) -> 0 | AY17: =SUM(AV17:AX17) -> 0 | AZ17: =AV17*$BA$5 -> 0 | BA17: 0 | BB17: 0 | BC17: =SUM(AZ17:BB17) -> 0 | BD17: =(AV17*$BE$5)+(AR17-AZ17) -> 0 | BE17: 0 | BF17: 0 | BG17: =IF(AND('2. Cliënt(en)'!D16<>"",'2. Cliënt(en)'!J16<>""),SUM(BD17:BF17),0) -> 0 | BH17: =IF(AO17=1,AR17,0) -> 0 | BI17: =IF(AO17=1,AS17,0) -> 0 | BJ17: =IF(AO17=1,AT17,0) -> 0 | BK17: =SUM(BH17:BJ17) -> 0
B19: 5 | D19: =IF('2. Cliënt(en)'!D18<>0,'2. Cliënt(en)'!D18,"") ->  | N19: =(F19*H19)+(J19*L19) -> 0 | T19: =P19*R19 -> 0 | AD19: =V19+X19+Z19+AB19 -> 0 | AL19: =BG19 -> 0 | AN19: =IF(D19<>"",1,0) -> 0 | AO19: =IF(AL19>0,1,0) -> 0 | AP19: =(F19*H19)+(J19*L19)+AF19+AH19-AJ19 -> 0 | AQ19: =P19*R19 -> 0 | AR19: =IF(AV19>0,AP19*24,0) -> 0 | AS19: 0 | AT19: =IF(AX19>0,(V19+X19+Z19+AB19)*24,0) -> 0 | AU19: =AR19+AS19+AT19 -> 0 | AV19: =IFERROR(VLOOKUP('2. Cliënt(en)'!J18,'Data (verbergen)'!I:M,2,0),0) -> 0 | AW19: =IFERROR(IF('2. Cliënt(en)'!L18="Ja",VLOOKUP('2. Cliënt(en)'!J18,'Data (verbergen)'!I:M,3,0),0),0) -> 0 | AX19: =IFERROR(IF('2. Cliënt(en)'!N18="Ja",VLOOKUP('2. Cliënt(en)'!J18,'Data (verbergen)'!I:M,4,0),0),0) -> 0 | AY19: =SUM(AV19:AX19) -> 0 | AZ19: =AV19*$BA$5 -> 0 | BA19: 0 | BB19: 0 | BC19: =SUM(AZ19:BB19) -> 0 | BD19: =(AV19*$BE$5)+(AR19-AZ19) -> 0 | BE19: 0 | BF19: 0 | BG19: =IF(AND('2. Cliënt(en)'!D18<>"",'2. Cliënt(en)'!J18<>""),SUM(BD19:BF19),0) -> 0 | BH19: =IF(AO19=1,AR19,0) -> 0 | BI19: =IF(AO19=1,AS19,0) -> 0 | BJ19: =IF(AO19=1,AT19,0) -> 0 | BK19: =SUM(BH19:BJ19) -> 0
B21: 6 | D21: =IF('2. Cliënt(en)'!D20<>0,'2. Cliënt(en)'!D20,"") ->  | N21: =(F21*H21)+(J21*L21) -> 0 | T21: =P21*R21 -> 0 | AD21: =V21+X21+Z21+AB21 -> 0 | AL21: =BG21 -> 0 | AN21: =IF(D21<>"",1,0) -> 0 | AO21: =IF(AL21>0,1,0) -> 0 | AP21: =(F21*H21)+(J21*L21)+AF21+AH21-AJ21 -> 0 | AQ21: =P21*R21 -> 0 | AR21: =IF(AV21>0,AP21*24,0) -> 0 | AS21: 0 | AT21: =IF(AX21>0,(V21+X21+Z21+AB21)*24,0) -> 0 | AU21: =AR21+AS21+AT21 -> 0 | AV21: =IFERROR(VLOOKUP('2. Cliënt(en)'!J20,'Data (verbergen)'!I:M,2,0),0) -> 0 | AW21: =IFERROR(IF('2. Cliënt(en)'!L20="Ja",VLOOKUP('2. Cliënt(en)'!J20,'Data (verbergen)'!I:M,3,0),0),0) -> 0 | AX21: =IFERROR(IF('2. Cliënt(en)'!N20="Ja",VLOOKUP('2. Cliënt(en)'!J20,'Data (verbergen)'!I:M,4,0),0),0) -> 0 | AY21: =SUM(AV21:AX21) -> 0 | AZ21: =AV21*$BA$5 -> 0 | BA21: 0 | BB21: 0 | BC21: =SUM(AZ21:BB21) -> 0 | BD21: =(AV21*$BE$5)+(AR21-AZ21) -> 0 | BE21: 0 | BF21: 0 | BG21: =IF(AND('2. Cliënt(en)'!D20<>"",'2. Cliënt(en)'!J20<>""),SUM(BD21:BF21),0) -> 0 | BH21: =IF(AO21=1,AR21,0) -> 0 | BI21: =IF(AO21=1,AS21,0) -> 0 | BJ21: =IF(AO21=1,AT21,0) -> 0 | BK21: =SUM(BH21:BJ21) -> 0
B23: 7 | D23: =IF('2. Cliënt(en)'!D22<>0,'2. Cliënt(en)'!D22,"") ->  | N23: =(F23*H23)+(J23*L23) -> 0 | T23: =P23*R23 -> 0 | AD23: =V23+X23+Z23+AB23 -> 0 | AL23: =BG23 -> 0 | AN23: =IF(D23<>"",1,0) -> 0 | AO23: =IF(AL23>0,1,0) -> 0 | AP23: =(F23*H23)+(J23*L23)+AF23+AH23-AJ23 -> 0 | AQ23: =P23*R23 -> 0 | AR23: =IF(AV23>0,AP23*24,0) -> 0 | AS23: 0 | AT23: =IF(AX23>0,(V23+X23+Z23+AB23)*24,0) -> 0 | AU23: =AR23+AS23+AT23 -> 0 | AV23: =IFERROR(VLOOKUP('2. Cliënt(en)'!J22,'Data (verbergen)'!I:M,2,0),0) -> 0 | AW23: =IFERROR(IF('2. Cliënt(en)'!L22="Ja",VLOOKUP('2. Cliënt(en)'!J22,'Data (verbergen)'!I:M,3,0),0),0) -> 0 | AX23: =IFERROR(IF('2. Cliënt(en)'!N22="Ja",VLOOKUP('2. Cliënt(en)'!J22,'Data (verbergen)'!I:M,4,0),0),0) -> 0 | AY23: =SUM(AV23:AX23) -> 0 | AZ23: =AV23*$BA$5 -> 0 | BA23: 0 | BB23: 0 | BC23: =SUM(AZ23:BB23) -> 0 | BD23: =(AV23*$BE$5)+(AR23-AZ23) -> 0 | BE23: 0 | BF23: 0 | BG23: =IF(AND('2. Cliënt(en)'!D22<>"",'2. Cliënt(en)'!J22<>""),SUM(BD23:BF23),0) -> 0 | BH23: =IF(AO23=1,AR23,0) -> 0 | BI23: =IF(AO23=1,AS23,0) -> 0 | BJ23: =IF(AO23=1,AT23,0) -> 0 | BK23: =SUM(BH23:BJ23) -> 0
B25: 8 | D25: =IF('2. Cliënt(en)'!D24<>0,'2. Cliënt(en)'!D24,"") ->  | N25: =(F25*H25)+(J25*L25) -> 0 | T25: =P25*R25 -> 0 | AD25: =V25+X25+Z25+AB25 -> 0 | AL25: =BG25 -> 0 | AN25: =IF(D25<>"",1,0) -> 0 | AO25: =IF(AL25>0,1,0) -> 0 | AP25: =(F25*H25)+(J25*L25)+AF25+AH25-AJ25 -> 0 | AQ25: =P25*R25 -> 0 | AR25: =IF(AV25>0,AP25*24,0) -> 0 | AS25: 0 | AT25: =IF(AX25>0,(V25+X25+Z25+AB25)*24,0) -> 0 | AU25: =AR25+AS25+AT25 -> 0 | AV25: =IFERROR(VLOOKUP('2. Cliënt(en)'!J24,'Data (verbergen)'!I:M,2,0),0) -> 0 | AW25: =IFERROR(IF('2. Cliënt(en)'!L24="Ja",VLOOKUP('2. Cliënt(en)'!J24,'Data (verbergen)'!I:M,3,0),0),0) -> 0 | AX25: =IFERROR(IF('2. Cliënt(en)'!N24="Ja",VLOOKUP('2. Cliënt(en)'!J24,'Data (verbergen)'!I:M,4,0),0),0) -> 0 | AY25: =SUM(AV25:AX25) -> 0 | AZ25: =AV25*$BA$5 -> 0 | BA25: 0 | BB25: 0 | BC25: =SUM(AZ25:BB25) -> 0 | BD25: =(AV25*$BE$5)+(AR25-AZ25) -> 0 | BE25: 0 | BF25: 0 | BG25: =IF(AND('2. Cliënt(en)'!D24<>"",'2. Cliënt(en)'!J24<>""),SUM(BD25:BF25),0) -> 0 | BH25: =IF(AO25=1,AR25,0) -> 0 | BI25: =IF(AO25=1,AS25,0) -> 0 | BJ25: =IF(AO25=1,AT25,0) -> 0 | BK25: =SUM(BH25:BJ25) -> 0
B27: 9 | D27: =IF('2. Cliënt(en)'!D26<>0,'2. Cliënt(en)'!D26,"") ->  | N27: =(F27*H27)+(J27*L27) -> 0 | T27: =P27*R27 -> 0 | AD27: =V27+X27+Z27+AB27 -> 0 | AL27: =BG27 -> 0 | AN27: =IF(D27<>"",1,0) -> 0 | AO27: =IF(AL27>0,1,0) -> 0 | AP27: =(F27*H27)+(J27*L27)+AF27+AH27-AJ27 -> 0 | AQ27: =P27*R27 -> 0 | AR27: =IF(AV27>0,AP27*24,0) -> 0 | AS27: 0 | AT27: =IF(AX27>0,(V27+X27+Z27+AB27)*24,0) -> 0 | AU27: =AR27+AS27+AT27 -> 0 | AV27: =IFERROR(VLOOKUP('2. Cliënt(en)'!J26,'Data (verbergen)'!I:M,2,0),0) -> 0 | AW27: =IFERROR(IF('2. Cliënt(en)'!L26="Ja",VLOOKUP('2. Cliënt(en)'!J26,'Data (verbergen)'!I:M,3,0),0),0) -> 0 | AX27: =IFERROR(IF('2. Cliënt(en)'!N26="Ja",VLOOKUP('2. Cliënt(en)'!J26,'Data (verbergen)'!I:M,4,0),0),0) -> 0 | AY27: =SUM(AV27:AX27) -> 0 | AZ27: =AV27*$BA$5 -> 0 | BA27: 0 | BB27: 0 | BC27: =SUM(AZ27:BB27) -> 0 | BD27: =(AV27*$BE$5)+(AR27-AZ27) -> 0 | BE27: 0 | BF27: 0 | BG27: =IF(AND('2. Cliënt(en)'!D26<>"",'2. Cliënt(en)'!J26<>""),SUM(BD27:BF27),0) -> 0 | BH27: =IF(AO27=1,AR27,0) -> 0 | BI27: =IF(AO27=1,AS27,0) -> 0 | BJ27: =IF(AO27=1,AT27,0) -> 0 | BK27: =SUM(BH27:BJ27) -> 0
B29: 10 | D29: =IF('2. Cliënt(en)'!D28<>0,'2. Cliënt(en)'!D28,"") ->  | N29: =(F29*H29)+(J29*L29) -> 0 | T29: =P29*R29 -> 0 | AD29: =V29+X29+Z29+AB29 -> 0 | AL29: =BG29 -> 0 | AN29: =IF(D29<>"",1,0) -> 0 | AO29: =IF(AL29>0,1,0) -> 0 | AP29: =(F29*H29)+(J29*L29)+AF29+AH29-AJ29 -> 0 | AQ29: =P29*R29 -> 0 | AR29: =IF(AV29>0,AP29*24,0) -> 0 | AS29: 0 | AT29: =IF(AX29>0,(V29+X29+Z29+AB29)*24,0) -> 0 | AU29: =AR29+AS29+AT29 -> 0 | AV29: =IFERROR(VLOOKUP('2. Cliënt(en)'!J28,'Data (verbergen)'!I:M,2,0),0) -> 0 | AW29: =IFERROR(IF('2. Cliënt(en)'!L28="Ja",VLOOKUP('2. Cliënt(en)'!J28,'Data (verbergen)'!I:M,3,0),0),0) -> 0 | AX29: =IFERROR(IF('2. Cliënt(en)'!N28="Ja",VLOOKUP('2. Cliënt(en)'!J28,'Data (verbergen)'!I:M,4,0),0),0) -> 0 | AY29: =SUM(AV29:AX29) -> 0 | AZ29: =AV29*$BA$5 -> 0 | BA29: 0 | BB29: 0 | BC29: =SUM(AZ29:BB29) -> 0 | BD29: =(AV29*$BE$5)+(AR29-AZ29) -> 0 | BE29: 0 | BF29: 0 | BG29: =IF(AND('2. Cliënt(en)'!D28<>"",'2. Cliënt(en)'!J28<>""),SUM(BD29:BF29),0) -> 0 | BH29: =IF(AO29=1,AR29,0) -> 0 | BI29: =IF(AO29=1,AS29,0) -> 0 | BJ29: =IF(AO29=1,AT29,0) -> 0 | BK29: =SUM(BH29:BJ29) -> 0
B31: 11 | D31: =IF('2. Cliënt(en)'!D30<>0,'2. Cliënt(en)'!D30,"") ->  | N31: =(F31*H31)+(J31*L31) -> 0 | T31: =P31*R31 -> 0 | AD31: =V31+X31+Z31+AB31 -> 0 | AL31: =BG31 -> 0 | AN31: =IF(D31<>"",1,0) -> 0 | AO31: =IF(AL31>0,1,0) -> 0 | AP31: =(F31*H31)+(J31*L31)+AF31+AH31-AJ31 -> 0 | AQ31: =P31*R31 -> 0 | AR31: =IF(AV31>0,AP31*24,0) -> 0 | AS31: 0 | AT31: =IF(AX31>0,(V31+X31+Z31+AB31)*24,0) -> 0 | AU31: =AR31+AS31+AT31 -> 0 | AV31: =IFERROR(VLOOKUP('2. Cliënt(en)'!J30,'Data (verbergen)'!I:M,2,0),0) -> 0 | AW31: =IFERROR(IF('2. Cliënt(en)'!L30="Ja",VLOOKUP('2. Cliënt(en)'!J30,'Data (verbergen)'!I:M,3,0),0),0) -> 0 | AX31: =IFERROR(IF('2. Cliënt(en)'!N30="Ja",VLOOKUP('2. Cliënt(en)'!J30,'Data (verbergen)'!I:M,4,0),0),0) -> 0 | AY31: =SUM(AV31:AX31) -> 0 | AZ31: =AV31*$BA$5 -> 0 | BA31: 0 | BB31: 0 | BC31: =SUM(AZ31:BB31) -> 0 | BD31: =(AV31*$BE$5)+(AR31-AZ31) -> 0 | BE31: 0 | BF31: 0 | BG31: =IF(AND('2. Cliënt(en)'!D30<>"",'2. Cliënt(en)'!J30<>""),SUM(BD31:BF31),0) -> 0 | BH31: =IF(AO31=1,AR31,0) -> 0 | BI31: =IF(AO31=1,AS31,0) -> 0 | BJ31: =IF(AO31=1,AT31,0) -> 0 | BK31: =SUM(BH31:BJ31) -> 0
B33: 12 | D33: =IF('2. Cliënt(en)'!D32<>0,'2. Cliënt(en)'!D32,"") ->  | N33: =(F33*H33)+(J33*L33) -> 0 | T33: =P33*R33 -> 0 | AD33: =V33+X33+Z33+AB33 -> 0 | AL33: =BG33 -> 0 | AN33: =IF(D33<>"",1,0) -> 0 | AO33: =IF(AL33>0,1,0) -> 0 | AP33: =(F33*H33)+(J33*L33)+AF33+AH33-AJ33 -> 0 | AQ33: =P33*R33 -> 0 | AR33: =IF(AV33>0,AP33*24,0) -> 0 | AS33: 0 | AT33: =IF(AX33>0,(V33+X33+Z33+AB33)*24,0) -> 0 | AU33: =AR33+AS33+AT33 -> 0 | AV33: =IFERROR(VLOOKUP('2. Cliënt(en)'!J32,'Data (verbergen)'!I:M,2,0),0) -> 0 | AW33: =IFERROR(IF('2. Cliënt(en)'!L32="Ja",VLOOKUP('2. Cliënt(en)'!J32,'Data (verbergen)'!I:M,3,0),0),0) -> 0 | AX33: =IFERROR(IF('2. Cliënt(en)'!N32="Ja",VLOOKUP('2. Cliënt(en)'!J32,'Data (verbergen)'!I:M,4,0),0),0) -> 0 | AY33: =SUM(AV33:AX33) -> 0 | AZ33: =AV33*$BA$5 -> 0 | BA33: 0 | BB33: 0 | BC33: =SUM(AZ33:BB33) -> 0 | BD33: =(AV33*$BE$5)+(AR33-AZ33) -> 0 | BE33: 0 | BF33: 0 | BG33: =IF(AND('2. Cliënt(en)'!D32<>"",'2. Cliënt(en)'!J32<>""),SUM(BD33:BF33),0) -> 0 | BH33: =IF(AO33=1,AR33,0) -> 0 | BI33: =IF(AO33=1,AS33,0) -> 0 | BJ33: =IF(AO33=1,AT33,0) -> 0 | BK33: =SUM(BH33:BJ33) -> 0
B35: 13 | D35: =IF('2. Cliënt(en)'!D34<>0,'2. Cliënt(en)'!D34,"") ->  | N35: =(F35*H35)+(J35*L35) -> 0 | T35: =P35*R35 -> 0 | AD35: =V35+X35+Z35+AB35 -> 0 | AL35: =BG35 -> 0 | AN35: =IF(D35<>"",1,0) -> 0 | AO35: =IF(AL35>0,1,0) -> 0 | AP35: =(F35*H35)+(J35*L35)+AF35+AH35-AJ35 -> 0 | AQ35: =P35*R35 -> 0 | AR35: =IF(AV35>0,AP35*24,0) -> 0 | AS35: 0 | AT35: =IF(AX35>0,(V35+X35+Z35+AB35)*24,0) -> 0 | AU35: =AR35+AS35+AT35 -> 0 | AV35: =IFERROR(VLOOKUP('2. Cliënt(en)'!J34,'Data (verbergen)'!I:M,2,0),0) -> 0 | AW35: =IFERROR(IF('2. Cliënt(en)'!L34="Ja",VLOOKUP('2. Cliënt(en)'!J34,'Data (verbergen)'!I:M,3,0),0),0) -> 0 | AX35: =IFERROR(IF('2. Cliënt(en)'!N34="Ja",VLOOKUP('2. Cliënt(en)'!J34,'Data (verbergen)'!I:M,4,0),0),0) -> 0 | AY35: =SUM(AV35:AX35) -> 0 | AZ35: =AV35*$BA$5 -> 0 | BA35: 0 | BB35: 0 | BC35: =SUM(AZ35:BB35) -> 0 | BD35: =(AV35*$BE$5)+(AR35-AZ35) -> 0 | BE35: 0 | BF35: 0 | BG35: =IF(AND('2. Cliënt(en)'!D34<>"",'2. Cliënt(en)'!J34<>""),SUM(BD35:BF35),0) -> 0 | BH35: =IF(AO35=1,AR35,0) -> 0 | BI35: =IF(AO35=1,AS35,0) -> 0 | BJ35: =IF(AO35=1,AT35,0) -> 0 | BK35: =SUM(BH35:BJ35) -> 0
B37: 14 | D37: =IF('2. Cliënt(en)'!D36<>0,'2. Cliënt(en)'!D36,"") ->  | N37: =(F37*H37)+(J37*L37) -> 0 | T37: =P37*R37 -> 0 | AD37: =V37+X37+Z37+AB37 -> 0 | AL37: =BG37 -> 0 | AN37: =IF(D37<>"",1,0) -> 0 | AO37: =IF(AL37>0,1,0) -> 0 | AP37: =(F37*H37)+(J37*L37)+AF37+AH37-AJ37 -> 0 | AQ37: =P37*R37 -> 0 | AR37: =IF(AV37>0,AP37*24,0) -> 0 | AS37: 0 | AT37: =IF(AX37>0,(V37+X37+Z37+AB37)*24,0) -> 0 | AU37: =AR37+AS37+AT37 -> 0 | AV37: =IFERROR(VLOOKUP('2. Cliënt(en)'!J36,'Data (verbergen)'!I:M,2,0),0) -> 0 | AW37: =IFERROR(IF('2. Cliënt(en)'!L36="Ja",VLOOKUP('2. Cliënt(en)'!J36,'Data (verbergen)'!I:M,3,0),0),0) -> 0 | AX37: =IFERROR(IF('2. Cliënt(en)'!N36="Ja",VLOOKUP('2. Cliënt(en)'!J36,'Data (verbergen)'!I:M,4,0),0),0) -> 0 | AY37: =SUM(AV37:AX37) -> 0 | AZ37: =AV37*$BA$5 -> 0 | BA37: 0 | BB37: 0 | BC37: =SUM(AZ37:BB37) -> 0 | BD37: =(AV37*$BE$5)+(AR37-AZ37) -> 0 | BE37: 0 | BF37: 0 | BG37: =IF(AND('2. Cliënt(en)'!D36<>"",'2. Cliënt(en)'!J36<>""),SUM(BD37:BF37),0) -> 0 | BH37: =IF(AO37=1,AR37,0) -> 0 | BI37: =IF(AO37=1,AS37,0) -> 0 | BJ37: =IF(AO37=1,AT37,0) -> 0 | BK37: =SUM(BH37:BJ37) -> 0
B39: 15 | D39: =IF('2. Cliënt(en)'!D38<>0,'2. Cliënt(en)'!D38,"") ->  | N39: =(F39*H39)+(J39*L39) -> 0 | T39: =P39*R39 -> 0 | AD39: =V39+X39+Z39+AB39 -> 0 | AL39: =BG39 -> 0 | AN39: =IF(D39<>"",1,0) -> 0 | AO39: =IF(AL39>0,1,0) -> 0 | AP39: =(F39*H39)+(J39*L39)+AF39+AH39-AJ39 -> 0 | AQ39: =P39*R39 -> 0 | AR39: =IF(AV39>0,AP39*24,0) -> 0 | AS39: 0 | AT39: =IF(AX39>0,(V39+X39+Z39+AB39)*24,0) -> 0 | AU39: =AR39+AS39+AT39 -> 0 | AV39: =IFERROR(VLOOKUP('2. Cliënt(en)'!J38,'Data (verbergen)'!I:M,2,0),0) -> 0 | AW39: =IFERROR(IF('2. Cliënt(en)'!L38="Ja",VLOOKUP('2. Cliënt(en)'!J38,'Data (verbergen)'!I:M,3,0),0),0) -> 0 | AX39: =IFERROR(IF('2. Cliënt(en)'!N38="Ja",VLOOKUP('2. Cliënt(en)'!J38,'Data (verbergen)'!I:M,4,0),0),0) -> 0 | AY39: =SUM(AV39:AX39) -> 0 | AZ39: =AV39*$BA$5 -> 0 | BA39: 0 | BB39: 0 | BC39: =SUM(AZ39:BB39) -> 0 | BD39: =(AV39*$BE$5)+(AR39-AZ39) -> 0 | BE39: 0 | BF39: 0 | BG39: =IF(AND('2. Cliënt(en)'!D38<>"",'2. Cliënt(en)'!J38<>""),SUM(BD39:BF39),0) -> 0 | BH39: =IF(AO39=1,AR39,0) -> 0 | BI39: =IF(AO39=1,AS39,0) -> 0 | BJ39: =IF(AO39=1,AT39,0) -> 0 | BK39: =SUM(BH39:BJ39) -> 0
AN41: =SUM(AN11:AN39) -> 0 | AO41: 0 | AR41: =SUM(AR11:AR39) -> 0 | AS41: 0 | AT41: 0 | AU41: 0 | AV41: 0 | AW41: 0 | AX41: 0 | AY41: 0 | AZ41: 0 | BA41: 0 | BB41: 0 | BC41: 0 | BD41: 0 | BE41: 0 | BF41: 0 | BG41: 0 | BH41: 0 | BI41: 0 | BJ41: 0 | BK41: 0

Sheet 4. Berekening
R1: vanaf hier verbergen
B2: Berekening meerzorg
B7: Directe zorgkosten
H9: Uren zorg | J9: Uren zzp | L9: Uren meerzorg | N9: =CONCATENATE("Normbedrag ", '1. Voorblad'!G19) -> Normbedrag | P9: Jaarbedrag
D11: Wonen | H11: ='3. Uren zorg'!BH41 -> 0 | J11: ='3. Uren zorg'!AV41 -> 0 | L11: =H11-J11 -> 0 | N11: =IFERROR(VLOOKUP('1. Voorblad'!G19,'Data (verbergen)'!AL2:AO4,4,0),0) -> 0 | P11: =IFERROR((H11*52.142857)*N11,0) -> 0
D13: Dagbesteding | H13: ='3. Uren zorg'!BI41 -> 0 | J13: ='3. Uren zorg'!AW41 -> 0 | L13: =H13-J13 -> 0 | N13: =IFERROR(VLOOKUP('1. Voorblad'!G19,'Data (verbergen)'!AL6:AO8,4,0),0) -> 0 | P13: =IFERROR((H13*52.14)*N13,0) -> 0
D15: Behandeling | H15: ='3. Uren zorg'!BJ41 -> 0 | J15: ='3. Uren zorg'!AX41 -> 0 | L15: =H15-J15 -> 0 | N15: =IFERROR(VLOOKUP('1. Voorblad'!G19,'Data (verbergen)'!AL10:AO12,4,0),0) -> 0 | P15: =IFERROR((H15*52.14)*N15,0) -> 0
P17: =SUM(P11:P15) -> 0
B19: Indirecte zorgkosten | D19: Omschrijving | P19: Bedrag
B21: Toelichten op tabblad 7. Overige opmerkingen
P31: =SUM(P21:P29) -> 0
P33: =P17+P31 -> 0
B35: Berekening meerzorg
D37: Af: ZZP/VPT-loonwaarde cliënt(en) | P37: ='2. Cliënt(en)'!AF40 -> 0
D39: Bruto Jaarbedrag meerzorg | P39: =IF('1. Voorblad'!M22=0,P33-P37,0) -> 0
D41: Jaarbedrag meerzorg tegen afgesproken tarief | P41: =P39*'1. Voorblad'!C19 -> 0
D43: Aantal meerzorgwaardige cliënten | N43: ='3. Uren zorg'!AO41 -> 0
D45: Etmaalbedrag per meerzorgwaardige cliënt (ZMZ01) | P45: =IF(Q45<1250,ROUND(Q45,2),1250) -> 0 | Q45: =IF(P41<0,0,IFERROR((P41/N43)/365,0)) -> 0

Sheet 5. Doelen
B2: Doelen
B6: In te vullen door zorgaanbieder
B8: Perspectief (schets het perspectief in het kader waarvan de hieronder genoemde doelen ingezet gaan worden)
B21: Doelen (voor welke doelen vraagt u meerzorg aan? Formuleer ieder doel SMART)
B23: 1
B25: 2
B27: 3
B29: 4
B31: 5
B33: 6
B35: Werkwijze ( geef per gesteld doel aan, hoe u tot resultaat wilt komen)
B37: 1
B39: 2
B41: 3
B43: 4
B45: 5
B47: 6
B49: Evaluatie (geef per doelstelling concrete evaluatiecriteria aan )
B51: 1
B53: 2
B55: 3
B57: 4
B59: 5
B61: 6
B63: Afbouw (geef aan hoe de extra inzet kan worden afgebouwd)

Sheet 6. Motivatie
E1: Vanaf hier verbergen
B2: Motivatie
B6: In te vullen door zorgaanbieder
B8: =CONCATENATE(B2," ",'1. Voorblad'!C22) -> Motivatie
B10: =IF('1. Voorblad'!K22=1,H10,IF('1. Voorblad'!K22=2,H23,"")) ->  | H10: Beantwoord in onderstaand veld, voor zover van toepassing, de onderstaande vragen: - Waarom past de zorgvraag van de cliënt niet binnen het zorgprofiel? - Waaruit blijkt de extreme zorgbehoefte? - Wat is de aanleiding van de meerzorg en wat is de frequentie? - Welke interventiemiddelen zijn er toe nu toe ingezet en met welk effect? - Is er een concrete vraag voor het CCE en zoja, wat is deze vraag?
B21: Doelen (voor welke doelen vraagt u meerzorg aan? Formuleer ieder doel SMART)
H23: Beantwoord in onderstaand veld, voor zover van toepassing, de onderstaande vragen: - Wat is de reden dat er wordt gekozen voor groepsmeerzorg? - Waar bestaat de extra zorg uit? - Welke indirecte zorg is nodig en wat is de relatie tot de meerzorg? - Welke doelen staan er voor de komende periode centraal? - Wat is de nulmeting en wat moet behaald worden? - Is er een concrete vraag voor het CCE en zoja, wat is deze vraag?

Sheet 7. Overige opmerkingen
B2: Overige opmerkingen
B6: In te vullen door zorgaanbieder
B8: Restpost- en minuren
B21: Indirecte kosten
B34: Overige opmerkingen

Sheet 8. Verhuisformulier
B2: Verhuisformulier Meerzorg 2019
B4: Registratienummers Nza oude en nieuwe aanbieder
D5: cat. | E5: nr.
B6: Registratienummer Nza oude zorgaanbieder | D6: 300
B8: Registratienummer Nza nieuwe zorgaanbieder | D8: 300
B10: Gegevens OUDE Zorgaanbieder | F10: Gegevens OUD Zorgkantoor
B12: Naam | C12: =IFERROR(VLOOKUP(E6,'Data (verbergen)'!A:E,2,0),"") ->  | F12: Rechtspersoon | G12: =IFERROR(VLOOKUP(E6,'Data (verbergen)'!A:E,4,0),"") -> 
B13: Plaats | C13: =IFERROR(VLOOKUP(E6,'Data (verbergen)'!A:E,3,0),"") ->  | F13: Zorgkantoor | G13: =IFERROR(VLOOKUP(E6,'Data (verbergen)'!A:E,5,0),"") -> 
B14: Contactpersoon | F14: Contactpersoon
B15: Telefoon | F15: Telefoon
B16: Email | F16: Email
B18: Gegevens NIEUWE Zorgaanbieder | F18: Gegevens NIEUW Zorgkantoor
B20: Naam | C20: =IFERROR(VLOOKUP(E8,'Data (verbergen)'!A:E,2,0),"") ->  | F20: Rechtspersoon | G20: =IFERROR(VLOOKUP(E8,'Data (verbergen)'!A:E,4,0),"") -> 
B21: Plaats | C21: =IFERROR(VLOOKUP(E8,'Data (verbergen)'!A:E,3,0),"") ->  | F21: Zorgkantoor | G21: =IFERROR(VLOOKUP(E8,'Data (verbergen)'!A:E,5,0),"") -> 
B22: Contactpersoon | F22: Contactpersoon
B23: Telefoon | F23: Telefoon
B24: Email | F24: Email
B26: Cliëntgegevens
B28: Naam
B30: Geboortedatum
B32: Hoogte toeslag
B34: Verhuisdatum
B36: Uren woonzorg
B38: Uren dagbesteding
B40: Uren behandeling
B42: Door ondertekening van het formulier verklaren alle partijen:
B43: - dat bovengenomede client op vermelde datum is verhuisd naar de nieuwe zorgaanbieder;
B44: - dat het zorgplan integraal van de oude zorgaanbieder door de nieuwe zorgaanbieder is overgenomen.
B45: Is dit niet het geval, dan kan dit formulier niet worden gebruikt en zal de nieuwe zorgaanbieder een nieuw aanvraagtraject moeten doorlopen.
B47: Let op:
B48: Toeslagen kunnen alleen naar de nieuwe zorgaanbeider overgeheveld worden als het bedrag nog in de rekenstaat van de oude aanbieder is opgenomen.
B49: Mocht dit niet meer het geval zijn, dan zal de nieuwe zorgaanbieder een nieuw aanvraagtraject moeten doorlopen.
B51: (handtekening oude aanbieder) | F51: (handtekening nieuwe aanbieder)
B57: (handtekening oud zorgkantoor) | F57: (handtekening nieuw zorgkantoor)

Sheet 9. Rekenhulp ma-vr
B2: Rekenhulp maandag-vrijdag
B3: In te vullen per individuele cliënt
B5: Naam cliënt:
B6: Woonlocatie:
B7: Dagbestedingslocatie: | L7: Over te nemen bij wonen ma-vr | P7: =SUMIF($H$12:$H$44,"Wonen",$P$12:$P$44) -> 00:00:00
B8: Ingevuld/opgesteld door: | L8: Over te nemen bij dagbesteding | P8: =SUMIF($H$12:$H$44,"Dagbesteding",$P$12:$P$44) -> 00:00:00
B10: Tijd van | D10: Tijd tot | F10: Uren | H10: Functie | J10: Activiteit (Wat) | L10: Begeleidingsstijl (Hoe) | N10: 1 op … | P10: Formatie- uren
B12: 07:00:00 | F12: =IF(D12="",0,D12-B12) -> 00:00:00 | P12: =IFERROR(F12/N12,0) -> 00:00:00
B13: =D12 -> 00:00:00 | F13: =IF(D13="",0,D13-B13) -> 00:00:00 | P13: =IFERROR(F13/N13,0) -> 00:00:00
B14: 00:00:00 | F14: 00:00:00 | P14: 00:00:00
B15: 00:00:00 | F15: 00:00:00 | P15: 00:00:00
B16: 00:00:00 | F16: 00:00:00 | P16: 00:00:00
B17: 00:00:00 | F17: 00:00:00 | P17: 00:00:00
B18: 00:00:00 | F18: 00:00:00 | P18: 00:00:00
B19: 00:00:00 | F19: 00:00:00 | P19: 00:00:00
B20: 00:00:00 | F20: 00:00:00 | P20: 00:00:00
B21: 00:00:00 | F21: 00:00:00 | P21: 00:00:00
B22: 00:00:00 | F22: 00:00:00 | P22: 00:00:00
B23: 00:00:00 | F23: 00:00:00 | P23: 00:00:00
B24: 00:00:00 | F24: 00:00:00 | P24: 00:00:00
B25: 00:00:00 | F25: 00:00:00 | P25: 00:00:00
B26: 00:00:00 | F26: 00:00:00 | P26: 00:00:00
B27: =D26 -> 00:00:00 | F27: =IF(D27="",0,D27-B27) -> 00:00:00 | P27: =IFERROR(F27/N27,0) -> 00:00:00
B28: 00:00:00 | F28: 00:00:00 | P28: 00:00:00
B29: 00:00:00 | F29: 00:00:00 | P29: 00:00:00
B30: 00:00:00 | F30: 00:00:00 | P30: 00:00:00
B31: 00:00:00 | F31: 00:00:00 | P31: 00:00:00
B32: 00:00:00 | F32: 00:00:00 | P32: 00:00:00
B33: 00:00:00 | F33: 00:00:00 | P33: 00:00:00
B34: 00:00:00 | F34: 00:00:00 | P34: 00:00:00
B35: 00:00:00 | F35: 00:00:00 | P35: 00:00:00
B36: 00:00:00 | F36: 00:00:00 | P36: 00:00:00
B37: 00:00:00 | F37: 00:00:00 | P37: 00:00:00
B38: 00:00:00 | F38: 00:00:00 | P38: 00:00:00
B39: 00:00:00 | F39: 00:00:00 | P39: 00:00:00
B40: 00:00:00 | F40: 00:00:00 | P40: 00:00:00
B41: 00:00:00 | F41: 00:00:00 | P41: 00:00:00
B42: 00:00:00 | F42: 00:00:00 | P42: 00:00:00
B43: =D42 -> 00:00:00 | F43: =IF(D43="",0,D43-B43) -> 00:00:00 | P43: =IFERROR(F43/N43,0) -> 00:00:00
B44: 00:00:00 | F44: 00:00:00 | P44: 00:00:00

Sheet 10. Rekenhulp za-zo
B2: Rekenhulp zaterdag-zondag
B3: In te vullen per individuele cliënt
B5: Naam cliënt:
B6: Woonlocatie:
B7: Dagbestedingslocatie: | L7: Over te nemen bij wonen za-zo | P7: =SUMIF($H$12:$H$44,"Wonen",$P$12:$P$44) -> 00:00:00
B8: Ingevuld/opgesteld door:
B10: Tijd van | D10: Tijd tot | F10: Uren | H10: Functie | J10: Activiteit (Wat) | L10: Begeleidingsstijl (Hoe) | N10: 1 op … | P10: Formatie- uren
B12: 07:00:00 | F12: =IF(D12="",0,D12-B12) -> 00:00:00 | H12: Wonen | P12: =IFERROR(F12/N12,0) -> 00:00:00
B13: =D12 -> 00:00:00 | F13: =IF(D13="",0,D13-B13) -> 00:00:00 | H13: Wonen | P13: =IFERROR(F13/N13,0) -> 00:00:00
B14: 00:00:00 | F14: 00:00:00 | H14: Wonen | P14: 00:00:00
B15: 00:00:00 | F15: 00:00:00 | H15: Wonen | P15: 00:00:00
B16: 00:00:00 | F16: 00:00:00 | H16: Wonen | P16: 00:00:00
B17: 00:00:00 | F17: 00:00:00 | H17: Wonen | P17: 00:00:00
B18: 00:00:00 | F18: 00:00:00 | H18: Wonen | P18: 00:00:00
B19: 00:00:00 | F19: 00:00:00 | H19: Wonen | P19: 00:00:00
B20: 00:00:00 | F20: 00:00:00 | H20: Wonen | P20: 00:00:00
B21: 00:00:00 | F21: 00:00:00 | H21: Wonen | P21: 00:00:00
B22: 00:00:00 | F22: 00:00:00 | H22: Wonen | P22: 00:00:00
B23: 00:00:00 | F23: 00:00:00 | H23: Wonen | P23: 00:00:00
B24: 00:00:00 | F24: 00:00:00 | H24: Wonen | P24: 00:00:00
B25: 00:00:00 | F25: 00:00:00 | H25: Wonen | P25: 00:00:00
B26: 00:00:00 | F26: 00:00:00 | H26: Wonen | P26: 00:00:00
B27: 00:00:00 | F27: 00:00:00 | H27: Wonen | P27: 00:00:00
B28: 00:00:00 | F28: 00:00:00 | H28: Wonen | P28: 00:00:00
B29: 00:00:00 | F29: 00:00:00 | H29: Wonen | P29: 00:00:00
B30: 00:00:00 | F30: 00:00:00 | H30: Wonen | P30: 00:00:00
B31: 00:00:00 | F31: 00:00:00 | H31: Wonen | P31: 00:00:00
B32: 00:00:00 | F32: 00:00:00 | H32: Wonen | P32: 00:00:00
B33: 00:00:00 | F33: 00:00:00 | H33: Wonen | P33: 00:00:00
B34: 00:00:00 | F34: 00:00:00 | H34: Wonen | P34: 00:00:00
B35: 00:00:00 | F35: 00:00:00 | H35: Wonen | P35: 00:00:00
B36: 00:00:00 | F36: 00:00:00 | H36: Wonen | P36: 00:00:00
B37: 00:00:00 | F37: 00:00:00 | H37: Wonen | P37: 00:00:00
B38: 00:00:00 | F38: 00:00:00 | H38: Wonen | P38: 00:00:00
B39: 00:00:00 | F39: 00:00:00 | H39: Wonen | P39: 00:00:00
B40: 00:00:00 | F40: 00:00:00 | H40: Wonen | P40: 00:00:00
B41: 00:00:00 | F41: 00:00:00 | H41: Wonen | P41: 00:00:00
B42: 00:00:00 | F42: 00:00:00 | H42: Wonen | P42: 00:00:00
B43: 00:00:00 | F43: 00:00:00 | H43: Wonen | P43: 00:00:00
B44: 00:00:00 | F44: 00:00:00 | H44: Wonen | P44: 00:00:00

Sheet 11. Versiebeheer
B2: Versiebeheer
B7: Datum | D7: Versie | F7: Tabblad | H7: Opmerkingen/wijzigingen
B9: 2018-11-09 | D9: 2019.01 | H9: Publicatie
B11: 2018-11-22 | D11: 2019.02 | F11: 3 | H11: Formulefout in tabblad 3. aangepast
B13: 2018-12-20 | D13: 2019.03 | F13: 1 | H13: Lijst ZA-ZK geactualiseerd met Nza-gegevens
F14: 3 | H14: Uren behandeling en overig opengesteld voor meer dan 24 uur
F15: 4 | H15: Etmaalbedrag op juiste grondslag aangepast
B16: 2019-06-06 | D16: 2019.04 | F16: divers | H16: Problemen met terugloop opgelost

Sheet Data (verbergen) (hidden)
A1: Zoektabel ZA-ZK | G1: Soort problematiek | I1: Indicatie | J1: WN | K1: DB | L1: BH | M1: TOT | O1: Tarieven 2019 Loon en Materieel | Q1: Nza | R1: Loon | S1: Mat. | T1: Totaal | U1: WN | V1: DB | W1: BH | X1: TOT | Z1: Geldig | AA1: Excl. bh | AB1: Incl. bh | AC1: Excl. db | AD1: Incl. db | AF1: Tijden | AH1: Functie | AJ1: Bezetting | AL1: Sector | AM1: Prestatie | AN1: Codes | AO1: Tarief 2019
A2: NR | B2: NAAM | C2: PLAATS | D2: ZOKA | E2: PLAATSZOKA | G2: Cliënt(en) met enkel somatische problematiek | I2: GGZ6B | J2: 19.48 | K2: 3.41 | L2: 2.3 | M2: =SUM(J2:L2) -> 25.19 | O2: GGZ6BJaNee | P2: Z262 ZZP 6ggz-b incl.bh excl.db | Q2: =LEFT(P2,4) -> Z262 | R2: 239.41 | S2: 58.44 | T2: =SUM(R2:S2) -> 297.85 | U2: 19.48 | W2: 2.3 | X2: =SUM(U2:W2) -> 21.78 | Z2: GGZ6B | AB2: x | AC2: x | AD2: x | AF2: 07:00:00 | AH2: Wonen | AJ2: 0 | AL2: GHZ | AM2: Wonen | AN2: Z001 | AO2: 40.46
A3: 1 | B3: Zorgcentrum 'De Blanckenbörg' | C3: 3010 | D3: Menzis | E3: Zorgkantoor Groningen | G3: Cliënt(en) met enkel gedragsproblematiek | I3: GGZ7B | J3: 28.32 | K3: 5.35 | L3: 2.3 | M3: 35.97 | O3: GGZ6BJaJa | P3: Z263 ZZP 6ggz-b incl.bh incl.db | Q3: Z263 | R3: 258.78 | S3: 62.03 | T3: 320.81 | U3: 19.48 | V3: 3.41 | W3: 2.3 | X3: 25.19 | Z3: GGZ7B | AB3: x | AC3: x | AD3: x | AF3: 07:15:00 | AH3: Dagbesteding | AJ3: 0.2 | AL3: VVT | AM3: Wonen | AN3: Z004 | AO3: 44.14
A4: 3 | B4: Woon-en Zorgcentrum Burgemeester van Julsingha Tehuis | C4: 3010 | D4: Menzis | E4: Zorgkantoor Groningen | G4: Cliënt(en) met gedrags- en somatische problematiek | I4: LG5 | J4: 18.38 | K4: 5.82 | L4: 2.31 | M4: 26.51 | O4: GGZ7BJaNee | P4: Z272 ZZP 7ggz-b incl.bh excl.db | Q4: Z272 | R4: 270.95 | S4: 60.67 | T4: 331.62 | U4: 28.32 | W4: 2.3 | X4: 30.62 | Z4: LG5 | AA4: x | AB4: x | AC4: x | AD4: x | AF4: 07:30:00 | AJ4: 0.25 | AL4: GGZ | AM4: Wonen | AN4: Z007 | AO4: 48.81
A5: 4 | B5: Woonzorgcentrum Het Hooge Heem | C5: 3010 | D5: Menzis | E5: Zorgkantoor Groningen | G5: Cliënt(en) met gedrags- en of somatische problematiek | I5: LG6 | J5: 20.57 | K5: 5.3 | L5: 2.71 | M5: 28.58 | O5: GGZ7BJaJa | P5: Z273 ZZP 7ggz-b incl.bh incl.db | Q5: Z273 | R5: 307 | S5: 67.22 | T5: 374.22 | U5: 28.32 | V5: 5.35 | W5: 2.3 | X5: 35.97 | Z5: LG6 | AA5: x | AB5: x | AC5: x | AD5: x | AF5: 07:45:00 | AJ5: 0.33
A6: 5 | B6: Stichting De Twentse Zorgcentra | C6: 3050 | D6: Menzis | E6: Zorgkantoor Twente | I6: LG7 | J6: 23.34 | K6: 4.44 | L6: 2.45 | M6: 30.23 | O6: LG5NeeNee | P6: Z650 ZZP 5lg excl.bh excl.db | Q6: Z650 | R6: 110.35 | S6: 34.71 | T6: 145.06 | U6: 18.38 | X6: 18.38 | Z6: LG7 | AA6: x | AB6: x | AC6: x | AD6: x | AF6: 08:00:00 | AJ6: 0.4 | AL6: GHZ | AM6: Dagbesteding | AN6: Z002 | AO6: 42.14
A7: 6 | B7: Stichting Vredewold | C7: 3010 | D7: Menzis | E7: Zorgkantoor Groningen | G7: Soort aanvraag | I7: LVG4 | J7: 23.15 | K7: 2.3 | L7: 4.48 | M7: 29.93 | O7: LG5NeeJa | P7: Z651 ZZP 5lg excl.bh incl.db | Q7: Z651 | R7: 152.87 | S7: 39.48 | T7: 192.35 | U7: 18.38 | V7: 5.82 | X7: 24.2 | Z7: LVG4 | AB7: x | AD7: x | AF7: 08:15:00 | AJ7: 0.5 | AL7: VVT | AM7: Dagbesteding | AN7: Z005 | AO7: 44.11
A8: 7 | B8: Stichting Cello | C8: 3280 | D8: UVIT | E8: Zorgkantoor Noordoost-Brabant | G8: Enkelvoudige aanvraag (individueel) | I8: LVG5 | J8: 23.15 | K8: 2.3 | L8: 4.48 | M8: 29.93 | O8: LG5JaNee | P8: Z652 ZZP 5lg incl.bh excl.db | Q8: Z652 | R8: 142.86 | S8: 39.41 | T8: 182.27 | U8: 18.38 | W8: 2.31 | X8: 20.69 | Z8: LVG5 | AB8: x | AD8: x | AF8: 08:30:00 | AJ8: 0.6 | AL8: GGZ | AM8: Dagbesteding | AN8: Z008 | AO8: 47.09
A9: 8 | B9: Stichting S&L Zorg | C9: 3260 | D9: CZ | E9: Zorgkantoor West-Brabant | G9: Meervoudige aanvraag (groepsmeerzorg) | I9: SGLVG | J9: 31.7 | K9: 4 | L9: 3.73 | M9: 39.43 | O9: LG5JaJa | P9: Z653 ZZP 5lg incl.bh incl.db | Q9: Z653 | R9: 177.74 | S9: 50.81 | T9: 228.55 | U9: 18.38 | V9: 5.82 | W9: 2.31 | X9: 26.51 | Z9: SGLVG | AB9: x | AD9: x | AF9: 08:45:00 | AJ9: 0.7
A10: 9 | B10: stichting R.K. Ouderenzorg St. Franciscus | C10: 3010 | D10: Menzis | E10: Zorgkantoor Groningen | I10: VG5 | J10: 16.71 | K10: 6.76 | L10: 1.24 | M10: 24.71 | O10: LG6Neenee | P10: Z660 ZZP 6lg excl.bh excl.db | Q10: Z660 | R10: 171.94 | S10: 41.6 | T10: 213.54 | U10: 20.57 | X10: 20.57 | Z10: VG5 | AA10: x | AB10: x | AC10: x | AD10: x | AF10: 09:00:00 | AJ10: 0.75 | AL10: GHZ | AM10: Behandeling | AN10: Z003 | AO10: 80.19
A11: 13 | B11: Stichting Verzorgingscentra Utingeradeel | C11: 3020 | D11: De Friesland | E11: Zorgkantoor Friesland | G11: Van toepassing | I11: VG7 | J11: 21.12 | K11: 10.91 | L11: 1.7 | M11: 33.73 | O11: LG6NeeJa | P11: Z661 ZZP 6lg excl.bh incl.db | Q11: Z661 | R11: 204.67 | S11: 44.2 | T11: 248.87 | U11: 20.57 | V11: 5.3 | X11: 25.87 | Z11: VG7 | AA11: x | AB11: x | AC11: x | AD11: x | AF11: 09:15:00 | AJ11: 0.8 | AL11: VVT | AM11: Behandeling | AN11: Z006 | AO11: 94.23
A12: 14 | B12: Stichting Verzorgingscentrum het Bildt | C12: 3020 | D12: De Friesland | E12: Zorgkantoor Friesland | G12: Ja | I12: VG8 | J12: 21.02 | K12: 6.76 | L12: 1.24 | M12: 29.02 | O12: LG6JaNee | P12: Z662 ZZP 6lg incl.bh excl.db | Q12: Z662 | R12: 204.02 | S12: 47.6 | T12: 251.62 | U12: 20.57 | W12: 2.71 | X12: 23.28 | Z12: VG8 | AA12: x | AB12: x | AC12: x | AD12: x | AF12: 09:30:00 | AJ12: 0.9 | AL12: GGZ | AM12: Behandeling | AN12: Z009 | AO12: 81.64
A13: 15 | B13: Stichting Nieuw Unicum | C13: 3130 | D13: Achmea | E13: Zorgkantoor Kennemerland | G13: Nee | I13: VV7 | J13: 19 | K13: 1.49 | L13: 2 | M13: 22.49 | O13: LG6JaJa | P13: Z663 ZZP 6lg incl.bh incl.db | Q13: Z663 | R13: 231.01 | S13: 56.13 | T13: 287.14 | U13: 20.57 | V13: 5.3 | W13: 2.71 | X13: 28.58 | Z13: VV7 | AA13: x | AB13: x | AD13: x | AF13: 09:45:00 | AJ13: 1
A14: 17 | B14: Woon- en zorgcentrum de Westerkrim | C14: 3030 | D14: Achmea | E14: Zorgkantoor Drenthe | I14: VV8 | J14: 24.1 | K14: 0.92 | L14: 2 | M14: 27.02 | O14: LG7Neenee | P14: Z670 ZZP 7lg excl.bh excl.db | Q14: Z670 | R14: 190.29 | S14: 43.32 | T14: 233.61 | U14: 23.34 | X14: 23.34 | Z14: VV8 | AA14: x | AB14: x | AD14: x | AF14: 10:00:00 | AJ14: 1.11
A15: 18 | B15: Stichting Derkshoes Zorg en Dienstverlening | C15: 3030 | D15: Achmea | E15: Zorgkantoor Drenthe | G15: Dagen | I15: ZG3AUD | J15: 32.58 | K15: 10.59 | L15: 1.71 | M15: 44.88 | O15: LG7NeeJa | P15: Z671 ZZP 7lg excl.bh incl.db | Q15: Z671 | R15: 222.6 | S15: 45.54 | T15: 268.14 | U15: 23.34 | V15: 4.44 | X15: 27.78 | Z15: ZG3AUD | AA15: x | AB15: x | AC15: x | AD15: x | AF15: 10:15:00 | AJ15: 1.33
A16: 19 | B16: S' Heeren Loo Zorggroep | C16: 3080 | D16: UVIT | E16: Zorgkantoor Nijmegen | G16: 1 | I16: ZG5VIS | J16: 23.25 | K16: 6.75 | L16: 1.62 | M16: 31.62 | O16: LG7JaNee | P16: Z672 ZZP 7lg incl.bh excl.db | Q16: Z672 | R16: 230.31 | S16: 51.34 | T16: 281.65 | U16: 23.34 | W16: 2.45 | X16: 25.79 | Z16: ZG5VIS | AA16: x | AB16: x | AC16: x | AD16: x | AF16: 10:30:00 | AJ16: 1.5
A17: 20 | B17: 's Heeren Zorggroep | C17: 3020 | D17: De Friesland | E17: Zorgkantoor Friesland | G17: 2 | O17: LG7JaJa | P17: Z673 ZZP 7lg incl.bh incl.db | Q17: Z673 | R17: 243.78 | S17: 54.68 | T17: 298.46 | U17: 23.34 | V17: 4.44 | W17: 2.45 | X17: 30.23 | AF17: 10:45:00 | AJ17: 2
A18: 21 | B18: 's Heeren Loo Zorggroep | C18: 3010 | D18: Menzis | E18: Zorgkantoor Groningen | G18: 3 | O18: LVG4JaJa | P18: Z543 ZZP 4lvg incl.bh incl.db | Q18: Z543 | R18: 281.31 | S18: 56.02 | T18: 337.33 | U18: 23.15 | V18: 2.3 | W18: 4.48 | X18: 29.93 | AF18: 11:00:00 | AJ18: 2.5
A19: 24 | B19: S' Heeren Loo Zorggroep | C19: 3070 | D19: Menzis | E19: Zorgkantoor Arnhem | G19: 4 | O19: LVG5JaJa | P19: Z553 ZZP 5lvg incl.bh incl.db | Q19: Z553 | R19: 263.84 | S19: 55.78 | T19: 319.62 | U19: 23.15 | V19: 2.3 | W19: 4.48 | X19: 29.93 | AF19: 11:15:00 | AJ19: 3
A20: 26 | B20: S' Heeren Loo Zorggroep | C20: 3120 | D20: UVIT | E20: Zorgkantoor Noord-Holland Noord | G20: 5 | O20: SGLVGJaJa | P20: Z573 ZZP 1sglvg incl.bh incl.db | Q20: Z573 | R20: 278.03 | S20: 92.68 | T20: 370.71 | U20: 31.7 | V20: 4 | W20: 3.73 | X20: 39.43 | AF20: 11:30:00 | AJ20: 3.5
A21: 27 | B21: S' Heeren Loo Zorggroep | C21: 3170 | D21: ZorgZekerheid | E21: Zorgkantoor Zuid-Holland Noord | G21: 6 | O21: VG5NeeNee | P21: Z454 ZZP 5vg excl.bh excl.db | Q21: Z454 | R21: 122.45 | S21: 31.63 | T21: 154.08 | U21: 16.71 | X21: 16.71 | AF21: 11:45:00 | AJ21: 4
A22: 28 | B22: Het Westerhonk | C22: 3190 | D22: DSW | E22: Zorgkantoor Delft Westland Oostland | G22: 7 | O22: VG5NeeJa | P22: Z455 ZZP 5vg excl.bh incl.db | Q22: Z455 | R22: 160.97 | S22: 41.57 | T22: 202.54 | U22: 16.71 | V22: 6.76 | X22: 23.47 | AF22: 12:00:00 | AJ22: 4.5
A23: 29 | B23: 's Heeren Loo Zorggroep | C23: 3240 | D23: UVIT | E23: Zorgkantoor Waardenland | O23: VG5JaNee | P23: Z456 ZZP 5vg incl.bh excl.db | Q23: Z456 | R23: 151.55 | S23: 39.17 | T23: 190.72 | U23: 16.71 | W23: 1.24 | X23: 17.95 | AF23: 12:15:00 | AJ23: 5
A24: 31 | B24: S' Heeren Loo Zorggroep | C24: 3061 | D24: Salland | E24: Zorgkantoor Midden IJssel | G24: cao | O24: VG5JaJa | P24: Z457 ZZP 5vg incl.bh incl.db | Q24: Z457 | R24: 187.57 | S24: 48.96 | T24: 236.53 | U24: 16.71 | V24: 6.76 | W24: 1.24 | X24: 24.71 | AF24: 12:30:00 | AJ24: 5.5
A25: 32 | B25: Stichting Woon- en Zorgcentrum Friso | C25: 3050 | D25: Menzis | E25: Zorgkantoor Twente | G25: GHZ | H25: 2 | O25: VG7NeeNee | P25: Z470 ZZP 7vg excl.bh excl.db | Q25: Z470 | R25: 134.75 | S25: 32.47 | T25: 167.22 | U25: 21.12 | X25: 21.12 | AF25: 12:45:00 | AJ25: 6
A26: 33 | B26: Stichting Baalderborg Groep | C26: 3040 | D26: Achmea | E26: Zorgkantoor Zwolle | G26: VVT | H26: 3 | O26: VG7NeeJa | P26: Z471 ZZP 7vg excl.bh incl.db | Q26: Z471 | R26: 177.81 | S26: 44.65 | T26: 222.46 | U26: 21.12 | V26: 10.91 | X26: 32.03 | AF26: 13:00:00 | AJ26: 6.5
A27: 34 | B27: Stichting Boogh | C27: 3090 | D27: Achmea | E27: Zorgkantoor Utrecht | G27: GGZ | H27: 4 | O27: VG7JaNee | P27: Z472 ZZP 7vg incl.bh excl.db | Q27: Z472 | R27: 193.55 | S27: 45.96 | T27: 239.51 | U27: 21.12 | W27: 1.7 | X27: 22.82 | AF27: 13:15:00 | AJ27: 7
A28: 35 | B28: Woon- Zorg- en Dienstencentrum 't Dijkhuis | C28: 3061 | D28: Salland | E28: Zorgkantoor Midden IJssel | O28: VG7JaJa | P28: Z473 ZZP 7vg incl.bh incl.db | Q28: Z473 | R28: 246.52 | S28: 60.12 | T28: 306.64 | U28: 21.12 | V28: 10.91 | W28: 1.7 | X28: 33.73 | AF28: 13:30:00 | AJ28: 7.5
A29: 36 | B29: Stichting Rosengaerde | C29: 3040 | D29: Achmea | E29: Zorgkantoor Zwolle | O29: VG8NeeNee | P29: Z480 ZZP 8vg excl.bh excl.db | Q29: Z480 | R29: 146.34 | S29: 35 | T29: 181.34 | U29: 21.02 | X29: 21.02 | AF29: 13:45:00 | AJ29: 8
A30: 37 | B30: Stichting Omega | C30: 3150 | D30: Achmea | E30: Zorgkantoor Amsterdam | O30: VG8NeeJa | P30: Z481 ZZP 8vg excl.bh incl.db | Q30: Z481 | R30: 203.63 | S30: 45.89 | T30: 249.52 | U30: 21.02 | V30: 6.76 | X30: 27.78 | AF30: 14:00:00 | AJ30: 8.5
A31: 38 | B31: Stichting Woon- en Zorgcentrum Humanitas | C31: 3061 | D31: Salland | E31: Zorgkantoor Midden IJssel | O31: VG8JaNee | P31: Z482 ZZP 8vg incl.bh excl.db | Q31: Z482 | R31: 181.55 | S31: 43.3 | T31: 224.85 | U31: 21.02 | W31: 1.24 | X31: 22.26 | AF31: 14:15:00 | AJ31: 9
A32: 39 | B32: Herfstzon, Wooncentrum voor Ouderen | C32: 3050 | D32: Menzis | E32: Zorgkantoor Twente | O32: VG8JaJa | P32: Z483 ZZP 8vg incl.bh incl.db | Q32: Z483 | R32: 235.02 | S32: 56.5 | T32: 291.52 | U32: 21.02 | V32: 6.76 | W32: 1.24 | X32: 29.02 | AF32: 14:30:00 | AJ32: 9.5
A33: 40 | B33: Zienn (SMO Fryslan) | C33: 3020 | D33: De Friesland | E33: Zorgkantoor Friesland | O33: VV7NeeJa | P33: Z071 ZZP 7vv excl.bh incl.db | Q33: Z071 | R33: 162.23 | S33: 54.08 | T33: 216.31 | U33: 19 | V33: 1.49 | X33: 20.49 | AF33: 14:45:00 | AJ33: 10
A34: 41 | B34: Stichting Radar | C34: 3310 | D34: CZ | E34: Zorgkantoor Zuid-Limburg | O34: VV7JaJa | P34: Z073 ZZP 7vv incl.bh incl.db | Q34: Z073 | R34: 192.31 | S34: 64.1 | T34: 256.41 | U34: 19 | V34: 1.49 | W34: 2 | X34: 22.49 | AF34: 15:00:00 | AJ34: 11
A35: 42 | B35: Stichting De Haardstee | C35: 3170 | D35: ZorgZekerheid | E35: Zorgkantoor Zuid-Holland Noord | O35: VV8NeeJa | P35: Z081 ZZP 8vv excl.bh incl.db | Q35: Z081 | R35: 189.31 | S35: 63.1 | T35: 252.41 | U35: 24.1 | V35: 0.92 | X35: 25.02 | AF35: 15:15:00 | AJ35: 12
A36: 44 | B36: Prot. Chr. Stichting voor Ouderenzorg Huize Vriezenhof | C36: 3050 | D36: Menzis | E36: Zorgkantoor Twente | O36: VV8JaJa | P36: Z083 ZZP 8vv incl.bh incl.db | Q36: Z083 | R36: 219.41 | S36: 73.14 | T36: 292.55 | U36: 24.1 | V36: 0.92 | W36: 2 | X36: 27.02 | AF36: 15:30:00 | AJ36: 13
A37: 45 | B37: Stichting De Parabool | C37: 3061 | D37: Salland | E37: Zorgkantoor Midden IJssel | O37: ZG3AUDNeeNee | P37: Z730 ZZP 3zg-auditief excl.bh excl.db | Q37: Z730 | R37: 255.79 | S37: 61.37 | T37: 317.16 | U37: 32.58 | X37: 32.58 | AF37: 15:45:00 | AJ37: 14
A38: 47 | B38: Stichting Verzorgingshuis Talma Apeldoorn | C38: 3060 | D38: Achmea | E38: Zorgkantoor Apeldoorn/Zutphen | O38: ZG3AUDNeeJa | P38: Z731 ZZP 3zg-auditief excl.bh incl.db | Q38: Z731 | R38: 270.57 | S38: 79.46 | T38: 350.03 | U38: 32.58 | V38: 10.59 | X38: 43.17 | AF38: 16:00:00 | AJ38: 15
A39: 48 | B39: Stichting Vreedenhoff | C39: 3070 | D39: Menzis | E39: Zorgkantoor Arnhem | O39: ZG3AUDJaNee | P39: Z732 ZZP 3zg-auditief incl.bh excl.db | Q39: Z732 | R39: 289.28 | S39: 33.94 | T39: 323.22 | U39: 32.58 | W39: 1.71 | X39: 34.29 | AF39: 16:15:00 | AJ39: 16
A40: 49 | B40: Hervormde Stichting tot Verzorging van Ouderen | C40: 3070 | D40: Menzis | E40: Zorgkantoor Arnhem | O40: ZG3AUDJaJa | P40: Z733 ZZP 3zg-auditief incl.bh incl.db | Q40: Z733 | R40: 357.52 | S40: 55.62 | T40: 413.14 | U40: 32.58 | V40: 10.59 | W40: 1.71 | X40: 44.88 | AF40: 16:30:00 | AJ40: 17
A41: 53 | B41: Stichting Bethanië | C41: 3070 | D41: Menzis | E41: Zorgkantoor Arnhem | O41: ZG5VISNeeNee | P41: Z850 ZZP 5zg-visueel excl.bh excl.db | Q41: Z850 | R41: 147.68 | S41: 49.23 | T41: 196.91 | U41: 23.25 | X41: 23.25 | AF41: 16:45:00 | AJ41: 18
A42: 54 | B42: Stichting Het Maanderzand Gereformeerd Verzorgingshuis | C42: 3070 | D42: Menzis | E42: Zorgkantoor Arnhem | O42: ZG5VISNeeJa | P42: Z851 ZZP 5zg-visueel excl.bh incl.db | Q42: Z851 | R42: 185.43 | S42: 61.81 | T42: 247.24 | U42: 23.25 | V42: 6.75 | X42: 30 | AF42: 17:00:00 | AJ42: 19
A43: 56 | B43: Stichting Dichterbij | C43: 3080 | D43: UVIT | E43: Zorgkantoor Nijmegen | O43: ZG5VISJaNee | P43: Z852 ZZP 5zg-visueel incl.bh excl.db | Q43: Z852 | R43: 170.64 | S43: 56.88 | T43: 227.52 | U43: 23.25 | W43: 1.62 | X43: 24.87 | AF43: 17:15:00 | AJ43: 20
A44: 63 | B44: Malderburch, centrum voor welzijn, wonen en zorg | C44: 3080 | D44: UVIT | E44: Zorgkantoor Nijmegen | O44: ZG5VISJaJa | P44: Z853 ZZP 5zg-visueel incl.bh incl.db | Q44: Z853 | R44: 208.37 | S44: 69.46 | T44: 277.83 | U44: 23.25 | V44: 6.75 | W44: 1.62 | X44: 31.62 | AF44: 17:30:00
A45: 64 | B45: Protestants-Christelijk Zorgcentrum | C45: 3280 | D45: UVIT | E45: Zorgkantoor Noordoost-Brabant | AF45: 17:45:00
A46: 65 | B46: Stichting Protestants Christelijk Zorgcentrum 't Anker | C46: 3080 | D46: UVIT | E46: Zorgkantoor Nijmegen | AF46: 18:00:00
A47: 66 | B47: Stichting Woon- en Zorgcentrum Avondlicht | C47: 3080 | D47: UVIT | E47: Zorgkantoor Nijmegen | AF47: 18:15:00
A48: 67 | B48: Stichting OlmenEs | C48: 3020 | D48: De Friesland | E48: Zorgkantoor Friesland | AF48: 18:30:00
A49: 68 | B49: Stichting Gasthuis St. Jan de Deo | C49: 3080 | D49: UVIT | E49: Zorgkantoor Nijmegen | AF49: 18:45:00
A50: 69 | B50: Stichting De Wittenberg | C50: 3080 | D50: UVIT | E50: Zorgkantoor Nijmegen | AF50: 19:00:00
A51: 71 | B51: Stichting De Ark Gemeenschap Regio Gouda | C51: 3200 | D51: UVIT | E51: Zorgkantoor Midden-Holland | AF51: 19:15:00
A52: 72 | B52: Stichting Dienstencentrum Oud Burgeren Gasthuis | C52: 3080 | D52: UVIT | E52: Zorgkantoor Nijmegen | AF52: 19:30:00
A53: 75 | B53: Stichting Maeykehiem | C53: 3020 | D53: De Friesland | E53: Zorgkantoor Friesland | AF53: 19:45:00
A54: 76 | B54: Stichting Koraal Groep (Noordoost-Brabant) | C54: 3280 | D54: UVIT | E54: Zorgkantoor Noordoost-Brabant | AF54: 20:00:00
A55: 77 | B55: Stichting Koraal Groep (Midden-Brabant) | C55: 3270 | D55: UVIT | E55: Zorgkantoor Midden-Brabant | AF55: 20:15:00
A56: 78 | B56: Stichting Koraal Groep (Noord-Limburg) | C56: 3300 | D56: UVIT | E56: Zorgkantoor Noord en Midden Limburg | AF56: 20:30:00
A57: 79 | B57: Stichting Koraal Groep (Zuid-Limburg) | C57: 3310 | D57: CZ | E57: Zorgkantoor Zuid-Limburg | AF57: 20:45:00
A58: 80 | B58: Stichting Sterk in Werk | C58: 3280 | D58: UVIT | E58: Zorgkantoor Noordoost-Brabant | AF58: 21:00:00
A59: 82 | B59: Stichting Daelzicht (Noord-Limburg) | C59: 3300 | D59: UVIT | E59: Zorgkantoor Noord en Midden Limburg | AF59: 21:15:00
A60: 83 | B60: Stichting Daelzicht (Zuid-Limburg) | C60: 3310 | D60: CZ | E60: Zorgkantoor Zuid-Limburg | AF60: 21:30:00
A61: 84 | B61: Stichting Zorg-wooncentrum Den Bouw | C61: 3060 | D61: Achmea | E61: Zorgkantoor Apeldoorn/Zutphen | AF61: 21:45:00
A62: 85 | B62: St. Barbara | C62: 3080 | D62: UVIT | E62: Zorgkantoor Nijmegen | AF62: 22:00:00
A63: 86 | B63: Stichting Esdégé/Reigersdaal | C63: 3120 | D63: UVIT | E63: Zorgkantoor Noord-Holland Noord | AF63: 22:15:00
A64: 87 | B64: Stichting Zorgrésidence Regina | C64: 3070 | D64: Menzis | E64: Zorgkantoor Arnhem | AF64: 22:30:00
A65: 88 | B65: Stichting Verzorgingshuis De Koperhorst | C65: 3090 | D65: Achmea | E65: Zorgkantoor Utrecht | AF65: 22:45:00
A66: 89 | B66: Stichting Sint Pieters en Bloklands Gasthuis | C66: 3090 | D66: Achmea | E66: Zorgkantoor Utrecht | AF66: 23:00:00
A67: 91 | B67: Koninklijke Visio (West-Brabant) | C67: 3260 | D67: CZ | E67: Zorgkantoor West-Brabant
A68: 92 | B68: Koninklijke Visio, LSSB (Groningen) | C68: 3010 | D68: Menzis | E68: Zorgkantoor Groningen
A69: 99 | B69: Stichting Zorg- en Wooncentrum De Haven | C69: 3090 | D69: Achmea | E69: Zorgkantoor Utrecht
A70: 100 | B70: Maria Dommer Stichting van 1835 | C70: 3090 | D70: Achmea | E70: Zorgkantoor Utrecht
A71: 101 | B71: Stichting Ouderenzorg Oudewater | C71: 3090 | D71: Achmea | E71: Zorgkantoor Utrecht
A72: 102 | B72: Stichting Reinaerde | C72: 3090 | D72: Achmea | E72: Zorgkantoor Utrecht
A73: 103 | B73: Stichting Vecht en IJssel | C73: 3090 | D73: Achmea | E73: Zorgkantoor Utrecht
A74: 104 | B74: GGNet | C74: 3060 | D74: Achmea | E74: Zorgkantoor Apeldoorn/Zutphen
A75: 105 | B75: Stichting Bartholomeus Gasthuis | C75: 3090 | D75: Achmea | E75: Zorgkantoor Utrecht
A76: 106 | B76: Stichting Orion | C76: 3210 | D76: Achmea | E76: Zorgkantoor Rotterdam
A77: 107 | B77: Stichting Pluryn (Apeldoorn/Zutphen e.o.) | C77: 3060 | D77: Achmea | E77: Zorgkantoor Apeldoorn/Zutphen
A78: 108 | B78: Stichting Pluryn (Nijmegen) | C78: 3080 | D78: UVIT | E78: Zorgkantoor Nijmegen
A79: 109 | B79: Stichting Pluryn (Arnhem) | C79: 3070 | D79: Menzis | E79: Zorgkantoor Arnhem
A80: 111 | B80: Stichting Hervormd Gemeentelijk Zorgcentrum Aelsmeer | C80: 3160 | D80: ZorgZekerheid | E80: Zorgkantoor Amstelland en De Meerlanden
A81: 114 | B81: Stichting De Zijlen | C81: 3010 | D81: Menzis | E81: Zorgkantoor Groningen
A82: 115 | B82: Stichting De Passerel | C82: 3060 | D82: Achmea | E82: Zorgkantoor Apeldoorn/Zutphen
A83: 116 | B83: Zideris (Utrecht) | C83: 3090 | D83: Achmea | E83: Zorgkantoor Utrecht
A84: 117 | B84: Raphaëlstichting (Noord-Holland Noord) | C84: 3120 | D84: UVIT | E84: Zorgkantoor Noord-Holland Noord
A85: 120 | B85: Parnassia Groep | C85: 3070 | D85: Menzis | E85: Zorgkantoor Arnhem
A86: 121 | B86: RIBW Arnhem & Veluwe Vallei | C86: 3070 | D86: Menzis | E86: Zorgkantoor Arnhem
A87: 123 | B87: Stichting SOVAK | C87: 3260 | D87: CZ | E87: Zorgkantoor West-Brabant
A88: 124 | B88: Stichting Nieuw Woelwijck | C88: 3010 | D88: Menzis | E88: Zorgkantoor Groningen
A89: 125 | B89: Stichting Ilmarinen | C89: 3010 | D89: Menzis | E89: Zorgkantoor Groningen
A90: 126 | B90: Stichting De Lichtenvoorde | C90: 3070 | D90: Menzis | E90: Zorgkantoor Arnhem
A91: 128 | B91: Stichting Hervormd Centrum Pennemes | C91: 3140 | D91: Achmea | E91: Zorgkantoor Zaanstreek/Waterland
A92: 129 | B92: Stichting Doopsgezind Zorgcentrum Het Mennistenerf | C92: 3140 | D92: Achmea | E92: Zorgkantoor Zaanstreek/Waterland
A93: 130 | B93: RIBW Nijmegen en Rivierenland | C93: 3080 | D93: UVIT | E93: Zorgkantoor Nijmegen
A94: 132 | B94: Protestants Christelijke Stichting voor Wonen en Zorg | C94: 3120 | D94: UVIT | E94: Zorgkantoor Noord-Holland Noord
A95: 133 | B95: Burgemeester De Boer-Stichting | C95: 3240 | D95: UVIT | E95: Zorgkantoor Waardenland
A96: 134 | B96: Stichting Leger des Heils Welzijns- en Gezondheidszorg | C96: 3240 | D96: UVIT | E96: Zorgkantoor Waardenland
A97: 137 | B97: Protestants Interkerkelijke Stichting Zorgcentrum Groot Hoogwaak | C97: 3170 | D97: ZorgZekerheid | E97: Zorgkantoor Zuid-Holland Noord
A98: 138 | B98: Stichting FRION | C98: 3040 | D98: Achmea | E98: Zorgkantoor Zwolle
A99: 139 | B99: Jacobs Gasthuis centrum voor verzorgend wonen | C99: 3190 | D99: DSW | E99: Zorgkantoor Delft Westland Oostland
A100: 140 | B100: Wilhelmina Alida Stichting | C100: 3180 | D100: CZ | E100: Zorgkantoor Haaglanden
A101: 141 | B101: Stichting Swinhove Groep (vh St.Zorg Woonzorggroep Zwijndrechtse Waard) | C101: 3240 | D101: UVIT | E101: Zorgkantoor Waardenland
A102: 143 | B102: Stichting Protestants Christelijke Zorgorganisatie De Riederborgh | C102: 3230 | D102: CZ | E102: Zorgkantoor Zuid-Hollandse Eilanden
A103: 144 | B103: *Stichting ZorgBreed | C103: 3210 | D103: Achmea | E103: Zorgkantoor Rotterdam
A104: 145 | B104: Stichting R.K. Zorgcentrum Roomburgh | C104: 3170 | D104: ZorgZekerheid | E104: Zorgkantoor Zuid-Holland Noord
A105: 149 | B105: Stichting Zuidwester (Rotterdam) | C105: 3210 | D105: Achmea | E105: Zorgkantoor Rotterdam
A106: 150 | B106: Harg Spaland centrum voor zorg en wonen | C106: 3190 | D106: DSW | E106: Zorgkantoor Delft Westland Oostland
A107: 151 | B107: Stichting Siloah (Twente) | C107: 3050 | D107: Menzis | E107: Zorgkantoor Twente
A108: 152 | B108: Stichting Siloah (Arnhem) | C108: 3070 | D108: Menzis | E108: Zorgkantoor Arnhem
A109: 153 | B109: Stichting Siloah (Zeeland) | C109: 3250 | D109: CZ | E109: Zorgkantoor Zeeland
A110: 154 | B110: Stichting Siloah (Midden-Holland) | C110: 3200 | D110: UVIT | E110: Zorgkantoor Midden-Holland
A111: 157 | B111: Huis Ter Leede | C111: 3240 | D111: UVIT | E111: Zorgkantoor Waardenland
A112: 158 | B112: Schiewaegh centrum voor wonen, zorg en welzijn | C112: 3190 | D112: DSW | E112: Zorgkantoor Delft Westland Oostland
A113: 159 | B113: Vaartland service- en zorgcentrum | C113: 3190 | D113: DSW | E113: Zorgkantoor Delft Westland Oostland
A114: 160 | B114: Stichting Woongemeenschap voor Ouderen | C114: 3230 | D114: CZ | E114: Zorgkantoor Zuid-Hollandse Eilanden
A115: 161 | B115: Stichting Woonzorgcentrum De Zeeg | C115: 3070 | D115: Menzis | E115: Zorgkantoor Arnhem
A116: 162 | B116: Dr. Henri van der Hoevenkliniek | C116: 3090 | D116: Achmea | E116: Zorgkantoor Utrecht
A117: 163 | B117: Hervormde Stichting Bejaardenzorg Capelle aan den IJssel | C117: 3210 | D117: Achmea | E117: Zorgkantoor Rotterdam
A118: 164 | B118: Stichting De Rozelaar | C118: 3070 | D118: Menzis | E118: Zorgkantoor Arnhem
A119: 166 | B119: Stichting Het Spectrum | C119: 3240 | D119: UVIT | E119: Zorgkantoor Waardenland
A120: 167 | B120: Stichting De Zevenster | C120: 3200 | D120: UVIT | E120: Zorgkantoor Midden-Holland
A121: 170 | B121: Stichting Amarant | C121: 3290 | D121: CZ | E121: Zorgkantoor Zuidoost-Brabant
A122: 171 | B122: Stichting Amarant | C122: 3280 | D122: UVIT | E122: Zorgkantoor Noordoost-Brabant
A123: 176 | B123: Stichting Herman Frantsenhuizen | C123: 3190 | D123: DSW | E123: Zorgkantoor Delft Westland Oostland
A124: 177 | B124: Stichting Sjaloom Zorg | C124: 3230 | D124: CZ | E124: Zorgkantoor Zuid-Hollandse Eilanden
A125: 178 | B125: Stichting Arduin | C125: 3250 | D125: CZ | E125: Zorgkantoor Zeeland
A126: 180 | B126: Stichting Tragel Zorg | C126: 3250 | D126: CZ | E126: Zorgkantoor Zeeland
A127: 181 | B127: Stichting Ouderenzorg Kapelle | C127: 3250 | D127: CZ | E127: Zorgkantoor Zeeland
A128: 182 | B128: Juvent jeugd & opvoedhulp Zeeland | C128: 3250 | D128: CZ | E128: Zorgkantoor Zeeland
A129: 183 | B129: Schutse Zorg Tholen | C129: 3250 | D129: CZ | E129: Zorgkantoor Zeeland
A130: 184 | B130: Prisma (Midden-Brabant) | C130: 3270 | D130: UVIT | E130: Zorgkantoor Midden-Brabant
A131: 186 | B131: Stichting Ipse de Bruggen | C131: 3170 | D131: ZorgZekerheid | E131: Zorgkantoor Zuid-Holland Noord
A132: 187 | B132: Stichting Ipse de Bruggen | C132: 3180 | D132: CZ | E132: Zorgkantoor Haaglanden
A133: 191 | B133: Stichting Ipse de Bruggen (Zuid-Hollandse Eilanden) | C133: 3230 | D133: CZ | E133: Zorgkantoor Zuid-Hollandse Eilanden
A134: 193 | B134: Stichting Eilandzorg Schouwen-Duiveland | C134: 3250 | D134: CZ | E134: Zorgkantoor Zeeland
A135: 195 | B135: Stichting Ruitersbos | C135: 3260 | D135: CZ | E135: Zorgkantoor West-Brabant
A136: 198 | B136: Stichting De Wijngaerd | C136: 3260 | D136: CZ | E136: Zorgkantoor West-Brabant
A137: 199 | B137: Stichting Zorgorganisatie Het Hoge Veer | C137: 3260 | D137: CZ | E137: Zorgkantoor West-Brabant
A138: 200 | B138: Stichting Verzorging Sint Franciscus | C138: 3270 | D138: UVIT | E138: Zorgkantoor Midden-Brabant
A139: 202 | B139: Stichting Pameijer | C139: 3210 | D139: Achmea | E139: Zorgkantoor Rotterdam
A140: 205 | B140: Stichting Pameijer | C140: 3190 | D140: DSW | E140: Zorgkantoor Delft Westland Oostland
A141: 206 | B141: Stichting Pameijer | C141: 3210 | D141: Achmea | E141: Zorgkantoor Rotterdam
A142: 207 | B142: Stichting Pameijer | C142: 3230 | D142: CZ | E142: Zorgkantoor Zuid-Hollandse Eilanden
A143: 209 | B143: Stichting De Duynsberg | C143: 3270 | D143: UVIT | E143: Zorgkantoor Midden-Brabant
A144: 210 | B144: Stichting Het Laar | C144: 3270 | D144: UVIT | E144: Zorgkantoor Midden-Brabant
A145: 211 | B145: Vanboeijen | C145: 3030 | D145: Achmea | E145: Zorgkantoor Drenthe
A146: 212 | B146: Stichting Woonzorgcentrum De Annenborch | C146: 3280 | D146: UVIT | E146: Zorgkantoor Noordoost-Brabant
A147: 213 | B147: Stichting Gemiva-SVG Groep (Zuid-Holland Noord) | C147: 3170 | D147: ZorgZekerheid | E147: Zorgkantoor Zuid-Holland Noord
A148: 214 | B148: Stichting Gemiva-SVG Groep (Haaglanden) | C148: 3180 | D148: CZ | E148: Zorgkantoor Haaglanden
A149: 215 | B149: Stichting Gemiva-SVG Groep (Midden-Holland) | C149: 3200 | D149: UVIT | E149: Zorgkantoor Midden-Holland
A150: 216 | B150: Stichting Gemiva-SVG Groep (Rotterdam) | C150: 3210 | D150: Achmea | E150: Zorgkantoor Rotterdam
A151: 217 | B151: Stichting Gemiva-SVG Groep (Zuid-Hollandse Eilanden) | C151: 3230 | D151: CZ | E151: Zorgkantoor Zuid-Hollandse Eilanden
A152: 218 | B152: Stichting Gemiva-SVG Groep (Waardenland) | C152: 3240 | D152: UVIT | E152: Zorgkantoor Waardenland
A153: 219 | B153: Stichting Gemiva-SVG Groep (Gouda) | C153: 3190 | D153: DSW | E153: Zorgkantoor Delft Westland Oostland
A154: 220 | B154: Stichting Estinea | C154: 3070 | D154: Menzis | E154: Zorgkantoor Arnhem
A155: 221 | B155: RIBW Kennemerland, Amstelland en de Meerlanden | C155: 3130 | D155: Achmea | E155: Zorgkantoor Kennemerland
A156: 222 | B156: Stichting Driestroom | C156: 3070 | D156: Menzis | E156: Zorgkantoor Arnhem
A157: 223 | B157: Stichting Driestroom | C157: 3080 | D157: UVIT | E157: Zorgkantoor Nijmegen
A158: 224 | B158: Stichting Odion | C158: 3140 | D158: Achmea | E158: Zorgkantoor Zaanstreek/Waterland
A159: 226 | B159: Stichting Philadelphia Zorg (Twente) | C159: 3050 | D159: Menzis | E159: Zorgkantoor Twente
A160: 227 | B160: Stichting Philadelphia Zorg (Apeldoorn/Zutphen e.o.) | C160: 3060 | D160: Achmea | E160: Zorgkantoor Apeldoorn/Zutphen
A161: 228 | B161: Stichting Philadelphia Zorg (Arnhem) | C161: 3070 | D161: Menzis | E161: Zorgkantoor Arnhem
A162: 229 | B162: Stichting Philadelphia Zorg (Utrecht) | C162: 3090 | D162: Achmea | E162: Zorgkantoor Utrecht
A163: 230 | B163: Stichting Philadelphia Zorg (Noord-Holland Noord) | C163: 3120 | D163: UVIT | E163: Zorgkantoor Noord-Holland Noord
A164: 231 | B164: Stichting Philadelphia Zorg (Zaanstreek / Waterland) | C164: 3140 | D164: Achmea | E164: Zorgkantoor Zaanstreek/Waterland
A165: 232 | B165: Stichting Philadelphia Zorg (Kennemerland) | C165: 3130 | D165: Achmea | E165: Zorgkantoor Kennemerland
A166: 233 | B166: Stichting Philadelphia Zorg (Amsterdam) | C166: 3150 | D166: Achmea | E166: Zorgkantoor Amsterdam
A167: 234 | B167: Stichting Philadelphia Zorg ('t Gooi) | C167: 3110 | D167: Achmea | E167: Zorgkantoor 't Gooi
A168: 235 | B168: Stichting Philadelphia Zorg (Haaglanden) | C168: 3180 | D168: CZ | E168: Zorgkantoor Haaglanden
A169: 236 | B169: Stichting Philadelphia Zorg (Zuid-Hollandse Eilanden) | C169: 3230 | D169: CZ | E169: Zorgkantoor Zuid-Hollandse Eilanden
A170: 237 | B170: Stichting Philadelphia Zorg (Zuid-Holland Noord) | C170: 3170 | D170: ZorgZekerheid | E170: Zorgkantoor Zuid-Holland Noord
A171: 239 | B171: Stichting Philadelphia Zorg (Midden-Holland) | C171: 3200 | D171: UVIT | E171: Zorgkantoor Midden-Holland
A172: 241 | B172: Stichting Philadelphia Zorg (Friesland) | C172: 3020 | D172: De Friesland | E172: Zorgkantoor Friesland
A173: 242 | B173: Stichting Philadelphia Zorg (Zuid-Limburg) | C173: 3310 | D173: CZ | E173: Zorgkantoor Zuid-Limburg
A174: 243 | B174: Stichting Philadelphia Zorg (Zeeland) | C174: 3250 | D174: CZ | E174: Zorgkantoor Zeeland
A175: 244 | B175: Stichting Philadelphia Zorg (Noordoost-Brabant) | C175: 3280 | D175: UVIT | E175: Zorgkantoor Noordoost-Brabant
A176: 245 | B176: Stichting Philadelphia Zorg (Waardenland) | C176: 3240 | D176: UVIT | E176: Zorgkantoor Waardenland
A177: 246 | B177: Stichting Philadelphia Zorg Groot Rijnmond (Rotterdam) | C177: 3210 | D177: Achmea | E177: Zorgkantoor Rotterdam
A178: 247 | B178: Stichting Philadelphia Zorg (West-Brabant) | C178: 3260 | D178: CZ | E178: Zorgkantoor West-Brabant
A179: 248 | B179: Stichting Philadelphia Zorg (Groningen) | C179: 3010 | D179: Menzis | E179: Zorgkantoor Groningen
A180: 249 | B180: Stichting Philadelphia Zorg (Noord-Limburg) | C180: 3300 | D180: UVIT | E180: Zorgkantoor Noord en Midden Limburg
A181: 250 | B181: Stichting Philadelphia Zorg (Midden Brabant) | C181: 3270 | D181: UVIT | E181: Zorgkantoor Midden-Brabant
A182: 251 | B182: Stichting Philadelphia Zorg | C182: 3100 | D182: Achmea | E182: Zorgkantoor Flevoland
A183: 253 | B183: Stichting Ouderencentrum Huize Beek en Bos | C183: 3300 | D183: UVIT | E183: Zorgkantoor Noord en Midden Limburg
A184: 255 | B184: R.K. Stichting St. Jozef | C184: 3300 | D184: UVIT | E184: Zorgkantoor Noord en Midden Limburg
A185: 256 | B185: RIBW HVO-Querido | C185: 3150 | D185: Achmea | E185: Zorgkantoor Amsterdam
A186: 258 | B186: Stichting Sprank (Groningen) | C186: 3010 | D186: Menzis | E186: Zorgkantoor Groningen
A187: 259 | B187: Stichting Sprank (Delft Westland Oostland) | C187: 3190 | D187: DSW | E187: Zorgkantoor Delft Westland Oostland
A188: 260 | B188: Stichting Sprank (Zwolle) | C188: 3040 | D188: Achmea | E188: Zorgkantoor Zwolle
A189: 261 | B189: RIBW Zaanstreek/Waterland en West-Friesland | C189: 3140 | D189: Achmea | E189: Zorgkantoor Zaanstreek/Waterland
A190: 265 | B190: Zorgcentrum Talma Haven | C190: 3100 | D190: Achmea | E190: Zorgkantoor Flevoland
A191: 266 | B191: Stichting Joods Bejaardencentrum 's-Gravenhage | C191: 3180 | D191: CZ | E191: Zorgkantoor Haaglanden
A192: 267 | B192: Stichting Cavent | C192: 3230 | D192: CZ | E192: Zorgkantoor Zuid-Hollandse Eilanden
A193: 268 | B193: Stichting De Gelderhorst Centrum voor Oudere Doven | C193: 3070 | D193: Menzis | E193: Zorgkantoor Arnhem
A194: 270 | B194: Stichting Camphill-Gemeenschap Maartenhuis | C194: 3120 | D194: UVIT | E194: Zorgkantoor Noord-Holland Noord
A195: 271 | B195: Vegetarisch Zorgcentrum Felixoord | C195: 3070 | D195: Menzis | E195: Zorgkantoor Arnhem
A196: 272 | B196: Stichting Missiehuis Vrijland | C196: 3070 | D196: Menzis | E196: Zorgkantoor Arnhem
A197: 273 | B197: Robert Coppesstichting | C197: 3280 | D197: UVIT | E197: Zorgkantoor Noordoost-Brabant
A198: 274 | B198: Stichting Het Schild, centrum voor visueel gehandicapte ouderen | C198: 3070 | D198: Menzis | E198: Zorgkantoor Arnhem
A199: 277 | B199: Rosa Spier Stichting | C199: 3110 | D199: Achmea | E199: Zorgkantoor 't Gooi
A200: 280 | B200: Stichting Woonvoorzieningen LG Noord-Holland Midden | C200: 3140 | D200: Achmea | E200: Zorgkantoor Zaanstreek/Waterland
... 1398 more rows

Sheet Data CAO 2019 (verbergen) (hidden)
G1: 1 | K1: Wonen | L1: 0.606 | P1: DB | Q1: 0.618 | U1: BH | V1: 0.474
A2: FWG/trede | B2: GHZ | C2: VVT | D2: GGZ | F2: FWG/trede | G2: GHZ | H2: VVT | I2: GGZ | K2: FWG/trede | L2: GHZ | M2: VVT | N2: GGZ | P2: FWG/trede | Q2: GHZ | R2: VVT | S2: GGZ | U2: FWG/trede | V2: GHZ | W2: VVT | X2: GGZ
A3: 10/0 | B3: =IFERROR(VLOOKUP(A3,'Data CAO GHZ 2019 (verbergen)'!C:K,9,0),"NVT") -> 14.4928115 | C3: =IFERROR(VLOOKUP(A3,'Data CAO VVT 2019 (verbergen)'!C:M,11,0),"NVT") -> 14.14060721 | D3: =IFERROR(VLOOKUP(A3,'Data CAO GGZ 2019 (verbergen)'!C:M,11,0),"NVT") -> 14.81658786 | F3: 10 | G3: =AVERAGE(B3:B13)/$G$1 -> 16.68811719 | H3: 14.8547791 | I3: 16.56242812 | K3: 10 | L3: =G3/$L$1 -> 27.53814719 | M3: 24.51283679 | N3: 27.33073946 | P3: 10 | Q3: =G3/$Q$1 -> 27.00342588 | R3: 24.03685938 | S3: 26.80004549 | U3: 10 | V3: =G3/$V$1 -> 35.2069983 | W3: 31.3391964 | X3: 34.94183147
A4: 10/1 | B4: =IFERROR(VLOOKUP(A4,'Data CAO GHZ 2019 (verbergen)'!C:K,9,0),"NVT") -> 14.75838658 | C4: =IFERROR(VLOOKUP(A4,'Data CAO VVT 2019 (verbergen)'!C:M,11,0),"NVT") -> 14.40776742 | D4: =IFERROR(VLOOKUP(A4,'Data CAO GGZ 2019 (verbergen)'!C:M,11,0),"NVT") -> 15.36360383 | F4: 15 | G4: =AVERAGE(B14:B25)/$G$1 -> 17.43784944 | H4: 17.52708637 | I4: 17.30551054 | K4: 15 | L4: =G4/$L$1 -> 28.77532911 | M4: 28.92258476 | N4: 28.55694809 | P4: 15 | Q4: =G4/$Q$1 -> 28.21658486 | R4: 28.36098118 | S4: 28.00244424 | U4: 15 | V4: =G4/$V$1 -> 36.7887119 | W4: 36.97697546 | X4: 36.50951591
A5: 10/2 | B5: =IFERROR(VLOOKUP(A5,'Data CAO GHZ 2019 (verbergen)'!C:K,9,0),"NVT") -> 15.32747604 | C5: =IFERROR(VLOOKUP(A5,'Data CAO VVT 2019 (verbergen)'!C:M,11,0),"NVT") -> 14.67483178 | D5: =IFERROR(VLOOKUP(A5,'Data CAO GGZ 2019 (verbergen)'!C:M,11,0),"NVT") -> 15.65597444 | F5: 20 | G5: =AVERAGE(B26:B37)/$G$1 -> 18.44245041 | H5: 18.55563669 | I5: 18.08582283 | K5: 20 | L5: =G5/$L$1 -> 30.43308649 | M5: 30.61986253 | N5: 29.84459213 | P5: 20 | Q5: =G5/$Q$1 -> 29.84215277 | R5: 30.02530209 | S5: 29.26508548 | U5: 20 | V5: =G5/$V$1 -> 38.90812323 | W5: 39.14691286 | X5: 38.15574436
A6: 10/3 | B6: =IFERROR(VLOOKUP(A6,'Data CAO GHZ 2019 (verbergen)'!C:K,9,0),"NVT") -> 15.8965655 | C6: =IFERROR(VLOOKUP(A6,'Data CAO VVT 2019 (verbergen)'!C:M,11,0),"NVT") -> 15.2460581 | D6: =IFERROR(VLOOKUP(A6,'Data CAO GGZ 2019 (verbergen)'!C:M,11,0),"NVT") -> 16.07095208 | F6: 25 | G6: =AVERAGE(B38:B49)/$G$1 -> 19.47866747 | H6: 19.41150479 | I6: 19.12755388 | K6: 25 | L6: =G6/$L$1 -> 32.14301562 | M6: 32.03218612 | N6: 31.56362026 | P6: 25 | Q6: =G6/$Q$1 -> 31.51887939 | R6: 31.41020192 | S6: 30.95073443 | U6: 25 | V6: =G6/$V$1 -> 41.09423516 | W6: 40.95254175 | X6: 40.35348919
A7: 10/4 | B7: =IFERROR(VLOOKUP(A7,'Data CAO GHZ 2019 (verbergen)'!C:K,9,0),"NVT") -> 16.19059505 | C7: =IFERROR(VLOOKUP(A7,'Data CAO VVT 2019 (verbergen)'!C:M,11,0),"NVT") -> 15.80463096 | D7: =IFERROR(VLOOKUP(A7,'Data CAO GGZ 2019 (verbergen)'!C:M,11,0),"NVT") -> 16.48592971 | F7: 30 | G7: =AVERAGE(B50:B61)/$G$1 -> 20.50460929 | H7: 19.71532078 | I7: 20.1821458 | K7: 30 | L7: =G7/$L$1 -> 33.83598893 | M7: 32.53353264 | N7: 33.30387096 | P7: 30 | Q7: =G7/$Q$1 -> 33.17897944 | R7: 31.90181356 | S7: 32.65719386 | U7: 30 | V7: =G7/$V$1 -> 43.25866939 | W7: 41.59350375 | X7: 42.57836667
A8: 10/5 | B8: =IFERROR(VLOOKUP(A8,'Data CAO GHZ 2019 (verbergen)'!C:K,9,0),"NVT") -> 16.64586661 | D8: =IFERROR(VLOOKUP(A8,'Data CAO GGZ 2019 (verbergen)'!C:M,11,0),"NVT") -> 16.91033866 | F8: 35 | G8: =AVERAGE(B62:B73)/$G$1 -> 21.68626032 | H8: 21.20458409 | I8: 21.34991345 | K8: 35 | L8: =G8/$L$1 -> 35.78590811 | M8: 34.99106285 | N8: 35.23088028 | P8: 35 | Q8: =G8/$Q$1 -> 35.09103611 | R8: 34.31162474 | S8: 34.54678551 | U8: 35 | V8: =G8/$V$1 -> 45.75160404 | W8: 44.73540947 | X8: 45.04201149
A9: 10/6 | B9: =IFERROR(VLOOKUP(A9,'Data CAO GHZ 2019 (verbergen)'!C:K,9,0),"NVT") -> 17.07268371 | D9: =IFERROR(VLOOKUP(A9,'Data CAO GGZ 2019 (verbergen)'!C:M,11,0),"NVT") -> 17.38190415 | F9: 40 | G9: =AVERAGE(B74:B86)/$G$1 -> 22.89794662 | H9: 23.19191554 | I9: 23.18070877 | K9: 40 | L9: =G9/$L$1 -> 37.78539046 | M9: 38.2704877 | N9: 38.25199468 | P9: 40 | Q9: =G9/$Q$1 -> 37.05169356 | R9: 37.52737143 | S9: 37.5092375 | U9: 40 | V9: =G9/$V$1 -> 48.30790426 | W9: 48.92809186 | X9: 48.90444889
A10: 10/7 | B10: =IFERROR(VLOOKUP(A10,'Data CAO GHZ 2019 (verbergen)'!C:K,9,0),"NVT") -> 17.50898562 | D10: =IFERROR(VLOOKUP(A10,'Data CAO GGZ 2019 (verbergen)'!C:M,11,0),"NVT") -> 17.91005751 | F10: 45 | G10: =AVERAGE(B87:B99)/$G$1 -> 24.93706224 | H10: 26.49787763 | I10: 25.6451826 | K10: 45 | L10: =G10/$L$1 -> 41.15026772 | M10: 43.72587067 | N10: 42.31878317 | P10: 45 | Q10: =G10/$Q$1 -> 40.3512334 | R10: 42.87682464 | S10: 41.49705922 | U10: 45 | V10: =G10/$V$1 -> 52.60983595 | W10: 55.90269542 | X10: 54.10376076
A11: 10/8 | B11: =IFERROR(VLOOKUP(A11,'Data CAO GHZ 2019 (verbergen)'!C:K,9,0),"NVT") -> 18.00219649 | D11: =IFERROR(VLOOKUP(A11,'Data CAO GGZ 2019 (verbergen)'!C:M,11,0),"NVT") -> 18.46650479 | F11: 50 | G11: =AVERAGE(B100:B112)/$G$1 -> 28.5536987 | H11: 29.39413362 | I11: 28.91639617 | K11: 50 | L11: =G11/$L$1 -> 47.11831468 | M11: 48.505171 | N11: 47.71682536 | P11: 50 | Q11: =G11/$Q$1 -> 46.20339595 | R11: 47.56332302 | S11: 46.79028506 | U11: 50 | V11: =G11/$V$1 -> 60.23987067 | W11: 62.01294014 | X11: 61.0050552
A12: 10/9 | B12: =IFERROR(VLOOKUP(A12,'Data CAO GHZ 2019 (verbergen)'!C:K,9,0),"NVT") -> 18.55231629 | F12: 55 | G12: =AVERAGE(B113:B125)/$G$1 -> 32.24329534 | H12: 32.48726237 | I12: 32.54980831 | K12: 55 | L12: =G12/$L$1 -> 53.20675799 | M12: 53.60934384 | N12: 53.71255496 | P12: 55 | Q12: =G12/$Q$1 -> 52.17361706 | R12: 52.56838571 | S12: 52.66959273 | U12: 55 | V12: =G12/$V$1 -> 68.02382984 | W12: 68.5385282 | X12: 68.67048166
A13: 10/10 | B13: =IFERROR(VLOOKUP(A13,'Data CAO GHZ 2019 (verbergen)'!C:K,9,0),"NVT") -> 19.12140575 | F13: 60 | G13: =AVERAGE(B126:B138)/$G$1 -> 36.86678238 | H13: 37.75545453 | I13: 36.70580076 | K13: 60 | L13: =G13/$L$1 -> 60.83627455 | M13: 62.30273025 | N13: 60.57062831 | P13: 60 | Q13: =G13/$Q$1 -> 59.65498767 | R13: 61.0929685 | S13: 59.3944996 | U13: 60 | V13: =G13/$V$1 -> 77.7780219 | W13: 79.65285767 | X13: 77.43839822
A14: 15/0 | B14: =IFERROR(VLOOKUP(A14,'Data CAO GHZ 2019 (verbergen)'!C:K,9,0),"NVT") -> 14.75838658 | C14: =IFERROR(VLOOKUP(A14,'Data CAO VVT 2019 (verbergen)'!C:M,11,0),"NVT") -> 15.80463096 | D14: =IFERROR(VLOOKUP(A14,'Data CAO GGZ 2019 (verbergen)'!C:M,11,0),"NVT") -> 15.36360383 | F14: 65 | G14: =AVERAGE(B139:B154)/$G$1 -> 43.32225106 | H14: 42.99322168 | I14: 43.02200836 | K14: 65 | L14: =G14/$L$1 -> 71.48886314 | M14: 70.94591037 | N14: 70.99341313 | P14: 65 | Q14: =G14/$Q$1 -> 70.10072988 | R14: 69.56831987 | S14: 69.61490025 | U14: 65 | V14: =G14/$V$1 -> 91.39715415 | W14: 90.70299933 | X14: 90.76373071
A15: 15/1 | B15: =IFERROR(VLOOKUP(A15,'Data CAO GHZ 2019 (verbergen)'!C:K,9,0),"NVT") -> 15.32747604 | C15: =IFERROR(VLOOKUP(A15,'Data CAO VVT 2019 (verbergen)'!C:M,11,0),"NVT") -> 16.1086012 | D15: =IFERROR(VLOOKUP(A15,'Data CAO GGZ 2019 (verbergen)'!C:M,11,0),"NVT") -> 15.65597444 | F15: 70 | G15: =AVERAGE(B155:B170)/$G$1 -> 51.96166134 | H15: 51.31471246 | I15: 51.59506906 | K15: 70 | L15: =G15/$L$1 -> 85.74531575 | M15: 84.67774333 | N15: 85.14037798 | P15: 70 | Q15: =G15/$Q$1 -> 84.08035816 | R15: 83.0335153 | S15: 83.48716676 | U15: 70 | V15: =G15/$V$1 -> 109.6237581 | W15: 108.258887 | X15: 108.8503567
A16: 15/2 | B16: =IFERROR(VLOOKUP(A16,'Data CAO GHZ 2019 (verbergen)'!C:K,9,0),"NVT") -> 15.8965655 | C16: =IFERROR(VLOOKUP(A16,'Data CAO VVT 2019 (verbergen)'!C:M,11,0),"NVT") -> 16.53364189 | D16: =IFERROR(VLOOKUP(A16,'Data CAO GGZ 2019 (verbergen)'!C:M,11,0),"NVT") -> 16.07095208 | F16: 75 | G16: =AVERAGE(B171:B189)/$G$1 -> 62.40958584 | H16: 60.82211896 | I16: 61.80840383 | K16: 75 | L16: =G16/$L$1 -> 102.9861152 | M16: 100.3665329 | N16: 101.9940657 | P16: 75 | Q16: =G16/$Q$1 -> 100.9863849 | R16: 98.41766822 | S16: 100.0135984 | U16: 75 | V16: =G16/$V$1 -> 131.6657929 | W16: 128.3167067 | X16: 130.3974764
A17: 15/3 | B17: =IFERROR(VLOOKUP(A17,'Data CAO GHZ 2019 (verbergen)'!C:K,9,0),"NVT") -> 16.19059505 | C17: =IFERROR(VLOOKUP(A17,'Data CAO VVT 2019 (verbergen)'!C:M,11,0),"NVT") -> 16.94670015 | D17: =IFERROR(VLOOKUP(A17,'Data CAO GGZ 2019 (verbergen)'!C:M,11,0),"NVT") -> 16.48592971 | F17: 80 | G17: =AVERAGE(B190:B208)/$G$1 -> 73.37404271 | H17: 71.53363273 | I17: 72.68899169 | K17: 80 | L17: =G17/$L$1 -> 121.0792784 | M17: 118.0422982 | N17: 119.9488312 | P17: 80 | Q17: =G17/$Q$1 -> 118.7282244 | R17: 115.7502148 | S17: 117.6197277 | U17: 80 | V17: =G17/$V$1 -> 154.7975585 | W17: 150.914837 | X17: 153.3523032
A18: 15/4 | B18: =IFERROR(VLOOKUP(A18,'Data CAO GHZ 2019 (verbergen)'!C:K,9,0),"NVT") -> 16.64586661 | C18: =IFERROR(VLOOKUP(A18,'Data CAO VVT 2019 (verbergen)'!C:M,11,0),"NVT") -> 17.396185 | D18: =IFERROR(VLOOKUP(A18,'Data CAO GGZ 2019 (verbergen)'!C:M,11,0),"NVT") -> 16.91033866
A19: 15/5 | B19: =IFERROR(VLOOKUP(A19,'Data CAO GHZ 2019 (verbergen)'!C:K,9,0),"NVT") -> 17.07268371 | C19: =IFERROR(VLOOKUP(A19,'Data CAO VVT 2019 (verbergen)'!C:M,11,0),"NVT") -> 17.88209642 | D19: =IFERROR(VLOOKUP(A19,'Data CAO GGZ 2019 (verbergen)'!C:M,11,0),"NVT") -> 17.38190415
A20: 15/6 | B20: =IFERROR(VLOOKUP(A20,'Data CAO GHZ 2019 (verbergen)'!C:K,9,0),"NVT") -> 17.50898562 | C20: =IFERROR(VLOOKUP(A20,'Data CAO VVT 2019 (verbergen)'!C:M,11,0),"NVT") -> 18.42868686 | D20: =IFERROR(VLOOKUP(A20,'Data CAO GGZ 2019 (verbergen)'!C:M,11,0),"NVT") -> 17.91005751
A21: 15/7 | B21: =IFERROR(VLOOKUP(A21,'Data CAO GHZ 2019 (verbergen)'!C:K,9,0),"NVT") -> 18.00219649 | C21: =IFERROR(VLOOKUP(A21,'Data CAO VVT 2019 (verbergen)'!C:M,11,0),"NVT") -> 18.9996256 | D21: =IFERROR(VLOOKUP(A21,'Data CAO GGZ 2019 (verbergen)'!C:M,11,0),"NVT") -> 18.46650479
A22: 15/8 | B22: =IFERROR(VLOOKUP(A22,'Data CAO GHZ 2019 (verbergen)'!C:K,9,0),"NVT") -> 18.55231629 | C22: =IFERROR(VLOOKUP(A22,'Data CAO VVT 2019 (verbergen)'!C:M,11,0),"NVT") -> 19.64360921 | D22: =IFERROR(VLOOKUP(A22,'Data CAO GGZ 2019 (verbergen)'!C:M,11,0),"NVT") -> 19.08897125
A23: 15/9 | B23: =IFERROR(VLOOKUP(A23,'Data CAO GHZ 2019 (verbergen)'!C:K,9,0),"NVT") -> 19.12140575 | D23: =IFERROR(VLOOKUP(A23,'Data CAO GGZ 2019 (verbergen)'!C:M,11,0),"NVT") -> 19.72086901
A24: 15/10 | B24: =IFERROR(VLOOKUP(A24,'Data CAO GHZ 2019 (verbergen)'!C:K,9,0),"NVT") -> 19.75688898
A25: 15/11 | B25: =IFERROR(VLOOKUP(A25,'Data CAO GHZ 2019 (verbergen)'!C:K,9,0),"NVT") -> 20.42082668
A26: 20/0 | B26: =IFERROR(VLOOKUP(A26,'Data CAO GHZ 2019 (verbergen)'!C:K,9,0),"NVT") -> 15.32747604 | C26: =IFERROR(VLOOKUP(A26,'Data CAO VVT 2019 (verbergen)'!C:M,11,0),"NVT") -> 16.53364189 | D26: =IFERROR(VLOOKUP(A26,'Data CAO GGZ 2019 (verbergen)'!C:M,11,0),"NVT") -> 15.65597444
A27: 20/1 | B27: =IFERROR(VLOOKUP(A27,'Data CAO GHZ 2019 (verbergen)'!C:K,9,0),"NVT") -> 16.19059505 | C27: =IFERROR(VLOOKUP(A27,'Data CAO VVT 2019 (verbergen)'!C:M,11,0),"NVT") -> 16.94670015 | D27: =IFERROR(VLOOKUP(A27,'Data CAO GGZ 2019 (verbergen)'!C:M,11,0),"NVT") -> 16.07095208
A28: 20/2 | B28: =IFERROR(VLOOKUP(A28,'Data CAO GHZ 2019 (verbergen)'!C:K,9,0),"NVT") -> 16.64586661 | C28: =IFERROR(VLOOKUP(A28,'Data CAO VVT 2019 (verbergen)'!C:M,11,0),"NVT") -> 17.396185 | D28: =IFERROR(VLOOKUP(A28,'Data CAO GGZ 2019 (verbergen)'!C:M,11,0),"NVT") -> 16.48592971
A29: 20/3 | B29: =IFERROR(VLOOKUP(A29,'Data CAO GHZ 2019 (verbergen)'!C:K,9,0),"NVT") -> 17.07268371 | C29: =IFERROR(VLOOKUP(A29,'Data CAO VVT 2019 (verbergen)'!C:M,11,0),"NVT") -> 17.88209642 | D29: =IFERROR(VLOOKUP(A29,'Data CAO GGZ 2019 (verbergen)'!C:M,11,0),"NVT") -> 16.91033866
A30: 20/4 | B30: =IFERROR(VLOOKUP(A30,'Data CAO GHZ 2019 (verbergen)'!C:K,9,0),"NVT") -> 17.50898562 | C30: =IFERROR(VLOOKUP(A30,'Data CAO VVT 2019 (verbergen)'!C:M,11,0),"NVT") -> 18.42868686 | D30: =IFERROR(VLOOKUP(A30,'Data CAO GGZ 2019 (verbergen)'!C:M,11,0),"NVT") -> 17.38190415
A31: 20/5 | B31: =IFERROR(VLOOKUP(A31,'Data CAO GHZ 2019 (verbergen)'!C:K,9,0),"NVT") -> 18.00219649 | C31: =IFERROR(VLOOKUP(A31,'Data CAO VVT 2019 (verbergen)'!C:M,11,0),"NVT") -> 18.9996256 | D31: =IFERROR(VLOOKUP(A31,'Data CAO GGZ 2019 (verbergen)'!C:M,11,0),"NVT") -> 17.91005751
A32: 20/6 | B32: =IFERROR(VLOOKUP(A32,'Data CAO GHZ 2019 (verbergen)'!C:K,9,0),"NVT") -> 18.55231629 | C32: =IFERROR(VLOOKUP(A32,'Data CAO VVT 2019 (verbergen)'!C:M,11,0),"NVT") -> 19.64360921 | D32: =IFERROR(VLOOKUP(A32,'Data CAO GGZ 2019 (verbergen)'!C:M,11,0),"NVT") -> 18.46650479
A33: 20/7 | B33: =IFERROR(VLOOKUP(A33,'Data CAO GHZ 2019 (verbergen)'!C:K,9,0),"NVT") -> 19.12140575 | C33: =IFERROR(VLOOKUP(A33,'Data CAO VVT 2019 (verbergen)'!C:M,11,0),"NVT") -> 20.28730525 | D33: =IFERROR(VLOOKUP(A33,'Data CAO GGZ 2019 (verbergen)'!C:M,11,0),"NVT") -> 19.08897125
A34: 20/8 | B34: =IFERROR(VLOOKUP(A34,'Data CAO GHZ 2019 (verbergen)'!C:K,9,0),"NVT") -> 19.75688898 | C34: =IFERROR(VLOOKUP(A34,'Data CAO VVT 2019 (verbergen)'!C:M,11,0),"NVT") -> 20.88287986 | D34: =IFERROR(VLOOKUP(A34,'Data CAO GGZ 2019 (verbergen)'!C:M,11,0),"NVT") -> 19.72086901
A35: 20/9 | B35: =IFERROR(VLOOKUP(A35,'Data CAO GHZ 2019 (verbergen)'!C:K,9,0),"NVT") -> 20.42082668 | D35: =IFERROR(VLOOKUP(A35,'Data CAO GGZ 2019 (verbergen)'!C:M,11,0),"NVT") -> 20.29617891
A36: 20/10 | B36: =IFERROR(VLOOKUP(A36,'Data CAO GHZ 2019 (verbergen)'!C:K,9,0),"NVT") -> 21.01837061 | D36: =IFERROR(VLOOKUP(A36,'Data CAO GGZ 2019 (verbergen)'!C:M,11,0),"NVT") -> 20.95637061
A37: 20/11 | B37: =IFERROR(VLOOKUP(A37,'Data CAO GHZ 2019 (verbergen)'!C:K,9,0),"NVT") -> 21.69179313
A38: 25/0 | B38: =IFERROR(VLOOKUP(A38,'Data CAO GHZ 2019 (verbergen)'!C:K,9,0),"NVT") -> 15.8965655 | C38: =IFERROR(VLOOKUP(A38,'Data CAO VVT 2019 (verbergen)'!C:M,11,0),"NVT") -> 16.94670015 | D38: =IFERROR(VLOOKUP(A38,'Data CAO GGZ 2019 (verbergen)'!C:M,11,0),"NVT") -> 16.07095208
A39: 25/1 | B39: =IFERROR(VLOOKUP(A39,'Data CAO GHZ 2019 (verbergen)'!C:K,9,0),"NVT") -> 16.64586661 | C39: =IFERROR(VLOOKUP(A39,'Data CAO VVT 2019 (verbergen)'!C:M,11,0),"NVT") -> 17.396185 | D39: =IFERROR(VLOOKUP(A39,'Data CAO GGZ 2019 (verbergen)'!C:M,11,0),"NVT") -> 16.91033866
A40: 25/2 | B40: =IFERROR(VLOOKUP(A40,'Data CAO GHZ 2019 (verbergen)'!C:K,9,0),"NVT") -> 17.50898562 | C40: =IFERROR(VLOOKUP(A40,'Data CAO VVT 2019 (verbergen)'!C:M,11,0),"NVT") -> 17.88209642 | D40: =IFERROR(VLOOKUP(A40,'Data CAO GGZ 2019 (verbergen)'!C:M,11,0),"NVT") -> 17.38190415
A41: 25/3 | B41: =IFERROR(VLOOKUP(A41,'Data CAO GHZ 2019 (verbergen)'!C:K,9,0),"NVT") -> 18.00219649 | C41: =IFERROR(VLOOKUP(A41,'Data CAO VVT 2019 (verbergen)'!C:M,11,0),"NVT") -> 18.42868686 | D41: =IFERROR(VLOOKUP(A41,'Data CAO GGZ 2019 (verbergen)'!C:M,11,0),"NVT") -> 17.91005751
A42: 25/4 | B42: =IFERROR(VLOOKUP(A42,'Data CAO GHZ 2019 (verbergen)'!C:K,9,0),"NVT") -> 18.55231629 | C42: =IFERROR(VLOOKUP(A42,'Data CAO VVT 2019 (verbergen)'!C:M,11,0),"NVT") -> 18.9996256 | D42: =IFERROR(VLOOKUP(A42,'Data CAO GGZ 2019 (verbergen)'!C:M,11,0),"NVT") -> 18.46650479
A43: 25/5 | B43: =IFERROR(VLOOKUP(A43,'Data CAO GHZ 2019 (verbergen)'!C:K,9,0),"NVT") -> 19.12140575 | C43: =IFERROR(VLOOKUP(A43,'Data CAO VVT 2019 (verbergen)'!C:M,11,0),"NVT") -> 19.64360921 | D43: =IFERROR(VLOOKUP(A43,'Data CAO GGZ 2019 (verbergen)'!C:M,11,0),"NVT") -> 19.08897125
A44: 25/6 | B44: =IFERROR(VLOOKUP(A44,'Data CAO GHZ 2019 (verbergen)'!C:K,9,0),"NVT") -> 19.75688898 | C44: =IFERROR(VLOOKUP(A44,'Data CAO VVT 2019 (verbergen)'!C:M,11,0),"NVT") -> 20.28730525 | D44: =IFERROR(VLOOKUP(A44,'Data CAO GGZ 2019 (verbergen)'!C:M,11,0),"NVT") -> 19.72086901
A45: 25/7 | B45: =IFERROR(VLOOKUP(A45,'Data CAO GHZ 2019 (verbergen)'!C:K,9,0),"NVT") -> 20.42082668 | C45: =IFERROR(VLOOKUP(A45,'Data CAO VVT 2019 (verbergen)'!C:M,11,0),"NVT") -> 20.88287986 | D45: =IFERROR(VLOOKUP(A45,'Data CAO GGZ 2019 (verbergen)'!C:M,11,0),"NVT") -> 20.29617891
A46: 25/8 | B46: =IFERROR(VLOOKUP(A46,'Data CAO GHZ 2019 (verbergen)'!C:K,9,0),"NVT") -> 21.01837061 | C46: =IFERROR(VLOOKUP(A46,'Data CAO VVT 2019 (verbergen)'!C:M,11,0),"NVT") -> 21.55063661 | D46: =IFERROR(VLOOKUP(A46,'Data CAO GGZ 2019 (verbergen)'!C:M,11,0),"NVT") -> 20.95637061
A47: 25/9 | B47: =IFERROR(VLOOKUP(A47,'Data CAO GHZ 2019 (verbergen)'!C:K,9,0),"NVT") -> 21.69179313 | C47: =IFERROR(VLOOKUP(A47,'Data CAO VVT 2019 (verbergen)'!C:M,11,0),"NVT") -> 22.09732291 | D47: =IFERROR(VLOOKUP(A47,'Data CAO GGZ 2019 (verbergen)'!C:M,11,0),"NVT") -> 21.48452396
A48: 25/10 | B48: =IFERROR(VLOOKUP(A48,'Data CAO GHZ 2019 (verbergen)'!C:K,9,0),"NVT") -> 22.24191294 | D48: =IFERROR(VLOOKUP(A48,'Data CAO GGZ 2019 (verbergen)'!C:M,11,0),"NVT") -> 22.11642173
A49: 25/11 | B49: =IFERROR(VLOOKUP(A49,'Data CAO GHZ 2019 (verbergen)'!C:K,9,0),"NVT") -> 22.88688099
A50: 30/0 | B50: =IFERROR(VLOOKUP(A50,'Data CAO GHZ 2019 (verbergen)'!C:K,9,0),"NVT") -> 16.19059505 | C50: =IFERROR(VLOOKUP(A50,'Data CAO VVT 2019 (verbergen)'!C:M,11,0),"NVT") -> 16.94670015 | D50: =IFERROR(VLOOKUP(A50,'Data CAO GGZ 2019 (verbergen)'!C:M,11,0),"NVT") -> 16.48592971
A51: 30/1 | B51: =IFERROR(VLOOKUP(A51,'Data CAO GHZ 2019 (verbergen)'!C:K,9,0),"NVT") -> 17.07268371 | C51: =IFERROR(VLOOKUP(A51,'Data CAO VVT 2019 (verbergen)'!C:M,11,0),"NVT") -> 17.396185 | D51: =IFERROR(VLOOKUP(A51,'Data CAO GGZ 2019 (verbergen)'!C:M,11,0),"NVT") -> 17.38190415
A52: 30/2 | B52: =IFERROR(VLOOKUP(A52,'Data CAO GHZ 2019 (verbergen)'!C:K,9,0),"NVT") -> 18.00219649 | C52: =IFERROR(VLOOKUP(A52,'Data CAO VVT 2019 (verbergen)'!C:M,11,0),"NVT") -> 17.88209642 | D52: =IFERROR(VLOOKUP(A52,'Data CAO GGZ 2019 (verbergen)'!C:M,11,0),"NVT") -> 18.46650479
A53: 30/3 | B53: =IFERROR(VLOOKUP(A53,'Data CAO GHZ 2019 (verbergen)'!C:K,9,0),"NVT") -> 19.12140575 | C53: =IFERROR(VLOOKUP(A53,'Data CAO VVT 2019 (verbergen)'!C:M,11,0),"NVT") -> 18.42868686 | D53: =IFERROR(VLOOKUP(A53,'Data CAO GGZ 2019 (verbergen)'!C:M,11,0),"NVT") -> 19.08897125
A54: 30/4 | B54: =IFERROR(VLOOKUP(A54,'Data CAO GHZ 2019 (verbergen)'!C:K,9,0),"NVT") -> 19.75688898 | C54: =IFERROR(VLOOKUP(A54,'Data CAO VVT 2019 (verbergen)'!C:M,11,0),"NVT") -> 18.9996256 | D54: =IFERROR(VLOOKUP(A54,'Data CAO GGZ 2019 (verbergen)'!C:M,11,0),"NVT") -> 19.72086901
A55: 30/5 | B55: =IFERROR(VLOOKUP(A55,'Data CAO GHZ 2019 (verbergen)'!C:K,9,0),"NVT") -> 20.42082668 | C55: =IFERROR(VLOOKUP(A55,'Data CAO VVT 2019 (verbergen)'!C:M,11,0),"NVT") -> 19.64360921 | D55: =IFERROR(VLOOKUP(A55,'Data CAO GGZ 2019 (verbergen)'!C:M,11,0),"NVT") -> 20.29617891
A56: 30/6 | B56: =IFERROR(VLOOKUP(A56,'Data CAO GHZ 2019 (verbergen)'!C:K,9,0),"NVT") -> 21.01837061 | C56: =IFERROR(VLOOKUP(A56,'Data CAO VVT 2019 (verbergen)'!C:M,11,0),"NVT") -> 20.28730525 | D56: =IFERROR(VLOOKUP(A56,'Data CAO GGZ 2019 (verbergen)'!C:M,11,0),"NVT") -> 20.95637061
A57: 30/7 | B57: =IFERROR(VLOOKUP(A57,'Data CAO GHZ 2019 (verbergen)'!C:K,9,0),"NVT") -> 21.69179313 | C57: =IFERROR(VLOOKUP(A57,'Data CAO VVT 2019 (verbergen)'!C:M,11,0),"NVT") -> 20.88287986 | D57: =IFERROR(VLOOKUP(A57,'Data CAO GGZ 2019 (verbergen)'!C:M,11,0),"NVT") -> 21.48452396
A58: 30/8 | B58: =IFERROR(VLOOKUP(A58,'Data CAO GHZ 2019 (verbergen)'!C:K,9,0),"NVT") -> 22.24191294 | C58: =IFERROR(VLOOKUP(A58,'Data CAO VVT 2019 (verbergen)'!C:M,11,0),"NVT") -> 21.55063661 | D58: =IFERROR(VLOOKUP(A58,'Data CAO GGZ 2019 (verbergen)'!C:M,11,0),"NVT") -> 22.11642173
A59: 30/9 | B59: =IFERROR(VLOOKUP(A59,'Data CAO GHZ 2019 (verbergen)'!C:K,9,0),"NVT") -> 22.88688099 | C59: =IFERROR(VLOOKUP(A59,'Data CAO VVT 2019 (verbergen)'!C:M,11,0),"NVT") -> 22.09732291 | D59: =IFERROR(VLOOKUP(A59,'Data CAO GGZ 2019 (verbergen)'!C:M,11,0),"NVT") -> 22.70116294
A60: 30/10 | B60: =IFERROR(VLOOKUP(A60,'Data CAO GHZ 2019 (verbergen)'!C:K,9,0),"NVT") -> 23.50339457 | C60: =IFERROR(VLOOKUP(A60,'Data CAO VVT 2019 (verbergen)'!C:M,11,0),"NVT") -> 22.75348068 | D60: =IFERROR(VLOOKUP(A60,'Data CAO GGZ 2019 (verbergen)'!C:M,11,0),"NVT") -> 23.30476677
A61: 30/11 | B61: =IFERROR(VLOOKUP(A61,'Data CAO GHZ 2019 (verbergen)'!C:K,9,0),"NVT") -> 24.14836262
A62: 35/0 | B62: =IFERROR(VLOOKUP(A62,'Data CAO GHZ 2019 (verbergen)'!C:K,9,0),"NVT") -> 17.07268371 | C62: =IFERROR(VLOOKUP(A62,'Data CAO VVT 2019 (verbergen)'!C:M,11,0),"NVT") -> 17.88209642 | D62: =IFERROR(VLOOKUP(A62,'Data CAO GGZ 2019 (verbergen)'!C:M,11,0),"NVT") -> 17.38190415
A63: 35/1 | B63: =IFERROR(VLOOKUP(A63,'Data CAO GHZ 2019 (verbergen)'!C:K,9,0),"NVT") -> 18.00219649 | C63: =IFERROR(VLOOKUP(A63,'Data CAO VVT 2019 (verbergen)'!C:M,11,0),"NVT") -> 18.42868686 | D63: =IFERROR(VLOOKUP(A63,'Data CAO GGZ 2019 (verbergen)'!C:M,11,0),"NVT") -> 18.46650479
A64: 35/2 | B64: =IFERROR(VLOOKUP(A64,'Data CAO GHZ 2019 (verbergen)'!C:K,9,0),"NVT") -> 19.12140575 | C64: =IFERROR(VLOOKUP(A64,'Data CAO VVT 2019 (verbergen)'!C:M,11,0),"NVT") -> 18.9996256 | D64: =IFERROR(VLOOKUP(A64,'Data CAO GGZ 2019 (verbergen)'!C:M,11,0),"NVT") -> 19.72086901
A65: 35/3 | B65: =IFERROR(VLOOKUP(A65,'Data CAO GHZ 2019 (verbergen)'!C:K,9,0),"NVT") -> 20.42082668 | C65: =IFERROR(VLOOKUP(A65,'Data CAO VVT 2019 (verbergen)'!C:M,11,0),"NVT") -> 19.64360921 | D65: =IFERROR(VLOOKUP(A65,'Data CAO GGZ 2019 (verbergen)'!C:M,11,0),"NVT") -> 20.29617891
A66: 35/4 | B66: =IFERROR(VLOOKUP(A66,'Data CAO GHZ 2019 (verbergen)'!C:K,9,0),"NVT") -> 21.01837061 | C66: =IFERROR(VLOOKUP(A66,'Data CAO VVT 2019 (verbergen)'!C:M,11,0),"NVT") -> 20.28730525 | D66: =IFERROR(VLOOKUP(A66,'Data CAO GGZ 2019 (verbergen)'!C:M,11,0),"NVT") -> 20.95637061
A67: 35/5 | B67: =IFERROR(VLOOKUP(A67,'Data CAO GHZ 2019 (verbergen)'!C:K,9,0),"NVT") -> 21.69179313 | C67: =IFERROR(VLOOKUP(A67,'Data CAO VVT 2019 (verbergen)'!C:M,11,0),"NVT") -> 20.88287986 | D67: =IFERROR(VLOOKUP(A67,'Data CAO GGZ 2019 (verbergen)'!C:M,11,0),"NVT") -> 21.48452396
A68: 35/6 | B68: =IFERROR(VLOOKUP(A68,'Data CAO GHZ 2019 (verbergen)'!C:K,9,0),"NVT") -> 22.24191294 | C68: =IFERROR(VLOOKUP(A68,'Data CAO VVT 2019 (verbergen)'!C:M,11,0),"NVT") -> 21.55063661 | D68: =IFERROR(VLOOKUP(A68,'Data CAO GGZ 2019 (verbergen)'!C:M,11,0),"NVT") -> 22.11642173
A69: 35/7 | B69: =IFERROR(VLOOKUP(A69,'Data CAO GHZ 2019 (verbergen)'!C:K,9,0),"NVT") -> 22.88688099 | C69: =IFERROR(VLOOKUP(A69,'Data CAO VVT 2019 (verbergen)'!C:M,11,0),"NVT") -> 22.09732291 | D69: =IFERROR(VLOOKUP(A69,'Data CAO GGZ 2019 (verbergen)'!C:M,11,0),"NVT") -> 22.70116294
A70: 35/8 | B70: =IFERROR(VLOOKUP(A70,'Data CAO GHZ 2019 (verbergen)'!C:K,9,0),"NVT") -> 23.50339457 | C70: =IFERROR(VLOOKUP(A70,'Data CAO VVT 2019 (verbergen)'!C:M,11,0),"NVT") -> 22.75348068 | D70: =IFERROR(VLOOKUP(A70,'Data CAO GGZ 2019 (verbergen)'!C:M,11,0),"NVT") -> 23.30476677
A71: 35/9 | B71: =IFERROR(VLOOKUP(A71,'Data CAO GHZ 2019 (verbergen)'!C:K,9,0),"NVT") -> 24.14836262 | C71: =IFERROR(VLOOKUP(A71,'Data CAO VVT 2019 (verbergen)'!C:M,11,0),"NVT") -> 23.34867185 | D71: =IFERROR(VLOOKUP(A71,'Data CAO GGZ 2019 (verbergen)'!C:M,11,0),"NVT") -> 23.90837061
A72: 35/10 | B72: =IFERROR(VLOOKUP(A72,'Data CAO GHZ 2019 (verbergen)'!C:K,9,0),"NVT") -> 24.75539137 | C72: =IFERROR(VLOOKUP(A72,'Data CAO VVT 2019 (verbergen)'!C:M,11,0),"NVT") -> 23.98048132 | D72: =IFERROR(VLOOKUP(A72,'Data CAO GGZ 2019 (verbergen)'!C:M,11,0),"NVT") -> 24.51197444
A73: 35/11 | B73: =IFERROR(VLOOKUP(A73,'Data CAO GHZ 2019 (verbergen)'!C:K,9,0),"NVT") -> 25.37190495 | C73: =IFERROR(VLOOKUP(A73,'Data CAO VVT 2019 (verbergen)'!C:M,11,0),"NVT") -> 24.6002125
A74: 40/0 | B74: =IFERROR(VLOOKUP(A74,'Data CAO GHZ 2019 (verbergen)'!C:K,9,0),"NVT") -> 18.00219649 | C74: =IFERROR(VLOOKUP(A74,'Data CAO VVT 2019 (verbergen)'!C:M,11,0),"NVT") -> 18.9996256 | D74: =IFERROR(VLOOKUP(A74,'Data CAO GGZ 2019 (verbergen)'!C:M,11,0),"NVT") -> 18.46650479
A75: 40/1 | B75: =IFERROR(VLOOKUP(A75,'Data CAO GHZ 2019 (verbergen)'!C:K,9,0),"NVT") -> 19.12140575 | C75: =IFERROR(VLOOKUP(A75,'Data CAO VVT 2019 (verbergen)'!C:M,11,0),"NVT") -> 20.28730525 | D75: =IFERROR(VLOOKUP(A75,'Data CAO GGZ 2019 (verbergen)'!C:M,11,0),"NVT") -> 19.72086901
A76: 40/2 | B76: =IFERROR(VLOOKUP(A76,'Data CAO GHZ 2019 (verbergen)'!C:K,9,0),"NVT") -> 20.42082668 | C76: =IFERROR(VLOOKUP(A76,'Data CAO VVT 2019 (verbergen)'!C:M,11,0),"NVT") -> 21.55063661 | D76: =IFERROR(VLOOKUP(A76,'Data CAO GGZ 2019 (verbergen)'!C:M,11,0),"NVT") -> 20.95637061
A77: 40/3 | B77: =IFERROR(VLOOKUP(A77,'Data CAO GHZ 2019 (verbergen)'!C:K,9,0),"NVT") -> 21.69179313 | C77: =IFERROR(VLOOKUP(A77,'Data CAO VVT 2019 (verbergen)'!C:M,11,0),"NVT") -> 22.09732291 | D77: =IFERROR(VLOOKUP(A77,'Data CAO GGZ 2019 (verbergen)'!C:M,11,0),"NVT") -> 21.48452396
A78: 40/4 | B78: =IFERROR(VLOOKUP(A78,'Data CAO GHZ 2019 (verbergen)'!C:K,9,0),"NVT") -> 22.24191294 | C78: =IFERROR(VLOOKUP(A78,'Data CAO VVT 2019 (verbergen)'!C:M,11,0),"NVT") -> 22.75348068 | D78: =IFERROR(VLOOKUP(A78,'Data CAO GGZ 2019 (verbergen)'!C:M,11,0),"NVT") -> 22.11642173
A79: 40/5 | B79: =IFERROR(VLOOKUP(A79,'Data CAO GHZ 2019 (verbergen)'!C:K,9,0),"NVT") -> 22.88688099 | C79: =IFERROR(VLOOKUP(A79,'Data CAO VVT 2019 (verbergen)'!C:M,11,0),"NVT") -> 23.34867185 | D79: =IFERROR(VLOOKUP(A79,'Data CAO GGZ 2019 (verbergen)'!C:M,11,0),"NVT") -> 22.70116294
A80: 40/6 | B80: =IFERROR(VLOOKUP(A80,'Data CAO GHZ 2019 (verbergen)'!C:K,9,0),"NVT") -> 23.50339457 | C80: =IFERROR(VLOOKUP(A80,'Data CAO VVT 2019 (verbergen)'!C:M,11,0),"NVT") -> 23.98048132 | D80: =IFERROR(VLOOKUP(A80,'Data CAO GGZ 2019 (verbergen)'!C:M,11,0),"NVT") -> 23.30476677
A81: 40/7 | B81: =IFERROR(VLOOKUP(A81,'Data CAO GHZ 2019 (verbergen)'!C:K,9,0),"NVT") -> 24.14836262 | C81: =IFERROR(VLOOKUP(A81,'Data CAO VVT 2019 (verbergen)'!C:M,11,0),"NVT") -> 24.6002125 | D81: =IFERROR(VLOOKUP(A81,'Data CAO GGZ 2019 (verbergen)'!C:M,11,0),"NVT") -> 23.90837061
A82: 40/8 | B82: =IFERROR(VLOOKUP(A82,'Data CAO GHZ 2019 (verbergen)'!C:K,9,0),"NVT") -> 24.75539137 | C82: =IFERROR(VLOOKUP(A82,'Data CAO VVT 2019 (verbergen)'!C:M,11,0),"NVT") -> 25.20748196 | D82: =IFERROR(VLOOKUP(A82,'Data CAO GGZ 2019 (verbergen)'!C:M,11,0),"NVT") -> 24.51197444
A83: 40/9 | B83: =IFERROR(VLOOKUP(A83,'Data CAO GHZ 2019 (verbergen)'!C:K,9,0),"NVT") -> 25.37190495 | C83: =IFERROR(VLOOKUP(A83,'Data CAO VVT 2019 (verbergen)'!C:M,11,0),"NVT") -> 25.82702142 | D83: =IFERROR(VLOOKUP(A83,'Data CAO GGZ 2019 (verbergen)'!C:M,11,0),"NVT") -> 25.11557827
A84: 40/10 | B84: =IFERROR(VLOOKUP(A84,'Data CAO GHZ 2019 (verbergen)'!C:K,9,0),"NVT") -> 26.00738818 | C84: =IFERROR(VLOOKUP(A84,'Data CAO VVT 2019 (verbergen)'!C:M,11,0),"NVT") -> 26.45883089 | D84: =IFERROR(VLOOKUP(A84,'Data CAO GGZ 2019 (verbergen)'!C:M,11,0),"NVT") -> 25.71918211
A85: 40/11 | B85: =IFERROR(VLOOKUP(A85,'Data CAO GHZ 2019 (verbergen)'!C:K,9,0),"NVT") -> 26.62390176 | D85: =IFERROR(VLOOKUP(A85,'Data CAO GGZ 2019 (verbergen)'!C:M,11,0),"NVT") -> 26.34164856
A86: 40/12 | D86: =IFERROR(VLOOKUP(A86,'Data CAO GGZ 2019 (verbergen)'!C:M,11,0),"NVT") -> 27.00184026
A87: 45/0 | B87: =IFERROR(VLOOKUP(A87,'Data CAO GHZ 2019 (verbergen)'!C:K,9,0),"NVT") -> 19.12140575 | C87: =IFERROR(VLOOKUP(A87,'Data CAO VVT 2019 (verbergen)'!C:M,11,0),"NVT") -> 23.98048132 | D87: =IFERROR(VLOOKUP(A87,'Data CAO GGZ 2019 (verbergen)'!C:M,11,0),"NVT") -> 20.95637061
A88: 45/1 | B88: =IFERROR(VLOOKUP(A88,'Data CAO GHZ 2019 (verbergen)'!C:K,9,0),"NVT") -> 20.42082668 | C88: =IFERROR(VLOOKUP(A88,'Data CAO VVT 2019 (verbergen)'!C:M,11,0),"NVT") -> 24.6002125 | D88: =IFERROR(VLOOKUP(A88,'Data CAO GGZ 2019 (verbergen)'!C:M,11,0),"NVT") -> 22.11642173
A89: 45/2 | B89: =IFERROR(VLOOKUP(A89,'Data CAO GHZ 2019 (verbergen)'!C:K,9,0),"NVT") -> 21.69179313 | C89: =IFERROR(VLOOKUP(A89,'Data CAO VVT 2019 (verbergen)'!C:M,11,0),"NVT") -> 25.20748196 | D89: =IFERROR(VLOOKUP(A89,'Data CAO GGZ 2019 (verbergen)'!C:M,11,0),"NVT") -> 23.30476677
A90: 45/3 | B90: =IFERROR(VLOOKUP(A90,'Data CAO GHZ 2019 (verbergen)'!C:K,9,0),"NVT") -> 22.88688099 | C90: =IFERROR(VLOOKUP(A90,'Data CAO VVT 2019 (verbergen)'!C:M,11,0),"NVT") -> 25.82702142 | D90: =IFERROR(VLOOKUP(A90,'Data CAO GGZ 2019 (verbergen)'!C:M,11,0),"NVT") -> 23.90837061
A91: 45/4 | B91: =IFERROR(VLOOKUP(A91,'Data CAO GHZ 2019 (verbergen)'!C:K,9,0),"NVT") -> 24.14836262 | C91: =IFERROR(VLOOKUP(A91,'Data CAO VVT 2019 (verbergen)'!C:M,11,0),"NVT") -> 26.45883089 | D91: =IFERROR(VLOOKUP(A91,'Data CAO GGZ 2019 (verbergen)'!C:M,11,0),"NVT") -> 24.51197444
A92: 45/5 | B92: =IFERROR(VLOOKUP(A92,'Data CAO GHZ 2019 (verbergen)'!C:K,9,0),"NVT") -> 24.75539137 | C92: =IFERROR(VLOOKUP(A92,'Data CAO VVT 2019 (verbergen)'!C:M,11,0),"NVT") -> 27.10252693 | D92: =IFERROR(VLOOKUP(A92,'Data CAO GGZ 2019 (verbergen)'!C:M,11,0),"NVT") -> 25.11557827
A93: 45/6 | B93: =IFERROR(VLOOKUP(A93,'Data CAO GHZ 2019 (verbergen)'!C:K,9,0),"NVT") -> 25.37190495 | C93: =IFERROR(VLOOKUP(A93,'Data CAO VVT 2019 (verbergen)'!C:M,11,0),"NVT") -> 27.77057126 | D93: =IFERROR(VLOOKUP(A93,'Data CAO GGZ 2019 (verbergen)'!C:M,11,0),"NVT") -> 25.71918211
A94: 45/7 | B94: =IFERROR(VLOOKUP(A94,'Data CAO GHZ 2019 (verbergen)'!C:K,9,0),"NVT") -> 26.00738818 | C94: =IFERROR(VLOOKUP(A94,'Data CAO VVT 2019 (verbergen)'!C:M,11,0),"NVT") -> 28.46344318 | D94: =IFERROR(VLOOKUP(A94,'Data CAO GGZ 2019 (verbergen)'!C:M,11,0),"NVT") -> 26.34164856
A95: 45/8 | B95: =IFERROR(VLOOKUP(A95,'Data CAO GHZ 2019 (verbergen)'!C:K,9,0),"NVT") -> 26.62390176 | C95: =IFERROR(VLOOKUP(A95,'Data CAO VVT 2019 (verbergen)'!C:M,11,0),"NVT") -> 29.0703292 | D95: =IFERROR(VLOOKUP(A95,'Data CAO GGZ 2019 (verbergen)'!C:M,11,0),"NVT") -> 27.00184026
A96: 45/9 | B96: =IFERROR(VLOOKUP(A96,'Data CAO GHZ 2019 (verbergen)'!C:K,9,0),"NVT") -> 27.28783946 | D96: =IFERROR(VLOOKUP(A96,'Data CAO GGZ 2019 (verbergen)'!C:M,11,0),"NVT") -> 27.67146326
A97: 45/10 | B97: =IFERROR(VLOOKUP(A97,'Data CAO GHZ 2019 (verbergen)'!C:K,9,0),"NVT") -> 27.96126198 | D97: =IFERROR(VLOOKUP(A97,'Data CAO GGZ 2019 (verbergen)'!C:M,11,0),"NVT") -> 28.25620447
A98: 45/11 | B98: =IFERROR(VLOOKUP(A98,'Data CAO GHZ 2019 (verbergen)'!C:K,9,0),"NVT") -> 28.65365415 | D98: =IFERROR(VLOOKUP(A98,'Data CAO GGZ 2019 (verbergen)'!C:M,11,0),"NVT") -> 28.91639617
A99: 45/12 | B99: =IFERROR(VLOOKUP(A99,'Data CAO GHZ 2019 (verbergen)'!C:K,9,0),"NVT") -> 29.25119808 | D99: =IFERROR(VLOOKUP(A99,'Data CAO GGZ 2019 (verbergen)'!C:M,11,0),"NVT") -> 29.56715655
A100: 50/0 | B100: =IFERROR(VLOOKUP(A100,'Data CAO GHZ 2019 (verbergen)'!C:K,9,0),"NVT") -> 22.24191294 | C100: =IFERROR(VLOOKUP(A100,'Data CAO VVT 2019 (verbergen)'!C:M,11,0),"NVT") -> 24.6002125 | D100: =IFERROR(VLOOKUP(A100,'Data CAO GGZ 2019 (verbergen)'!C:M,11,0),"NVT") -> 23.90837061
A101: 50/1 | B101: =IFERROR(VLOOKUP(A101,'Data CAO GHZ 2019 (verbergen)'!C:K,9,0),"NVT") -> 23.50339457 | C101: =IFERROR(VLOOKUP(A101,'Data CAO VVT 2019 (verbergen)'!C:M,11,0),"NVT") -> 25.82702142 | D101: =IFERROR(VLOOKUP(A101,'Data CAO GGZ 2019 (verbergen)'!C:M,11,0),"NVT") -> 25.11557827
A102: 50/2 | B102: =IFERROR(VLOOKUP(A102,'Data CAO GHZ 2019 (verbergen)'!C:K,9,0),"NVT") -> 24.75539137 | C102: =IFERROR(VLOOKUP(A102,'Data CAO VVT 2019 (verbergen)'!C:M,11,0),"NVT") -> 27.10252693 | D102: =IFERROR(VLOOKUP(A102,'Data CAO GGZ 2019 (verbergen)'!C:M,11,0),"NVT") -> 26.34164856
A103: 50/3 | B103: =IFERROR(VLOOKUP(A103,'Data CAO GHZ 2019 (verbergen)'!C:K,9,0),"NVT") -> 26.00738818 | C103: =IFERROR(VLOOKUP(A103,'Data CAO VVT 2019 (verbergen)'!C:M,11,0),"NVT") -> 28.46344318 | D103: =IFERROR(VLOOKUP(A103,'Data CAO GGZ 2019 (verbergen)'!C:M,11,0),"NVT") -> 27.67146326
A104: 50/4 | B104: =IFERROR(VLOOKUP(A104,'Data CAO GHZ 2019 (verbergen)'!C:K,9,0),"NVT") -> 27.28783946 | C104: =IFERROR(VLOOKUP(A104,'Data CAO VVT 2019 (verbergen)'!C:M,11,0),"NVT") -> 29.0703292 | D104: =IFERROR(VLOOKUP(A104,'Data CAO GGZ 2019 (verbergen)'!C:M,11,0),"NVT") -> 28.25620447
A105: 50/5 | B105: =IFERROR(VLOOKUP(A105,'Data CAO GHZ 2019 (verbergen)'!C:K,9,0),"NVT") -> 28.65365415 | C105: =IFERROR(VLOOKUP(A105,'Data CAO VVT 2019 (verbergen)'!C:M,11,0),"NVT") -> 29.7507394 | D105: =IFERROR(VLOOKUP(A105,'Data CAO GGZ 2019 (verbergen)'!C:M,11,0),"NVT") -> 28.91639617
A106: 50/6 | B106: =IFERROR(VLOOKUP(A106,'Data CAO GHZ 2019 (verbergen)'!C:K,9,0),"NVT") -> 29.25119808 | C106: =IFERROR(VLOOKUP(A106,'Data CAO VVT 2019 (verbergen)'!C:M,11,0),"NVT") -> 30.41916717 | D106: =IFERROR(VLOOKUP(A106,'Data CAO GGZ 2019 (verbergen)'!C:M,11,0),"NVT") -> 29.56715655
A107: 50/7 | B107: =IFERROR(VLOOKUP(A107,'Data CAO GHZ 2019 (verbergen)'!C:K,9,0),"NVT") -> 29.94359026 | C107: =IFERROR(VLOOKUP(A107,'Data CAO VVT 2019 (verbergen)'!C:M,11,0),"NVT") -> 31.05078492 | D107: =IFERROR(VLOOKUP(A107,'Data CAO GGZ 2019 (verbergen)'!C:M,11,0),"NVT") -> 30.18019169
A108: 50/8 | B108: =IFERROR(VLOOKUP(A108,'Data CAO GHZ 2019 (verbergen)'!C:K,9,0),"NVT") -> 30.60752796 | C108: =IFERROR(VLOOKUP(A108,'Data CAO VVT 2019 (verbergen)'!C:M,11,0),"NVT") -> 31.68221095 | D108: =IFERROR(VLOOKUP(A108,'Data CAO GGZ 2019 (verbergen)'!C:M,11,0),"NVT") -> 30.80265815
A109: 50/9 | B109: =IFERROR(VLOOKUP(A109,'Data CAO GHZ 2019 (verbergen)'!C:K,9,0),"NVT") -> 31.24301118 | C109: =IFERROR(VLOOKUP(A109,'Data CAO VVT 2019 (verbergen)'!C:M,11,0),"NVT") -> 32.350447 | D109: =IFERROR(VLOOKUP(A109,'Data CAO GGZ 2019 (verbergen)'!C:M,11,0),"NVT") -> 31.44398722
A110: 50/10 | B110: =IFERROR(VLOOKUP(A110,'Data CAO GHZ 2019 (verbergen)'!C:K,9,0),"NVT") -> 31.90694888 | C110: =IFERROR(VLOOKUP(A110,'Data CAO VVT 2019 (verbergen)'!C:M,11,0),"NVT") -> 33.01858719 | D110: =IFERROR(VLOOKUP(A110,'Data CAO GGZ 2019 (verbergen)'!C:M,11,0),"NVT") -> 32.0947476
A111: 50/11 | B111: =IFERROR(VLOOKUP(A111,'Data CAO GHZ 2019 (verbergen)'!C:K,9,0),"NVT") -> 32.55191693 | D111: =IFERROR(VLOOKUP(A111,'Data CAO GGZ 2019 (verbergen)'!C:M,11,0),"NVT") -> 32.69835144
A112: 50/12 | B112: =IFERROR(VLOOKUP(A112,'Data CAO GHZ 2019 (verbergen)'!C:K,9,0),"NVT") -> 33.24430911
A113: 55/0 | B113: =IFERROR(VLOOKUP(A113,'Data CAO GHZ 2019 (verbergen)'!C:K,9,0),"NVT") -> 25.37190495 | C113: =IFERROR(VLOOKUP(A113,'Data CAO VVT 2019 (verbergen)'!C:M,11,0),"NVT") -> 25.82702142 | D113: =IFERROR(VLOOKUP(A113,'Data CAO GGZ 2019 (verbergen)'!C:M,11,0),"NVT") -> 27.00184026
A114: 55/1 | B114: =IFERROR(VLOOKUP(A114,'Data CAO GHZ 2019 (verbergen)'!C:K,9,0),"NVT") -> 26.62390176 | C114: =IFERROR(VLOOKUP(A114,'Data CAO VVT 2019 (verbergen)'!C:M,11,0),"NVT") -> 27.77057126 | D114: =IFERROR(VLOOKUP(A114,'Data CAO GGZ 2019 (verbergen)'!C:M,11,0),"NVT") -> 28.25620447
A115: 55/2 | B115: =IFERROR(VLOOKUP(A115,'Data CAO GHZ 2019 (verbergen)'!C:K,9,0),"NVT") -> 27.96126198 | C115: =IFERROR(VLOOKUP(A115,'Data CAO VVT 2019 (verbergen)'!C:M,11,0),"NVT") -> 29.0703292 | D115: =IFERROR(VLOOKUP(A115,'Data CAO GGZ 2019 (verbergen)'!C:M,11,0),"NVT") -> 29.56715655
A116: 55/3 | B116: =IFERROR(VLOOKUP(A116,'Data CAO GHZ 2019 (verbergen)'!C:K,9,0),"NVT") -> 29.25119808 | C116: =IFERROR(VLOOKUP(A116,'Data CAO VVT 2019 (verbergen)'!C:M,11,0),"NVT") -> 30.41916717 | D116: =IFERROR(VLOOKUP(A116,'Data CAO GGZ 2019 (verbergen)'!C:M,11,0),"NVT") -> 30.80265815
A117: 55/4 | B117: =IFERROR(VLOOKUP(A117,'Data CAO GHZ 2019 (verbergen)'!C:K,9,0),"NVT") -> 30.60752796 | C117: =IFERROR(VLOOKUP(A117,'Data CAO VVT 2019 (verbergen)'!C:M,11,0),"NVT") -> 31.68221095 | D117: =IFERROR(VLOOKUP(A117,'Data CAO GGZ 2019 (verbergen)'!C:M,11,0),"NVT") -> 32.0947476
A118: 55/5 | B118: =IFERROR(VLOOKUP(A118,'Data CAO GHZ 2019 (verbergen)'!C:K,9,0),"NVT") -> 31.90694888 | C118: =IFERROR(VLOOKUP(A118,'Data CAO VVT 2019 (verbergen)'!C:M,11,0),"NVT") -> 33.01858719 | D118: =IFERROR(VLOOKUP(A118,'Data CAO GGZ 2019 (verbergen)'!C:M,11,0),"NVT") -> 32.69835144
A119: 55/6 | B119: =IFERROR(VLOOKUP(A119,'Data CAO GHZ 2019 (verbergen)'!C:K,9,0),"NVT") -> 33.24430911 | C119: =IFERROR(VLOOKUP(A119,'Data CAO VVT 2019 (verbergen)'!C:M,11,0),"NVT") -> 33.63841424 | D119: =IFERROR(VLOOKUP(A119,'Data CAO GGZ 2019 (verbergen)'!C:M,11,0),"NVT") -> 33.31138658
A120: 55/7 | B120: =IFERROR(VLOOKUP(A120,'Data CAO GHZ 2019 (verbergen)'!C:K,9,0),"NVT") -> 33.87979233 | C120: =IFERROR(VLOOKUP(A120,'Data CAO VVT 2019 (verbergen)'!C:M,11,0),"NVT") -> 34.25785784 | D120: =IFERROR(VLOOKUP(A120,'Data CAO GGZ 2019 (verbergen)'!C:M,11,0),"NVT") -> 33.9998722
A121: 55/8 | B121: =IFERROR(VLOOKUP(A121,'Data CAO GHZ 2019 (verbergen)'!C:K,9,0),"NVT") -> 34.61960863 | C121: =IFERROR(VLOOKUP(A121,'Data CAO VVT 2019 (verbergen)'!C:M,11,0),"NVT") -> 34.97479048 | D121: =IFERROR(VLOOKUP(A121,'Data CAO GGZ 2019 (verbergen)'!C:M,11,0),"NVT") -> 34.70722045
A122: 55/9 | B122: =IFERROR(VLOOKUP(A122,'Data CAO GHZ 2019 (verbergen)'!C:K,9,0),"NVT") -> 35.35942492 | C122: =IFERROR(VLOOKUP(A122,'Data CAO VVT 2019 (verbergen)'!C:M,11,0),"NVT") -> 35.70360969 | D122: =IFERROR(VLOOKUP(A122,'Data CAO GGZ 2019 (verbergen)'!C:M,11,0),"NVT") -> 35.40513738
A123: 55/10 | B123: =IFERROR(VLOOKUP(A123,'Data CAO GHZ 2019 (verbergen)'!C:K,9,0),"NVT") -> 36.09924121 | C123: =IFERROR(VLOOKUP(A123,'Data CAO VVT 2019 (verbergen)'!C:M,11,0),"NVT") -> 36.42035061 | D123: =IFERROR(VLOOKUP(A123,'Data CAO GGZ 2019 (verbergen)'!C:M,11,0),"NVT") -> 36.02760383
A124: 55/11 | B124: =IFERROR(VLOOKUP(A124,'Data CAO GHZ 2019 (verbergen)'!C:K,9,0),"NVT") -> 36.79163339 | C124: =IFERROR(VLOOKUP(A124,'Data CAO VVT 2019 (verbergen)'!C:M,11,0),"NVT") -> 37.06423836 | D124: =IFERROR(VLOOKUP(A124,'Data CAO GGZ 2019 (verbergen)'!C:M,11,0),"NVT") -> 36.72552077
A125: 55/12 | B125: =IFERROR(VLOOKUP(A125,'Data CAO GHZ 2019 (verbergen)'!C:K,9,0),"NVT") -> 37.44608626
A126: 60/0 | B126: =IFERROR(VLOOKUP(A126,'Data CAO GHZ 2019 (verbergen)'!C:K,9,0),"NVT") -> 29.25119808 | C126: =IFERROR(VLOOKUP(A126,'Data CAO VVT 2019 (verbergen)'!C:M,11,0),"NVT") -> 31.68221095 | D126: =IFERROR(VLOOKUP(A126,'Data CAO GGZ 2019 (verbergen)'!C:M,11,0),"NVT") -> 30.80265815
A127: 60/1 | B127: =IFERROR(VLOOKUP(A127,'Data CAO GHZ 2019 (verbergen)'!C:K,9,0),"NVT") -> 30.60752796 | C127: =IFERROR(VLOOKUP(A127,'Data CAO VVT 2019 (verbergen)'!C:M,11,0),"NVT") -> 33.01858719 | D127: =IFERROR(VLOOKUP(A127,'Data CAO GGZ 2019 (verbergen)'!C:M,11,0),"NVT") -> 32.0947476
A128: 60/2 | B128: =IFERROR(VLOOKUP(A128,'Data CAO GHZ 2019 (verbergen)'!C:K,9,0),"NVT") -> 31.90694888 | C128: =IFERROR(VLOOKUP(A128,'Data CAO VVT 2019 (verbergen)'!C:M,11,0),"NVT") -> 34.25785784 | D128: =IFERROR(VLOOKUP(A128,'Data CAO GGZ 2019 (verbergen)'!C:M,11,0),"NVT") -> 33.31138658
A129: 60/3 | B129: =IFERROR(VLOOKUP(A129,'Data CAO GHZ 2019 (verbergen)'!C:K,9,0),"NVT") -> 33.24430911 | C129: =IFERROR(VLOOKUP(A129,'Data CAO VVT 2019 (verbergen)'!C:M,11,0),"NVT") -> 35.70360969 | D129: =IFERROR(VLOOKUP(A129,'Data CAO GGZ 2019 (verbergen)'!C:M,11,0),"NVT") -> 34.70722045
A130: 60/4 | B130: =IFERROR(VLOOKUP(A130,'Data CAO GHZ 2019 (verbergen)'!C:K,9,0),"NVT") -> 34.61960863 | C130: =IFERROR(VLOOKUP(A130,'Data CAO VVT 2019 (verbergen)'!C:M,11,0),"NVT") -> 37.06423836 | D130: =IFERROR(VLOOKUP(A130,'Data CAO GGZ 2019 (verbergen)'!C:M,11,0),"NVT") -> 36.02760383
A131: 60/5 | B131: =IFERROR(VLOOKUP(A131,'Data CAO GHZ 2019 (verbergen)'!C:K,9,0),"NVT") -> 36.09924121 | C131: =IFERROR(VLOOKUP(A131,'Data CAO VVT 2019 (verbergen)'!C:M,11,0),"NVT") -> 38.46138948 | D131: =IFERROR(VLOOKUP(A131,'Data CAO GGZ 2019 (verbergen)'!C:M,11,0),"NVT") -> 37.39514377
A132: 60/6 | B132: =IFERROR(VLOOKUP(A132,'Data CAO GHZ 2019 (verbergen)'!C:K,9,0),"NVT") -> 37.44608626 | C132: =IFERROR(VLOOKUP(A132,'Data CAO VVT 2019 (verbergen)'!C:M,11,0),"NVT") -> 39.80946058 | D132: =IFERROR(VLOOKUP(A132,'Data CAO GGZ 2019 (verbergen)'!C:M,11,0),"NVT") -> 38.70609585
A133: 60/7 | B133: =IFERROR(VLOOKUP(A133,'Data CAO GHZ 2019 (verbergen)'!C:K,9,0),"NVT") -> 38.84984026 | C133: =IFERROR(VLOOKUP(A133,'Data CAO VVT 2019 (verbergen)'!C:M,11,0),"NVT") -> 40.40493932 | D133: =IFERROR(VLOOKUP(A133,'Data CAO GGZ 2019 (verbergen)'!C:M,11,0),"NVT") -> 39.28140575
A134: 60/8 | B134: =IFERROR(VLOOKUP(A134,'Data CAO GHZ 2019 (verbergen)'!C:K,9,0),"NVT") -> 40.24410942 | C134: =IFERROR(VLOOKUP(A134,'Data CAO VVT 2019 (verbergen)'!C:M,11,0),"NVT") -> 41.01230464 | D134: =IFERROR(VLOOKUP(A134,'Data CAO GGZ 2019 (verbergen)'!C:M,11,0),"NVT") -> 39.87557827
A135: 60/9 | B135: =IFERROR(VLOOKUP(A135,'Data CAO GHZ 2019 (verbergen)'!C:K,9,0),"NVT") -> 40.81319888 | C135: =IFERROR(VLOOKUP(A135,'Data CAO VVT 2019 (verbergen)'!C:M,11,0),"NVT") -> 41.64392239 | D135: =IFERROR(VLOOKUP(A135,'Data CAO GGZ 2019 (verbergen)'!C:M,11,0),"NVT") -> 40.48861342
A136: 60/10 | B136: =IFERROR(VLOOKUP(A136,'Data CAO GHZ 2019 (verbergen)'!C:K,9,0),"NVT") -> 41.43919728 | C136: =IFERROR(VLOOKUP(A136,'Data CAO VVT 2019 (verbergen)'!C:M,11,0),"NVT") -> 42.25147942 | D136: =IFERROR(VLOOKUP(A136,'Data CAO GGZ 2019 (verbergen)'!C:M,11,0),"NVT") -> 41.07335463
A137: 60/11 | B137: =IFERROR(VLOOKUP(A137,'Data CAO GHZ 2019 (verbergen)'!C:K,9,0),"NVT") -> 42.07468051
A138: 60/12 | B138: =IFERROR(VLOOKUP(A138,'Data CAO GHZ 2019 (verbergen)'!C:K,9,0),"NVT") -> 42.67222444
A139: 65/0 | B139: =IFERROR(VLOOKUP(A139,'Data CAO GHZ 2019 (verbergen)'!C:K,9,0),"NVT") -> 33.24430911 | C139: =IFERROR(VLOOKUP(A139,'Data CAO VVT 2019 (verbergen)'!C:M,11,0),"NVT") -> 35.70360969 | D139: =IFERROR(VLOOKUP(A139,'Data CAO GGZ 2019 (verbergen)'!C:M,11,0),"NVT") -> 36.02760383
A140: 65/1 | B140: =IFERROR(VLOOKUP(A140,'Data CAO GHZ 2019 (verbergen)'!C:K,9,0),"NVT") -> 35.35942492 | C140: =IFERROR(VLOOKUP(A140,'Data CAO VVT 2019 (verbergen)'!C:M,11,0),"NVT") -> 37.06423836 | D140: =IFERROR(VLOOKUP(A140,'Data CAO GGZ 2019 (verbergen)'!C:M,11,0),"NVT") -> 37.39514377
A141: 65/2 | B141: =IFERROR(VLOOKUP(A141,'Data CAO GHZ 2019 (verbergen)'!C:K,9,0),"NVT") -> 37.44608626 | C141: =IFERROR(VLOOKUP(A141,'Data CAO VVT 2019 (verbergen)'!C:M,11,0),"NVT") -> 37.78097928 | D141: =IFERROR(VLOOKUP(A141,'Data CAO GGZ 2019 (verbergen)'!C:M,11,0),"NVT") -> 38.70609585
A142: 65/3 | B142: =IFERROR(VLOOKUP(A142,'Data CAO GHZ 2019 (verbergen)'!C:K,9,0),"NVT") -> 38.84984026 | C142: =IFERROR(VLOOKUP(A142,'Data CAO VVT 2019 (verbergen)'!C:M,11,0),"NVT") -> 38.46138948 | D142: =IFERROR(VLOOKUP(A142,'Data CAO GGZ 2019 (verbergen)'!C:M,11,0),"NVT") -> 39.87557827
A143: 65/4 | B143: =IFERROR(VLOOKUP(A143,'Data CAO GHZ 2019 (verbergen)'!C:K,9,0),"NVT") -> 40.24410942 | C143: =IFERROR(VLOOKUP(A143,'Data CAO VVT 2019 (verbergen)'!C:M,11,0),"NVT") -> 39.15378211 | D143: =IFERROR(VLOOKUP(A143,'Data CAO GGZ 2019 (verbergen)'!C:M,11,0),"NVT") -> 41.07335463
A144: 65/5 | B144: =IFERROR(VLOOKUP(A144,'Data CAO GHZ 2019 (verbergen)'!C:K,9,0),"NVT") -> 41.43919728 | C144: =IFERROR(VLOOKUP(A144,'Data CAO VVT 2019 (verbergen)'!C:M,11,0),"NVT") -> 39.80946058 | D144: =IFERROR(VLOOKUP(A144,'Data CAO GGZ 2019 (verbergen)'!C:M,11,0),"NVT") -> 42.29942492
A145: 65/6 | B145: =IFERROR(VLOOKUP(A145,'Data CAO GHZ 2019 (verbergen)'!C:K,9,0),"NVT") -> 42.67222444 | C145: =IFERROR(VLOOKUP(A145,'Data CAO VVT 2019 (verbergen)'!C:M,11,0),"NVT") -> 41.01230464 | D145: =IFERROR(VLOOKUP(A145,'Data CAO GGZ 2019 (verbergen)'!C:M,11,0),"NVT") -> 43.50663259
A146: 65/7 | B146: =IFERROR(VLOOKUP(A146,'Data CAO GHZ 2019 (verbergen)'!C:K,9,0),"NVT") -> 43.96216054 | C146: =IFERROR(VLOOKUP(A146,'Data CAO VVT 2019 (verbergen)'!C:M,11,0),"NVT") -> 42.25147942 | D146: =IFERROR(VLOOKUP(A146,'Data CAO GGZ 2019 (verbergen)'!C:M,11,0),"NVT") -> 44.71384026
A147: 65/8 | B147: =IFERROR(VLOOKUP(A147,'Data CAO GHZ 2019 (verbergen)'!C:K,9,0),"NVT") -> 45.22364217 | C147: =IFERROR(VLOOKUP(A147,'Data CAO VVT 2019 (verbergen)'!C:M,11,0),"NVT") -> 43.5027325 | D147: =IFERROR(VLOOKUP(A147,'Data CAO GGZ 2019 (verbergen)'!C:M,11,0),"NVT") -> 45.93991054
A148: 65/9 | B148: =IFERROR(VLOOKUP(A148,'Data CAO GHZ 2019 (verbergen)'!C:K,9,0),"NVT") -> 46.45666933 | C148: =IFERROR(VLOOKUP(A148,'Data CAO VVT 2019 (verbergen)'!C:M,11,0),"NVT") -> 44.74161971 | D148: =IFERROR(VLOOKUP(A148,'Data CAO GGZ 2019 (verbergen)'!C:M,11,0),"NVT") -> 46.52465176
A149: 65/10 | B149: =IFERROR(VLOOKUP(A149,'Data CAO GHZ 2019 (verbergen)'!C:K,9,0),"NVT") -> 47.74660543 | C149: =IFERROR(VLOOKUP(A149,'Data CAO VVT 2019 (verbergen)'!C:M,11,0),"NVT") -> 45.99296864 | D149: =IFERROR(VLOOKUP(A149,'Data CAO GGZ 2019 (verbergen)'!C:M,11,0),"NVT") -> 47.12825559
A150: 65/11 | B150: =IFERROR(VLOOKUP(A150,'Data CAO GHZ 2019 (verbergen)'!C:K,9,0),"NVT") -> 48.34414936 | C150: =IFERROR(VLOOKUP(A150,'Data CAO VVT 2019 (verbergen)'!C:M,11,0),"NVT") -> 47.24431757 | D150: =IFERROR(VLOOKUP(A150,'Data CAO GGZ 2019 (verbergen)'!C:M,11,0),"NVT") -> 47.75072204
A151: 65/12 | B151: =IFERROR(VLOOKUP(A151,'Data CAO GHZ 2019 (verbergen)'!C:K,9,0),"NVT") -> 48.99860224 | C151: =IFERROR(VLOOKUP(A151,'Data CAO VVT 2019 (verbergen)'!C:M,11,0),"NVT") -> 47.85177875 | D151: =IFERROR(VLOOKUP(A151,'Data CAO GGZ 2019 (verbergen)'!C:M,11,0),"NVT") -> 48.34489457
A152: 65/13 | B152: =IFERROR(VLOOKUP(A152,'Data CAO GHZ 2019 (verbergen)'!C:K,9,0),"NVT") -> 49.61511581 | C152: =IFERROR(VLOOKUP(A152,'Data CAO VVT 2019 (verbergen)'!C:M,11,0),"NVT") -> 48.47112649
A153: 65/14 | B153: =IFERROR(VLOOKUP(A153,'Data CAO GHZ 2019 (verbergen)'!C:K,9,0),"NVT") -> 50.23162939 | C153: =IFERROR(VLOOKUP(A153,'Data CAO VVT 2019 (verbergen)'!C:M,11,0),"NVT") -> 49.11511011
A154: 65/15 | C154: =IFERROR(VLOOKUP(A154,'Data CAO VVT 2019 (verbergen)'!C:M,11,0),"NVT") -> 49.73464957
A155: 70/0 | B155: =IFERROR(VLOOKUP(A155,'Data CAO GHZ 2019 (verbergen)'!C:K,9,0),"NVT") -> 40.24410942 | C155: =IFERROR(VLOOKUP(A155,'Data CAO VVT 2019 (verbergen)'!C:M,11,0),"NVT") -> 42.25147942 | D155: =IFERROR(VLOOKUP(A155,'Data CAO GGZ 2019 (verbergen)'!C:M,11,0),"NVT") -> 42.29942492
A156: 70/1 | B156: =IFERROR(VLOOKUP(A156,'Data CAO GHZ 2019 (verbergen)'!C:K,9,0),"NVT") -> 42.07468051 | C156: =IFERROR(VLOOKUP(A156,'Data CAO VVT 2019 (verbergen)'!C:M,11,0),"NVT") -> 43.5027325 | D156: =IFERROR(VLOOKUP(A156,'Data CAO GGZ 2019 (verbergen)'!C:M,11,0),"NVT") -> 44.12909904
A157: 70/2 | B157: =IFERROR(VLOOKUP(A157,'Data CAO GHZ 2019 (verbergen)'!C:K,9,0),"NVT") -> 43.96216054 | C157: =IFERROR(VLOOKUP(A157,'Data CAO VVT 2019 (verbergen)'!C:M,11,0),"NVT") -> 44.13435025 | D157: =IFERROR(VLOOKUP(A157,'Data CAO GGZ 2019 (verbergen)'!C:M,11,0),"NVT") -> 45.93991054
A158: 70/3 | B158: =IFERROR(VLOOKUP(A158,'Data CAO GHZ 2019 (verbergen)'!C:K,9,0),"NVT") -> 45.84015575 | C158: =IFERROR(VLOOKUP(A158,'Data CAO VVT 2019 (verbergen)'!C:M,11,0),"NVT") -> 44.74161971 | D158: =IFERROR(VLOOKUP(A158,'Data CAO GGZ 2019 (verbergen)'!C:M,11,0),"NVT") -> 47.75072204
A159: 70/4 | B159: =IFERROR(VLOOKUP(A159,'Data CAO GHZ 2019 (verbergen)'!C:K,9,0),"NVT") -> 47.74660543 | C159: =IFERROR(VLOOKUP(A159,'Data CAO VVT 2019 (verbergen)'!C:M,11,0),"NVT") -> 45.38560332 | D159: =IFERROR(VLOOKUP(A159,'Data CAO GGZ 2019 (verbergen)'!C:M,11,0),"NVT") -> 49.56153355
A160: 70/5 | B160: =IFERROR(VLOOKUP(A160,'Data CAO GHZ 2019 (verbergen)'!C:K,9,0),"NVT") -> 49.61511581 | C160: =IFERROR(VLOOKUP(A160,'Data CAO VVT 2019 (verbergen)'!C:M,11,0),"NVT") -> 47.24431757 | D160: =IFERROR(VLOOKUP(A160,'Data CAO GGZ 2019 (verbergen)'!C:M,11,0),"NVT") -> 50.77817252
A161: 70/6 | B161: =IFERROR(VLOOKUP(A161,'Data CAO GHZ 2019 (verbergen)'!C:K,9,0),"NVT") -> 51.50259585 | C161: =IFERROR(VLOOKUP(A161,'Data CAO VVT 2019 (verbergen)'!C:M,11,0),"NVT") -> 49.11511011 | D161: =IFERROR(VLOOKUP(A161,'Data CAO GGZ 2019 (verbergen)'!C:M,11,0),"NVT") -> 52.28718211
A162: 70/7 | B162: =IFERROR(VLOOKUP(A162,'Data CAO GHZ 2019 (verbergen)'!C:K,9,0),"NVT") -> 52.7735623 | C162: =IFERROR(VLOOKUP(A162,'Data CAO VVT 2019 (verbergen)'!C:M,11,0),"NVT") -> 50.98590265 | D162: =IFERROR(VLOOKUP(A162,'Data CAO GGZ 2019 (verbergen)'!C:M,11,0),"NVT") -> 53.805623
A163: 70/8 | B163: =IFERROR(VLOOKUP(A163,'Data CAO GHZ 2019 (verbergen)'!C:K,9,0),"NVT") -> 54.35752796 | C163: =IFERROR(VLOOKUP(A163,'Data CAO VVT 2019 (verbergen)'!C:M,11,0),"NVT") -> 52.23705986 | D163: =IFERROR(VLOOKUP(A163,'Data CAO GGZ 2019 (verbergen)'!C:M,11,0),"NVT") -> 55.31463259
A164: 70/9 | B164: =IFERROR(VLOOKUP(A164,'Data CAO GHZ 2019 (verbergen)'!C:K,9,0),"NVT") -> 55.91303914 | C164: =IFERROR(VLOOKUP(A164,'Data CAO VVT 2019 (verbergen)'!C:M,11,0),"NVT") -> 53.78030074 | D164: =IFERROR(VLOOKUP(A164,'Data CAO GGZ 2019 (verbergen)'!C:M,11,0),"NVT") -> 56.06913738
A165: 70/10 | B165: =IFERROR(VLOOKUP(A165,'Data CAO GHZ 2019 (verbergen)'!C:K,9,0),"NVT") -> 57.48751997 | C165: =IFERROR(VLOOKUP(A165,'Data CAO VVT 2019 (verbergen)'!C:M,11,0),"NVT") -> 55.34712304 | D165: =IFERROR(VLOOKUP(A165,'Data CAO GGZ 2019 (verbergen)'!C:M,11,0),"NVT") -> 56.84250479
A166: 70/11 | B166: =IFERROR(VLOOKUP(A166,'Data CAO GHZ 2019 (verbergen)'!C:K,9,0),"NVT") -> 58.30321486 | C166: =IFERROR(VLOOKUP(A166,'Data CAO VVT 2019 (verbergen)'!C:M,11,0),"NVT") -> 56.90215463 | D166: =IFERROR(VLOOKUP(A166,'Data CAO GGZ 2019 (verbergen)'!C:M,11,0),"NVT") -> 57.59700958
A167: 70/12 | B167: =IFERROR(VLOOKUP(A167,'Data CAO GHZ 2019 (verbergen)'!C:K,9,0),"NVT") -> 59.08097045 | C167: =IFERROR(VLOOKUP(A167,'Data CAO VVT 2019 (verbergen)'!C:M,11,0),"NVT") -> 57.66749628 | D167: =IFERROR(VLOOKUP(A167,'Data CAO GGZ 2019 (verbergen)'!C:M,11,0),"NVT") -> 58.36094569
A168: 70/13 | B168: =IFERROR(VLOOKUP(A168,'Data CAO GHZ 2019 (verbergen)'!C:K,9,0),"NVT") -> 59.85872604 | C168: =IFERROR(VLOOKUP(A168,'Data CAO VVT 2019 (verbergen)'!C:M,11,0),"NVT") -> 58.46907279
A169: 70/14 | B169: =IFERROR(VLOOKUP(A169,'Data CAO GHZ 2019 (verbergen)'!C:K,9,0),"NVT") -> 60.6649361 | C169: =IFERROR(VLOOKUP(A169,'Data CAO VVT 2019 (verbergen)'!C:M,11,0),"NVT") -> 59.24678031
A170: 70/15 | C170: =IFERROR(VLOOKUP(A170,'Data CAO VVT 2019 (verbergen)'!C:M,11,0),"NVT") -> 60.0242961
A171: 75/0 | B171: =IFERROR(VLOOKUP(A171,'Data CAO GHZ 2019 (verbergen)'!C:K,9,0),"NVT") -> 47.74660543 | C171: =IFERROR(VLOOKUP(A171,'Data CAO VVT 2019 (verbergen)'!C:M,11,0),"NVT") -> 48.47112649 | D171: =IFERROR(VLOOKUP(A171,'Data CAO GGZ 2019 (verbergen)'!C:M,11,0),"NVT") -> 49.56153355
A172: 75/1 | B172: =IFERROR(VLOOKUP(A172,'Data CAO GHZ 2019 (verbergen)'!C:K,9,0),"NVT") -> 49.61511581 | C172: =IFERROR(VLOOKUP(A172,'Data CAO VVT 2019 (verbergen)'!C:M,11,0),"NVT") -> 49.73464957 | D172: =IFERROR(VLOOKUP(A172,'Data CAO GGZ 2019 (verbergen)'!C:M,11,0),"NVT") -> 51.52324601
A173: 75/2 | B173: =IFERROR(VLOOKUP(A173,'Data CAO GHZ 2019 (verbergen)'!C:K,9,0),"NVT") -> 51.50259585 | C173: =IFERROR(VLOOKUP(A173,'Data CAO VVT 2019 (verbergen)'!C:M,11,0),"NVT") -> 50.98590265 | D173: =IFERROR(VLOOKUP(A173,'Data CAO GGZ 2019 (verbergen)'!C:M,11,0),"NVT") -> 53.805623
A174: 75/3 | B174: =IFERROR(VLOOKUP(A174,'Data CAO GHZ 2019 (verbergen)'!C:K,9,0),"NVT") -> 53.56080272 | C174: =IFERROR(VLOOKUP(A174,'Data CAO VVT 2019 (verbergen)'!C:M,11,0),"NVT") -> 51.59336382 | D174: =IFERROR(VLOOKUP(A174,'Data CAO GGZ 2019 (verbergen)'!C:M,11,0),"NVT") -> 56.06913738
A175: 75/4 | B175: =IFERROR(VLOOKUP(A175,'Data CAO GHZ 2019 (verbergen)'!C:K,9,0),"NVT") -> 55.91303914 | C175: =IFERROR(VLOOKUP(A175,'Data CAO VVT 2019 (verbergen)'!C:M,11,0),"NVT") -> 52.23705986 | D175: =IFERROR(VLOOKUP(A175,'Data CAO GGZ 2019 (verbergen)'!C:M,11,0),"NVT") -> 58.36094569
A176: 75/5 | B176: =IFERROR(VLOOKUP(A176,'Data CAO GHZ 2019 (verbergen)'!C:K,9,0),"NVT") -> 58.30321486 | C176: =IFERROR(VLOOKUP(A176,'Data CAO VVT 2019 (verbergen)'!C:M,11,0),"NVT") -> 53.00240151 | D176: =IFERROR(VLOOKUP(A176,'Data CAO GGZ 2019 (verbergen)'!C:M,11,0),"NVT") -> 59.87938658
A177: 75/6 | B177: =IFERROR(VLOOKUP(A177,'Data CAO GHZ 2019 (verbergen)'!C:K,9,0),"NVT") -> 60.6649361 | C177: =IFERROR(VLOOKUP(A177,'Data CAO VVT 2019 (verbergen)'!C:M,11,0),"NVT") -> 55.34712304 | D177: =IFERROR(VLOOKUP(A177,'Data CAO GGZ 2019 (verbergen)'!C:M,11,0),"NVT") -> 61.47327796
A178: 75/7 | B178: =IFERROR(VLOOKUP(A178,'Data CAO GHZ 2019 (verbergen)'!C:K,9,0),"NVT") -> 62.22044728 | C178: =IFERROR(VLOOKUP(A178,'Data CAO VVT 2019 (verbergen)'!C:M,11,0),"NVT") -> 57.66749628 | D178: =IFERROR(VLOOKUP(A178,'Data CAO GGZ 2019 (verbergen)'!C:M,11,0),"NVT") -> 63.16148243
A179: 75/8 | B179: =IFERROR(VLOOKUP(A179,'Data CAO GHZ 2019 (verbergen)'!C:K,9,0),"NVT") -> 63.88977636 | C179: =IFERROR(VLOOKUP(A179,'Data CAO VVT 2019 (verbergen)'!C:M,11,0),"NVT") -> 60.0242961 | D179: =IFERROR(VLOOKUP(A179,'Data CAO GGZ 2019 (verbergen)'!C:M,11,0),"NVT") -> 64.86854952
A180: 75/9 | B180: =IFERROR(VLOOKUP(A180,'Data CAO GHZ 2019 (verbergen)'!C:K,9,0),"NVT") -> 65.64446885 | C180: =IFERROR(VLOOKUP(A180,'Data CAO VVT 2019 (verbergen)'!C:M,11,0),"NVT") -> 61.59131012 | D180: =IFERROR(VLOOKUP(A180,'Data CAO GGZ 2019 (verbergen)'!C:M,11,0),"NVT") -> 65.69850479
A181: 75/10 | B181: =IFERROR(VLOOKUP(A181,'Data CAO GHZ 2019 (verbergen)'!C:K,9,0),"NVT") -> 67.40864617 | C181: =IFERROR(VLOOKUP(A181,'Data CAO VVT 2019 (verbergen)'!C:M,11,0),"NVT") -> 63.21929073 | D181: =IFERROR(VLOOKUP(A181,'Data CAO GGZ 2019 (verbergen)'!C:M,11,0),"NVT") -> 66.55675399
A182: 75/11 | B182: =IFERROR(VLOOKUP(A182,'Data CAO GHZ 2019 (verbergen)'!C:K,9,0),"NVT") -> 68.29073482 | C182: =IFERROR(VLOOKUP(A182,'Data CAO VVT 2019 (verbergen)'!C:M,11,0),"NVT") -> 64.95626351 | D182: =IFERROR(VLOOKUP(A182,'Data CAO GGZ 2019 (verbergen)'!C:M,11,0),"NVT") -> 67.54704153
A183: 75/12 | B183: =IFERROR(VLOOKUP(A183,'Data CAO GHZ 2019 (verbergen)'!C:K,9,0),"NVT") -> 69.18230831 | C183: =IFERROR(VLOOKUP(A183,'Data CAO VVT 2019 (verbergen)'!C:M,11,0),"NVT") -> 66.71815974 | D183: =IFERROR(VLOOKUP(A183,'Data CAO GGZ 2019 (verbergen)'!C:M,11,0),"NVT") -> 68.55619169
A184: 75/13 | B184: =IFERROR(VLOOKUP(A184,'Data CAO GHZ 2019 (verbergen)'!C:K,9,0),"NVT") -> 70.20666933 | C184: =IFERROR(VLOOKUP(A184,'Data CAO VVT 2019 (verbergen)'!C:M,11,0),"NVT") -> 67.56814527 | D184: =IFERROR(VLOOKUP(A184,'Data CAO GGZ 2019 (verbergen)'!C:M,11,0),"NVT") -> 69.52761661
A185: 75/14 | B185: =IFERROR(VLOOKUP(A185,'Data CAO GHZ 2019 (verbergen)'!C:K,9,0),"NVT") -> 71.24051518 | C185: =IFERROR(VLOOKUP(A185,'Data CAO VVT 2019 (verbergen)'!C:M,11,0),"NVT") -> 68.45503666 | D185: =IFERROR(VLOOKUP(A185,'Data CAO GGZ 2019 (verbergen)'!C:M,11,0),"NVT") -> 70.53676677
A186: 75/15 | B186: =IFERROR(VLOOKUP(A186,'Data CAO GHZ 2019 (verbergen)'!C:K,9,0),"NVT") -> 72.2648762 | C186: =IFERROR(VLOOKUP(A186,'Data CAO VVT 2019 (verbergen)'!C:M,11,0),"NVT") -> 69.47536438
A187: 75/16 | B187: =IFERROR(VLOOKUP(A187,'Data CAO GHZ 2019 (verbergen)'!C:K,9,0),"NVT") -> 73.30820687 | C187: =IFERROR(VLOOKUP(A187,'Data CAO VVT 2019 (verbergen)'!C:M,11,0),"NVT") -> 70.50815383
A188: 75/17 | C188: =IFERROR(VLOOKUP(A188,'Data CAO VVT 2019 (verbergen)'!C:M,11,0),"NVT") -> 71.51621154
A189: 75/18 | C189: =IFERROR(VLOOKUP(A189,'Data CAO VVT 2019 (verbergen)'!C:M,11,0),"NVT") -> 72.54890512
A190: 80/0 | B190: =IFERROR(VLOOKUP(A190,'Data CAO GHZ 2019 (verbergen)'!C:K,9,0),"NVT") -> 55.91303914 | C190: =IFERROR(VLOOKUP(A190,'Data CAO VVT 2019 (verbergen)'!C:M,11,0),"NVT") -> 56.90215463 | D190: =IFERROR(VLOOKUP(A190,'Data CAO GGZ 2019 (verbergen)'!C:M,11,0),"NVT") -> 58.36094569
A191: 80/1 | B191: =IFERROR(VLOOKUP(A191,'Data CAO GHZ 2019 (verbergen)'!C:K,9,0),"NVT") -> 58.30321486 | C191: =IFERROR(VLOOKUP(A191,'Data CAO VVT 2019 (verbergen)'!C:M,11,0),"NVT") -> 58.46907279 | D191: =IFERROR(VLOOKUP(A191,'Data CAO GGZ 2019 (verbergen)'!C:M,11,0),"NVT") -> 60.63389137
A192: 80/2 | B192: =IFERROR(VLOOKUP(A192,'Data CAO GHZ 2019 (verbergen)'!C:K,9,0),"NVT") -> 60.6649361 | C192: =IFERROR(VLOOKUP(A192,'Data CAO VVT 2019 (verbergen)'!C:M,11,0),"NVT") -> 60.0242961 | D192: =IFERROR(VLOOKUP(A192,'Data CAO GGZ 2019 (verbergen)'!C:M,11,0),"NVT") -> 63.16148243
A193: 80/3 | B193: =IFERROR(VLOOKUP(A193,'Data CAO GHZ 2019 (verbergen)'!C:K,9,0),"NVT") -> 62.98871805 | C193: =IFERROR(VLOOKUP(A193,'Data CAO VVT 2019 (verbergen)'!C:M,11,0),"NVT") -> 60.80162018 | D193: =IFERROR(VLOOKUP(A193,'Data CAO GGZ 2019 (verbergen)'!C:M,11,0),"NVT") -> 65.69850479
A194: 80/4 | B194: =IFERROR(VLOOKUP(A194,'Data CAO GHZ 2019 (verbergen)'!C:K,9,0),"NVT") -> 65.64446885 | C194: =IFERROR(VLOOKUP(A194,'Data CAO VVT 2019 (verbergen)'!C:M,11,0),"NVT") -> 61.59131012 | D194: =IFERROR(VLOOKUP(A194,'Data CAO GGZ 2019 (verbergen)'!C:M,11,0),"NVT") -> 68.55619169
A195: 80/5 | B195: =IFERROR(VLOOKUP(A195,'Data CAO GHZ 2019 (verbergen)'!C:K,9,0),"NVT") -> 68.29073482 | C195: =IFERROR(VLOOKUP(A195,'Data CAO VVT 2019 (verbergen)'!C:M,11,0),"NVT") -> 62.35655591 | D195: =IFERROR(VLOOKUP(A195,'Data CAO GGZ 2019 (verbergen)'!C:M,11,0),"NVT") -> 70.53676677
A196: 80/6 | B196: =IFERROR(VLOOKUP(A196,'Data CAO GHZ 2019 (verbergen)'!C:K,9,0),"NVT") -> 71.24051518 | C196: =IFERROR(VLOOKUP(A196,'Data CAO VVT 2019 (verbergen)'!C:M,11,0),"NVT") -> 64.95626351 | D196: =IFERROR(VLOOKUP(A196,'Data CAO GGZ 2019 (verbergen)'!C:M,11,0),"NVT") -> 72.50791054
A197: 80/7 | B197: =IFERROR(VLOOKUP(A197,'Data CAO GHZ 2019 (verbergen)'!C:K,9,0),"NVT") -> 73.30820687 | C197: =IFERROR(VLOOKUP(A197,'Data CAO VVT 2019 (verbergen)'!C:M,11,0),"NVT") -> 67.56814527 | D197: =IFERROR(VLOOKUP(A197,'Data CAO GGZ 2019 (verbergen)'!C:M,11,0),"NVT") -> 74.48848562
A198: 80/8 | B198: =IFERROR(VLOOKUP(A198,'Data CAO GHZ 2019 (verbergen)'!C:K,9,0),"NVT") -> 75.35692891 | C198: =IFERROR(VLOOKUP(A198,'Data CAO VVT 2019 (verbergen)'!C:M,11,0),"NVT") -> 70.50815383 | D198: =IFERROR(VLOOKUP(A198,'Data CAO GGZ 2019 (verbergen)'!C:M,11,0),"NVT") -> 76.48792332
A199: 80/9 | B199: =IFERROR(VLOOKUP(A199,'Data CAO GHZ 2019 (verbergen)'!C:K,9,0),"NVT") -> 77.40565096 | C199: =IFERROR(VLOOKUP(A199,'Data CAO VVT 2019 (verbergen)'!C:M,11,0),"NVT") -> 72.54890512 | D199: =IFERROR(VLOOKUP(A199,'Data CAO GGZ 2019 (verbergen)'!C:M,11,0),"NVT") -> 77.48764217
A200: 80/10 | B200: =IFERROR(VLOOKUP(A200,'Data CAO GHZ 2019 (verbergen)'!C:K,9,0),"NVT") -> 79.50179712 | C200: =IFERROR(VLOOKUP(A200,'Data CAO VVT 2019 (verbergen)'!C:M,11,0),"NVT") -> 74.56549985 | D200: =IFERROR(VLOOKUP(A200,'Data CAO GGZ 2019 (verbergen)'!C:M,11,0),"NVT") -> 78.48736102
... 8 more rows

Sheet Data CAO GHZ 2019 (verbergen) (hidden)
A1: Cao GHZ schalen per 1-1-2019
E2: 0.0705 | F2: 0.08 | G2: 0.037 | I2: =17%+8% -> 0.25 | K2: =1878/12 -> 156.5
A3: Funct.schaal | B3: Trede | C3: Samengesteld | D3: Salaris | E3: EJU | F3: Vak toeslag | G3: PBL | H3: Brutoloon | I3: Soc.lasten + pens.pr. | J3: Tot incl soc lst + pens.pr. | K3: Uurloon
A4: 5 | B4: 0 | C4: =CONCATENATE(A4,"/",B4) -> 5/0 | D4: 1501 | E4: =D4*$E$2 -> 105.8205 | F4: =D4*$F$2 -> 120.08 | G4: =D4*$G$2 -> 55.537 | H4: =SUM(D4:G4) -> 1782.4375 | I4: =H4*$I$2 -> 445.609375 | J4: =SUM(H4:I4) -> 2228.046875 | K4: =J4/$K$2 -> 14.23672125
A5: 5 | B5: 1 | C5: 5/1 | D5: 1528 | E5: 107.724 | F5: 122.24 | G5: 56.536 | H5: 1814.5 | I5: 453.625 | J5: 2268.125 | K5: 14.4928115
A6: 5 | B6: 2 | C6: 5/2 | D6: 1556 | E6: 109.698 | F6: 124.48 | G6: 57.572 | H6: 1847.75 | I6: 461.9375 | J6: 2309.6875 | K6: 14.75838658
A7: 5 | B7: 3 | C7: 5/3 | D7: 1616 | E7: 113.928 | F7: 129.28 | G7: 59.792 | H7: 1919 | I7: 479.75 | J7: 2398.75 | K7: 15.32747604
A8: 5 | B8: 4 | C8: 5/4 | D8: 1676 | E8: 118.158 | F8: 134.08 | G8: 62.012 | H8: 1990.25 | I8: 497.5625 | J8: 2487.8125 | K8: 15.8965655
A9: 5 | B9: 5 | C9: 5/5 | D9: 1707 | E9: 120.3435 | F9: 136.56 | G9: 63.159 | H9: 2027.0625 | I9: 506.765625 | J9: 2533.828125 | K9: 16.19059505
A10: 5 | B10: 6 | C10: 5/6 | D10: 1755 | E10: 123.7275 | F10: 140.4 | G10: 64.935 | H10: 2084.0625 | I10: 521.015625 | J10: 2605.078125 | K10: 16.64586661
A11: 5 | B11: 7 | C11: 5/7 | D11: 1800 | E11: 126.9 | F11: 144 | G11: 66.6 | H11: 2137.5 | I11: 534.375 | J11: 2671.875 | K11: 17.07268371
A12: 5 | B12: 8 | C12: 5/8 | D12: 1846 | E12: 130.143 | F12: 147.68 | G12: 68.302 | H12: 2192.125 | I12: 548.03125 | J12: 2740.15625 | K12: 17.50898562
A13: 5 | B13: 9 | C13: 5/9 | D13: 1898 | E13: 133.809 | F13: 151.84 | G13: 70.226 | H13: 2253.875 | I13: 563.46875 | J13: 2817.34375 | K13: 18.00219649
A14: 10 | B14: 0 | C14: 10/0 | D14: 1528 | E14: 107.724 | F14: 122.24 | G14: 56.536 | H14: 1814.5 | I14: 453.625 | J14: 2268.125 | K14: 14.4928115
A15: 10 | B15: 1 | C15: 10/1 | D15: 1556 | E15: 109.698 | F15: 124.48 | G15: 57.572 | H15: 1847.75 | I15: 461.9375 | J15: 2309.6875 | K15: 14.75838658
A16: 10 | B16: 2 | C16: 10/2 | D16: 1616 | E16: 113.928 | F16: 129.28 | G16: 59.792 | H16: 1919 | I16: 479.75 | J16: 2398.75 | K16: 15.32747604
A17: 10 | B17: 3 | C17: 10/3 | D17: 1676 | E17: 118.158 | F17: 134.08 | G17: 62.012 | H17: 1990.25 | I17: 497.5625 | J17: 2487.8125 | K17: 15.8965655
A18: 10 | B18: 4 | C18: 10/4 | D18: 1707 | E18: 120.3435 | F18: 136.56 | G18: 63.159 | H18: 2027.0625 | I18: 506.765625 | J18: 2533.828125 | K18: 16.19059505
A19: 10 | B19: 5 | C19: 10/5 | D19: 1755 | E19: 123.7275 | F19: 140.4 | G19: 64.935 | H19: 2084.0625 | I19: 521.015625 | J19: 2605.078125 | K19: 16.64586661
A20: 10 | B20: 6 | C20: 10/6 | D20: 1800 | E20: 126.9 | F20: 144 | G20: 66.6 | H20: 2137.5 | I20: 534.375 | J20: 2671.875 | K20: 17.07268371
A21: 10 | B21: 7 | C21: 10/7 | D21: 1846 | E21: 130.143 | F21: 147.68 | G21: 68.302 | H21: 2192.125 | I21: 548.03125 | J21: 2740.15625 | K21: 17.50898562
A22: 10 | B22: 8 | C22: 10/8 | D22: 1898 | E22: 133.809 | F22: 151.84 | G22: 70.226 | H22: 2253.875 | I22: 563.46875 | J22: 2817.34375 | K22: 18.00219649
A23: 10 | B23: 9 | C23: 10/9 | D23: 1956 | E23: 137.898 | F23: 156.48 | G23: 72.372 | H23: 2322.75 | I23: 580.6875 | J23: 2903.4375 | K23: 18.55231629
A24: 10 | B24: 10 | C24: 10/10 | D24: 2016 | E24: 142.128 | F24: 161.28 | G24: 74.592 | H24: 2394 | I24: 598.5 | J24: 2992.5 | K24: 19.12140575
A25: 15 | B25: 0 | C25: 15/0 | D25: 1556 | E25: 109.698 | F25: 124.48 | G25: 57.572 | H25: 1847.75 | I25: 461.9375 | J25: 2309.6875 | K25: 14.75838658
A26: 15 | B26: 1 | C26: 15/1 | D26: 1616 | E26: 113.928 | F26: 129.28 | G26: 59.792 | H26: 1919 | I26: 479.75 | J26: 2398.75 | K26: 15.32747604
A27: 15 | B27: 2 | C27: 15/2 | D27: 1676 | E27: 118.158 | F27: 134.08 | G27: 62.012 | H27: 1990.25 | I27: 497.5625 | J27: 2487.8125 | K27: 15.8965655
A28: 15 | B28: 3 | C28: 15/3 | D28: 1707 | E28: 120.3435 | F28: 136.56 | G28: 63.159 | H28: 2027.0625 | I28: 506.765625 | J28: 2533.828125 | K28: 16.19059505
A29: 15 | B29: 4 | C29: 15/4 | D29: 1755 | E29: 123.7275 | F29: 140.4 | G29: 64.935 | H29: 2084.0625 | I29: 521.015625 | J29: 2605.078125 | K29: 16.64586661
A30: 15 | B30: 5 | C30: 15/5 | D30: 1800 | E30: 126.9 | F30: 144 | G30: 66.6 | H30: 2137.5 | I30: 534.375 | J30: 2671.875 | K30: 17.07268371
A31: 15 | B31: 6 | C31: 15/6 | D31: 1846 | E31: 130.143 | F31: 147.68 | G31: 68.302 | H31: 2192.125 | I31: 548.03125 | J31: 2740.15625 | K31: 17.50898562
A32: 15 | B32: 7 | C32: 15/7 | D32: 1898 | E32: 133.809 | F32: 151.84 | G32: 70.226 | H32: 2253.875 | I32: 563.46875 | J32: 2817.34375 | K32: 18.00219649
A33: 15 | B33: 8 | C33: 15/8 | D33: 1956 | E33: 137.898 | F33: 156.48 | G33: 72.372 | H33: 2322.75 | I33: 580.6875 | J33: 2903.4375 | K33: 18.55231629
A34: 15 | B34: 9 | C34: 15/9 | D34: 2016 | E34: 142.128 | F34: 161.28 | G34: 74.592 | H34: 2394 | I34: 598.5 | J34: 2992.5 | K34: 19.12140575
A35: 15 | B35: 10 | C35: 15/10 | D35: 2083 | E35: 146.8515 | F35: 166.64 | G35: 77.071 | H35: 2473.5625 | I35: 618.390625 | J35: 3091.953125 | K35: 19.75688898
A36: 15 | B36: 11 | C36: 15/11 | D36: 2153 | E36: 151.7865 | F36: 172.24 | G36: 79.661 | H36: 2556.6875 | I36: 639.171875 | J36: 3195.859375 | K36: 20.42082668
A37: 20 | B37: 0 | C37: 20/0 | D37: 1616 | E37: 113.928 | F37: 129.28 | G37: 59.792 | H37: 1919 | I37: 479.75 | J37: 2398.75 | K37: 15.32747604
A38: 20 | B38: 1 | C38: 20/1 | D38: 1707 | E38: 120.3435 | F38: 136.56 | G38: 63.159 | H38: 2027.0625 | I38: 506.765625 | J38: 2533.828125 | K38: 16.19059505
A39: 20 | B39: 2 | C39: 20/2 | D39: 1755 | E39: 123.7275 | F39: 140.4 | G39: 64.935 | H39: 2084.0625 | I39: 521.015625 | J39: 2605.078125 | K39: 16.64586661
A40: 20 | B40: 3 | C40: 20/3 | D40: 1800 | E40: 126.9 | F40: 144 | G40: 66.6 | H40: 2137.5 | I40: 534.375 | J40: 2671.875 | K40: 17.07268371
A41: 20 | B41: 4 | C41: 20/4 | D41: 1846 | E41: 130.143 | F41: 147.68 | G41: 68.302 | H41: 2192.125 | I41: 548.03125 | J41: 2740.15625 | K41: 17.50898562
A42: 20 | B42: 5 | C42: 20/5 | D42: 1898 | E42: 133.809 | F42: 151.84 | G42: 70.226 | H42: 2253.875 | I42: 563.46875 | J42: 2817.34375 | K42: 18.00219649
A43: 20 | B43: 6 | C43: 20/6 | D43: 1956 | E43: 137.898 | F43: 156.48 | G43: 72.372 | H43: 2322.75 | I43: 580.6875 | J43: 2903.4375 | K43: 18.55231629
A44: 20 | B44: 7 | C44: 20/7 | D44: 2016 | E44: 142.128 | F44: 161.28 | G44: 74.592 | H44: 2394 | I44: 598.5 | J44: 2992.5 | K44: 19.12140575
A45: 20 | B45: 8 | C45: 20/8 | D45: 2083 | E45: 146.8515 | F45: 166.64 | G45: 77.071 | H45: 2473.5625 | I45: 618.390625 | J45: 3091.953125 | K45: 19.75688898
A46: 20 | B46: 9 | C46: 20/9 | D46: 2153 | E46: 151.7865 | F46: 172.24 | G46: 79.661 | H46: 2556.6875 | I46: 639.171875 | J46: 3195.859375 | K46: 20.42082668
A47: 20 | B47: 10 | C47: 20/10 | D47: 2216 | E47: 156.228 | F47: 177.28 | G47: 81.992 | H47: 2631.5 | I47: 657.875 | J47: 3289.375 | K47: 21.01837061
A48: 20 | B48: 11 | C48: 20/11 | D48: 2287 | E48: 161.2335 | F48: 182.96 | G48: 84.619 | H48: 2715.8125 | I48: 678.953125 | J48: 3394.765625 | K48: 21.69179313
A49: 25 | B49: 0 | C49: 25/0 | D49: 1676 | E49: 118.158 | F49: 134.08 | G49: 62.012 | H49: 1990.25 | I49: 497.5625 | J49: 2487.8125 | K49: 15.8965655
A50: 25 | B50: 1 | C50: 25/1 | D50: 1755 | E50: 123.7275 | F50: 140.4 | G50: 64.935 | H50: 2084.0625 | I50: 521.015625 | J50: 2605.078125 | K50: 16.64586661
A51: 25 | B51: 2 | C51: 25/2 | D51: 1846 | E51: 130.143 | F51: 147.68 | G51: 68.302 | H51: 2192.125 | I51: 548.03125 | J51: 2740.15625 | K51: 17.50898562
A52: 25 | B52: 3 | C52: 25/3 | D52: 1898 | E52: 133.809 | F52: 151.84 | G52: 70.226 | H52: 2253.875 | I52: 563.46875 | J52: 2817.34375 | K52: 18.00219649
A53: 25 | B53: 4 | C53: 25/4 | D53: 1956 | E53: 137.898 | F53: 156.48 | G53: 72.372 | H53: 2322.75 | I53: 580.6875 | J53: 2903.4375 | K53: 18.55231629
A54: 25 | B54: 5 | C54: 25/5 | D54: 2016 | E54: 142.128 | F54: 161.28 | G54: 74.592 | H54: 2394 | I54: 598.5 | J54: 2992.5 | K54: 19.12140575
A55: 25 | B55: 6 | C55: 25/6 | D55: 2083 | E55: 146.8515 | F55: 166.64 | G55: 77.071 | H55: 2473.5625 | I55: 618.390625 | J55: 3091.953125 | K55: 19.75688898
A56: 25 | B56: 7 | C56: 25/7 | D56: 2153 | E56: 151.7865 | F56: 172.24 | G56: 79.661 | H56: 2556.6875 | I56: 639.171875 | J56: 3195.859375 | K56: 20.42082668
A57: 25 | B57: 8 | C57: 25/8 | D57: 2216 | E57: 156.228 | F57: 177.28 | G57: 81.992 | H57: 2631.5 | I57: 657.875 | J57: 3289.375 | K57: 21.01837061
A58: 25 | B58: 9 | C58: 25/9 | D58: 2287 | E58: 161.2335 | F58: 182.96 | G58: 84.619 | H58: 2715.8125 | I58: 678.953125 | J58: 3394.765625 | K58: 21.69179313
A59: 25 | B59: 10 | C59: 25/10 | D59: 2345 | E59: 165.3225 | F59: 187.6 | G59: 86.765 | H59: 2784.6875 | I59: 696.171875 | J59: 3480.859375 | K59: 22.24191294
A60: 25 | B60: 11 | C60: 25/11 | D60: 2413 | E60: 170.1165 | F60: 193.04 | G60: 89.281 | H60: 2865.4375 | I60: 716.359375 | J60: 3581.796875 | K60: 22.88688099
A61: 30 | B61: 0 | C61: 30/0 | D61: 1707 | E61: 120.3435 | F61: 136.56 | G61: 63.159 | H61: 2027.0625 | I61: 506.765625 | J61: 2533.828125 | K61: 16.19059505
A62: 30 | B62: 1 | C62: 30/1 | D62: 1800 | E62: 126.9 | F62: 144 | G62: 66.6 | H62: 2137.5 | I62: 534.375 | J62: 2671.875 | K62: 17.07268371
A63: 30 | B63: 2 | C63: 30/2 | D63: 1898 | E63: 133.809 | F63: 151.84 | G63: 70.226 | H63: 2253.875 | I63: 563.46875 | J63: 2817.34375 | K63: 18.00219649
A64: 30 | B64: 3 | C64: 30/3 | D64: 2016 | E64: 142.128 | F64: 161.28 | G64: 74.592 | H64: 2394 | I64: 598.5 | J64: 2992.5 | K64: 19.12140575
A65: 30 | B65: 4 | C65: 30/4 | D65: 2083 | E65: 146.8515 | F65: 166.64 | G65: 77.071 | H65: 2473.5625 | I65: 618.390625 | J65: 3091.953125 | K65: 19.75688898
A66: 30 | B66: 5 | C66: 30/5 | D66: 2153 | E66: 151.7865 | F66: 172.24 | G66: 79.661 | H66: 2556.6875 | I66: 639.171875 | J66: 3195.859375 | K66: 20.42082668
A67: 30 | B67: 6 | C67: 30/6 | D67: 2216 | E67: 156.228 | F67: 177.28 | G67: 81.992 | H67: 2631.5 | I67: 657.875 | J67: 3289.375 | K67: 21.01837061
A68: 30 | B68: 7 | C68: 30/7 | D68: 2287 | E68: 161.2335 | F68: 182.96 | G68: 84.619 | H68: 2715.8125 | I68: 678.953125 | J68: 3394.765625 | K68: 21.69179313
A69: 30 | B69: 8 | C69: 30/8 | D69: 2345 | E69: 165.3225 | F69: 187.6 | G69: 86.765 | H69: 2784.6875 | I69: 696.171875 | J69: 3480.859375 | K69: 22.24191294
A70: 30 | B70: 9 | C70: 30/9 | D70: 2413 | E70: 170.1165 | F70: 193.04 | G70: 89.281 | H70: 2865.4375 | I70: 716.359375 | J70: 3581.796875 | K70: 22.88688099
A71: 30 | B71: 10 | C71: 30/10 | D71: 2478 | E71: 174.699 | F71: 198.24 | G71: 91.686 | H71: 2942.625 | I71: 735.65625 | J71: 3678.28125 | K71: 23.50339457
A72: 30 | B72: 11 | C72: 30/11 | D72: 2546 | E72: 179.493 | F72: 203.68 | G72: 94.202 | H72: 3023.375 | I72: 755.84375 | J72: 3779.21875 | K72: 24.14836262
A73: 35 | B73: 0 | C73: 35/0 | D73: 1800 | E73: 126.9 | F73: 144 | G73: 66.6 | H73: 2137.5 | I73: 534.375 | J73: 2671.875 | K73: 17.07268371
A74: 35 | B74: 1 | C74: 35/1 | D74: 1898 | E74: 133.809 | F74: 151.84 | G74: 70.226 | H74: 2253.875 | I74: 563.46875 | J74: 2817.34375 | K74: 18.00219649
A75: 35 | B75: 2 | C75: 35/2 | D75: 2016 | E75: 142.128 | F75: 161.28 | G75: 74.592 | H75: 2394 | I75: 598.5 | J75: 2992.5 | K75: 19.12140575
A76: 35 | B76: 3 | C76: 35/3 | D76: 2153 | E76: 151.7865 | F76: 172.24 | G76: 79.661 | H76: 2556.6875 | I76: 639.171875 | J76: 3195.859375 | K76: 20.42082668
A77: 35 | B77: 4 | C77: 35/4 | D77: 2216 | E77: 156.228 | F77: 177.28 | G77: 81.992 | H77: 2631.5 | I77: 657.875 | J77: 3289.375 | K77: 21.01837061
A78: 35 | B78: 5 | C78: 35/5 | D78: 2287 | E78: 161.2335 | F78: 182.96 | G78: 84.619 | H78: 2715.8125 | I78: 678.953125 | J78: 3394.765625 | K78: 21.69179313
A79: 35 | B79: 6 | C79: 35/6 | D79: 2345 | E79: 165.3225 | F79: 187.6 | G79: 86.765 | H79: 2784.6875 | I79: 696.171875 | J79: 3480.859375 | K79: 22.24191294
A80: 35 | B80: 7 | C80: 35/7 | D80: 2413 | E80: 170.1165 | F80: 193.04 | G80: 89.281 | H80: 2865.4375 | I80: 716.359375 | J80: 3581.796875 | K80: 22.88688099
A81: 35 | B81: 8 | C81: 35/8 | D81: 2478 | E81: 174.699 | F81: 198.24 | G81: 91.686 | H81: 2942.625 | I81: 735.65625 | J81: 3678.28125 | K81: 23.50339457
A82: 35 | B82: 9 | C82: 35/9 | D82: 2546 | E82: 179.493 | F82: 203.68 | G82: 94.202 | H82: 3023.375 | I82: 755.84375 | J82: 3779.21875 | K82: 24.14836262
A83: 35 | B83: 10 | C83: 35/10 | D83: 2610 | E83: 184.005 | F83: 208.8 | G83: 96.57 | H83: 3099.375 | I83: 774.84375 | J83: 3874.21875 | K83: 24.75539137
A84: 35 | B84: 11 | C84: 35/11 | D84: 2675 | E84: 188.5875 | F84: 214 | G84: 98.975 | H84: 3176.5625 | I84: 794.140625 | J84: 3970.703125 | K84: 25.37190495
A85: 40 | B85: 0 | C85: 40/0 | D85: 1898 | E85: 133.809 | F85: 151.84 | G85: 70.226 | H85: 2253.875 | I85: 563.46875 | J85: 2817.34375 | K85: 18.00219649
A86: 40 | B86: 1 | C86: 40/1 | D86: 2016 | E86: 142.128 | F86: 161.28 | G86: 74.592 | H86: 2394 | I86: 598.5 | J86: 2992.5 | K86: 19.12140575
A87: 40 | B87: 2 | C87: 40/2 | D87: 2153 | E87: 151.7865 | F87: 172.24 | G87: 79.661 | H87: 2556.6875 | I87: 639.171875 | J87: 3195.859375 | K87: 20.42082668
A88: 40 | B88: 3 | C88: 40/3 | D88: 2287 | E88: 161.2335 | F88: 182.96 | G88: 84.619 | H88: 2715.8125 | I88: 678.953125 | J88: 3394.765625 | K88: 21.69179313
A89: 40 | B89: 4 | C89: 40/4 | D89: 2345 | E89: 165.3225 | F89: 187.6 | G89: 86.765 | H89: 2784.6875 | I89: 696.171875 | J89: 3480.859375 | K89: 22.24191294
A90: 40 | B90: 5 | C90: 40/5 | D90: 2413 | E90: 170.1165 | F90: 193.04 | G90: 89.281 | H90: 2865.4375 | I90: 716.359375 | J90: 3581.796875 | K90: 22.88688099
A91: 40 | B91: 6 | C91: 40/6 | D91: 2478 | E91: 174.699 | F91: 198.24 | G91: 91.686 | H91: 2942.625 | I91: 735.65625 | J91: 3678.28125 | K91: 23.50339457
A92: 40 | B92: 7 | C92: 40/7 | D92: 2546 | E92: 179.493 | F92: 203.68 | G92: 94.202 | H92: 3023.375 | I92: 755.84375 | J92: 3779.21875 | K92: 24.14836262
A93: 40 | B93: 8 | C93: 40/8 | D93: 2610 | E93: 184.005 | F93: 208.8 | G93: 96.57 | H93: 3099.375 | I93: 774.84375 | J93: 3874.21875 | K93: 24.75539137
A94: 40 | B94: 9 | C94: 40/9 | D94: 2675 | E94: 188.5875 | F94: 214 | G94: 98.975 | H94: 3176.5625 | I94: 794.140625 | J94: 3970.703125 | K94: 25.37190495
A95: 40 | B95: 10 | C95: 40/10 | D95: 2742 | E95: 193.311 | F95: 219.36 | G95: 101.454 | H95: 3256.125 | I95: 814.03125 | J95: 4070.15625 | K95: 26.00738818
A96: 40 | B96: 11 | C96: 40/11 | D96: 2807 | E96: 197.8935 | F96: 224.56 | G96: 103.859 | H96: 3333.3125 | I96: 833.328125 | J96: 4166.640625 | K96: 26.62390176
A97: 45 | B97: 0 | C97: 45/0 | D97: 2016 | E97: 142.128 | F97: 161.28 | G97: 74.592 | H97: 2394 | I97: 598.5 | J97: 2992.5 | K97: 19.12140575
A98: 45 | B98: 1 | C98: 45/1 | D98: 2153 | E98: 151.7865 | F98: 172.24 | G98: 79.661 | H98: 2556.6875 | I98: 639.171875 | J98: 3195.859375 | K98: 20.42082668
A99: 45 | B99: 2 | C99: 45/2 | D99: 2287 | E99: 161.2335 | F99: 182.96 | G99: 84.619 | H99: 2715.8125 | I99: 678.953125 | J99: 3394.765625 | K99: 21.69179313
A100: 45 | B100: 3 | C100: 45/3 | D100: 2413 | E100: 170.1165 | F100: 193.04 | G100: 89.281 | H100: 2865.4375 | I100: 716.359375 | J100: 3581.796875 | K100: 22.88688099
A101: 45 | B101: 4 | C101: 45/4 | D101: 2546 | E101: 179.493 | F101: 203.68 | G101: 94.202 | H101: 3023.375 | I101: 755.84375 | J101: 3779.21875 | K101: 24.14836262
A102: 45 | B102: 5 | C102: 45/5 | D102: 2610 | E102: 184.005 | F102: 208.8 | G102: 96.57 | H102: 3099.375 | I102: 774.84375 | J102: 3874.21875 | K102: 24.75539137
A103: 45 | B103: 6 | C103: 45/6 | D103: 2675 | E103: 188.5875 | F103: 214 | G103: 98.975 | H103: 3176.5625 | I103: 794.140625 | J103: 3970.703125 | K103: 25.37190495
A104: 45 | B104: 7 | C104: 45/7 | D104: 2742 | E104: 193.311 | F104: 219.36 | G104: 101.454 | H104: 3256.125 | I104: 814.03125 | J104: 4070.15625 | K104: 26.00738818
A105: 45 | B105: 8 | C105: 45/8 | D105: 2807 | E105: 197.8935 | F105: 224.56 | G105: 103.859 | H105: 3333.3125 | I105: 833.328125 | J105: 4166.640625 | K105: 26.62390176
A106: 45 | B106: 9 | C106: 45/9 | D106: 2877 | E106: 202.8285 | F106: 230.16 | G106: 106.449 | H106: 3416.4375 | I106: 854.109375 | J106: 4270.546875 | K106: 27.28783946
A107: 45 | B107: 10 | C107: 45/10 | D107: 2948 | E107: 207.834 | F107: 235.84 | G107: 109.076 | H107: 3500.75 | I107: 875.1875 | J107: 4375.9375 | K107: 27.96126198
A108: 45 | B108: 11 | C108: 45/11 | D108: 3021 | E108: 212.9805 | F108: 241.68 | G108: 111.777 | H108: 3587.4375 | I108: 896.859375 | J108: 4484.296875 | K108: 28.65365415
A109: 45 | B109: 12 | C109: 45/12 | D109: 3084 | E109: 217.422 | F109: 246.72 | G109: 114.108 | H109: 3662.25 | I109: 915.5625 | J109: 4577.8125 | K109: 29.25119808
A110: 50 | B110: 0 | C110: 50/0 | D110: 2345 | E110: 165.3225 | F110: 187.6 | G110: 86.765 | H110: 2784.6875 | I110: 696.171875 | J110: 3480.859375 | K110: 22.24191294
A111: 50 | B111: 1 | C111: 50/1 | D111: 2478 | E111: 174.699 | F111: 198.24 | G111: 91.686 | H111: 2942.625 | I111: 735.65625 | J111: 3678.28125 | K111: 23.50339457
A112: 50 | B112: 2 | C112: 50/2 | D112: 2610 | E112: 184.005 | F112: 208.8 | G112: 96.57 | H112: 3099.375 | I112: 774.84375 | J112: 3874.21875 | K112: 24.75539137
A113: 50 | B113: 3 | C113: 50/3 | D113: 2742 | E113: 193.311 | F113: 219.36 | G113: 101.454 | H113: 3256.125 | I113: 814.03125 | J113: 4070.15625 | K113: 26.00738818
A114: 50 | B114: 4 | C114: 50/4 | D114: 2877 | E114: 202.8285 | F114: 230.16 | G114: 106.449 | H114: 3416.4375 | I114: 854.109375 | J114: 4270.546875 | K114: 27.28783946
A115: 50 | B115: 5 | C115: 50/5 | D115: 3021 | E115: 212.9805 | F115: 241.68 | G115: 111.777 | H115: 3587.4375 | I115: 896.859375 | J115: 4484.296875 | K115: 28.65365415
A116: 50 | B116: 6 | C116: 50/6 | D116: 3084 | E116: 217.422 | F116: 246.72 | G116: 114.108 | H116: 3662.25 | I116: 915.5625 | J116: 4577.8125 | K116: 29.25119808
A117: 50 | B117: 7 | C117: 50/7 | D117: 3157 | E117: 222.5685 | F117: 252.56 | G117: 116.809 | H117: 3748.9375 | I117: 937.234375 | J117: 4686.171875 | K117: 29.94359026
A118: 50 | B118: 8 | C118: 50/8 | D118: 3227 | E118: 227.5035 | F118: 258.16 | G118: 119.399 | H118: 3832.0625 | I118: 958.015625 | J118: 4790.078125 | K118: 30.60752796
A119: 50 | B119: 9 | C119: 50/9 | D119: 3294 | E119: 232.227 | F119: 263.52 | G119: 121.878 | H119: 3911.625 | I119: 977.90625 | J119: 4889.53125 | K119: 31.24301118
A120: 50 | B120: 10 | C120: 50/10 | D120: 3364 | E120: 237.162 | F120: 269.12 | G120: 124.468 | H120: 3994.75 | I120: 998.6875 | J120: 4993.4375 | K120: 31.90694888
A121: 50 | B121: 11 | C121: 50/11 | D121: 3432 | E121: 241.956 | F121: 274.56 | G121: 126.984 | H121: 4075.5 | I121: 1018.875 | J121: 5094.375 | K121: 32.55191693
A122: 50 | B122: 12 | C122: 50/12 | D122: 3505 | E122: 247.1025 | F122: 280.4 | G122: 129.685 | H122: 4162.1875 | I122: 1040.546875 | J122: 5202.734375 | K122: 33.24430911
A123: 55 | B123: 0 | C123: 55/0 | D123: 2675 | E123: 188.5875 | F123: 214 | G123: 98.975 | H123: 3176.5625 | I123: 794.140625 | J123: 3970.703125 | K123: 25.37190495
A124: 55 | B124: 1 | C124: 55/1 | D124: 2807 | E124: 197.8935 | F124: 224.56 | G124: 103.859 | H124: 3333.3125 | I124: 833.328125 | J124: 4166.640625 | K124: 26.62390176
A125: 55 | B125: 2 | C125: 55/2 | D125: 2948 | E125: 207.834 | F125: 235.84 | G125: 109.076 | H125: 3500.75 | I125: 875.1875 | J125: 4375.9375 | K125: 27.96126198
A126: 55 | B126: 3 | C126: 55/3 | D126: 3084 | E126: 217.422 | F126: 246.72 | G126: 114.108 | H126: 3662.25 | I126: 915.5625 | J126: 4577.8125 | K126: 29.25119808
A127: 55 | B127: 4 | C127: 55/4 | D127: 3227 | E127: 227.5035 | F127: 258.16 | G127: 119.399 | H127: 3832.0625 | I127: 958.015625 | J127: 4790.078125 | K127: 30.60752796
A128: 55 | B128: 5 | C128: 55/5 | D128: 3364 | E128: 237.162 | F128: 269.12 | G128: 124.468 | H128: 3994.75 | I128: 998.6875 | J128: 4993.4375 | K128: 31.90694888
A129: 55 | B129: 6 | C129: 55/6 | D129: 3505 | E129: 247.1025 | F129: 280.4 | G129: 129.685 | H129: 4162.1875 | I129: 1040.546875 | J129: 5202.734375 | K129: 33.24430911
A130: 55 | B130: 7 | C130: 55/7 | D130: 3572 | E130: 251.826 | F130: 285.76 | G130: 132.164 | H130: 4241.75 | I130: 1060.4375 | J130: 5302.1875 | K130: 33.87979233
A131: 55 | B131: 8 | C131: 55/8 | D131: 3650 | E131: 257.325 | F131: 292 | G131: 135.05 | H131: 4334.375 | I131: 1083.59375 | J131: 5417.96875 | K131: 34.61960863
A132: 55 | B132: 9 | C132: 55/9 | D132: 3728 | E132: 262.824 | F132: 298.24 | G132: 137.936 | H132: 4427 | I132: 1106.75 | J132: 5533.75 | K132: 35.35942492
A133: 55 | B133: 10 | C133: 55/10 | D133: 3806 | E133: 268.323 | F133: 304.48 | G133: 140.822 | H133: 4519.625 | I133: 1129.90625 | J133: 5649.53125 | K133: 36.09924121
A134: 55 | B134: 11 | C134: 55/11 | D134: 3879 | E134: 273.4695 | F134: 310.32 | G134: 143.523 | H134: 4606.3125 | I134: 1151.578125 | J134: 5757.890625 | K134: 36.79163339
A135: 55 | B135: 12 | C135: 55/12 | D135: 3948 | E135: 278.334 | F135: 315.84 | G135: 146.076 | H135: 4688.25 | I135: 1172.0625 | J135: 5860.3125 | K135: 37.44608626
A136: 60 | B136: 0 | C136: 60/0 | D136: 3084 | E136: 217.422 | F136: 246.72 | G136: 114.108 | H136: 3662.25 | I136: 915.5625 | J136: 4577.8125 | K136: 29.25119808
A137: 60 | B137: 1 | C137: 60/1 | D137: 3227 | E137: 227.5035 | F137: 258.16 | G137: 119.399 | H137: 3832.0625 | I137: 958.015625 | J137: 4790.078125 | K137: 30.60752796
A138: 60 | B138: 2 | C138: 60/2 | D138: 3364 | E138: 237.162 | F138: 269.12 | G138: 124.468 | H138: 3994.75 | I138: 998.6875 | J138: 4993.4375 | K138: 31.90694888
A139: 60 | B139: 3 | C139: 60/3 | D139: 3505 | E139: 247.1025 | F139: 280.4 | G139: 129.685 | H139: 4162.1875 | I139: 1040.546875 | J139: 5202.734375 | K139: 33.24430911
A140: 60 | B140: 4 | C140: 60/4 | D140: 3650 | E140: 257.325 | F140: 292 | G140: 135.05 | H140: 4334.375 | I140: 1083.59375 | J140: 5417.96875 | K140: 34.61960863
A141: 60 | B141: 5 | C141: 60/5 | D141: 3806 | E141: 268.323 | F141: 304.48 | G141: 140.822 | H141: 4519.625 | I141: 1129.90625 | J141: 5649.53125 | K141: 36.09924121
A142: 60 | B142: 6 | C142: 60/6 | D142: 3948 | E142: 278.334 | F142: 315.84 | G142: 146.076 | H142: 4688.25 | I142: 1172.0625 | J142: 5860.3125 | K142: 37.44608626
A143: 60 | B143: 7 | C143: 60/7 | D143: 4096 | E143: 288.768 | F143: 327.68 | G143: 151.552 | H143: 4864 | I143: 1216 | J143: 6080 | K143: 38.84984026
A144: 60 | B144: 8 | C144: 60/8 | D144: 4243 | E144: 299.1315 | F144: 339.44 | G144: 156.991 | H144: 5038.5625 | I144: 1259.640625 | J144: 6298.203125 | K144: 40.24410942
A145: 60 | B145: 9 | C145: 60/9 | D145: 4303 | E145: 303.3615 | F145: 344.24 | G145: 159.211 | H145: 5109.8125 | I145: 1277.453125 | J145: 6387.265625 | K145: 40.81319888
A146: 60 | B146: 10 | C146: 60/10 | D146: 4369 | E146: 308.0145 | F146: 349.52 | G146: 161.653 | H146: 5188.1875 | I146: 1297.046875 | J146: 6485.234375 | K146: 41.43919728
A147: 60 | B147: 11 | C147: 60/11 | D147: 4436 | E147: 312.738 | F147: 354.88 | G147: 164.132 | H147: 5267.75 | I147: 1316.9375 | J147: 6584.6875 | K147: 42.07468051
A148: 60 | B148: 12 | C148: 60/12 | D148: 4499 | E148: 317.1795 | F148: 359.92 | G148: 166.463 | H148: 5342.5625 | I148: 1335.640625 | J148: 6678.203125 | K148: 42.67222444
A149: 65 | B149: 0 | C149: 65/0 | D149: 3505 | E149: 247.1025 | F149: 280.4 | G149: 129.685 | H149: 4162.1875 | I149: 1040.546875 | J149: 5202.734375 | K149: 33.24430911
A150: 65 | B150: 1 | C150: 65/1 | D150: 3728 | E150: 262.824 | F150: 298.24 | G150: 137.936 | H150: 4427 | I150: 1106.75 | J150: 5533.75 | K150: 35.35942492
A151: 65 | B151: 2 | C151: 65/2 | D151: 3948 | E151: 278.334 | F151: 315.84 | G151: 146.076 | H151: 4688.25 | I151: 1172.0625 | J151: 5860.3125 | K151: 37.44608626
A152: 65 | B152: 3 | C152: 65/3 | D152: 4096 | E152: 288.768 | F152: 327.68 | G152: 151.552 | H152: 4864 | I152: 1216 | J152: 6080 | K152: 38.84984026
A153: 65 | B153: 4 | C153: 65/4 | D153: 4243 | E153: 299.1315 | F153: 339.44 | G153: 156.991 | H153: 5038.5625 | I153: 1259.640625 | J153: 6298.203125 | K153: 40.24410942
A154: 65 | B154: 5 | C154: 65/5 | D154: 4369 | E154: 308.0145 | F154: 349.52 | G154: 161.653 | H154: 5188.1875 | I154: 1297.046875 | J154: 6485.234375 | K154: 41.43919728
A155: 65 | B155: 6 | C155: 65/6 | D155: 4499 | E155: 317.1795 | F155: 359.92 | G155: 166.463 | H155: 5342.5625 | I155: 1335.640625 | J155: 6678.203125 | K155: 42.67222444
A156: 65 | B156: 7 | C156: 65/7 | D156: 4635 | E156: 326.7675 | F156: 370.8 | G156: 171.495 | H156: 5504.0625 | I156: 1376.015625 | J156: 6880.078125 | K156: 43.96216054
A157: 65 | B157: 8 | C157: 65/8 | D157: 4768 | E157: 336.144 | F157: 381.44 | G157: 176.416 | H157: 5662 | I157: 1415.5 | J157: 7077.5 | K157: 45.22364217
A158: 65 | B158: 9 | C158: 65/9 | D158: 4898 | E158: 345.309 | F158: 391.84 | G158: 181.226 | H158: 5816.375 | I158: 1454.09375 | J158: 7270.46875 | K158: 46.45666933
A159: 65 | B159: 10 | C159: 65/10 | D159: 5034 | E159: 354.897 | F159: 402.72 | G159: 186.258 | H159: 5977.875 | I159: 1494.46875 | J159: 7472.34375 | K159: 47.74660543
A160: 65 | B160: 11 | C160: 65/11 | D160: 5097 | E160: 359.3385 | F160: 407.76 | G160: 188.589 | H160: 6052.6875 | I160: 1513.171875 | J160: 7565.859375 | K160: 48.34414936
A161: 65 | B161: 12 | C161: 65/12 | D161: 5166 | E161: 364.203 | F161: 413.28 | G161: 191.142 | H161: 6134.625 | I161: 1533.65625 | J161: 7668.28125 | K161: 48.99860224
A162: 65 | B162: 13 | C162: 65/13 | D162: 5231 | E162: 368.7855 | F162: 418.48 | G162: 193.547 | H162: 6211.8125 | I162: 1552.953125 | J162: 7764.765625 | K162: 49.61511581
A163: 65 | B163: 14 | C163: 65/14 | D163: 5296 | E163: 373.368 | F163: 423.68 | G163: 195.952 | H163: 6289 | I163: 1572.25 | J163: 7861.25 | K163: 50.23162939
A164: 70 | B164: 0 | C164: 70/0 | D164: 4243 | E164: 299.1315 | F164: 339.44 | G164: 156.991 | H164: 5038.5625 | I164: 1259.640625 | J164: 6298.203125 | K164: 40.24410942
A165: 70 | B165: 1 | C165: 70/1 | D165: 4436 | E165: 312.738 | F165: 354.88 | G165: 164.132 | H165: 5267.75 | I165: 1316.9375 | J165: 6584.6875 | K165: 42.07468051
A166: 70 | B166: 2 | C166: 70/2 | D166: 4635 | E166: 326.7675 | F166: 370.8 | G166: 171.495 | H166: 5504.0625 | I166: 1376.015625 | J166: 6880.078125 | K166: 43.96216054
A167: 70 | B167: 3 | C167: 70/3 | D167: 4833 | E167: 340.7265 | F167: 386.64 | G167: 178.821 | H167: 5739.1875 | I167: 1434.796875 | J167: 7173.984375 | K167: 45.84015575
A168: 70 | B168: 4 | C168: 70/4 | D168: 5034 | E168: 354.897 | F168: 402.72 | G168: 186.258 | H168: 5977.875 | I168: 1494.46875 | J168: 7472.34375 | K168: 47.74660543
A169: 70 | B169: 5 | C169: 70/5 | D169: 5231 | E169: 368.7855 | F169: 418.48 | G169: 193.547 | H169: 6211.8125 | I169: 1552.953125 | J169: 7764.765625 | K169: 49.61511581
A170: 70 | B170: 6 | C170: 70/6 | D170: 5430 | E170: 382.815 | F170: 434.4 | G170: 200.91 | H170: 6448.125 | I170: 1612.03125 | J170: 8060.15625 | K170: 51.50259585
A171: 70 | B171: 7 | C171: 70/7 | D171: 5564 | E171: 392.262 | F171: 445.12 | G171: 205.868 | H171: 6607.25 | I171: 1651.8125 | J171: 8259.0625 | K171: 52.7735623
A172: 70 | B172: 8 | C172: 70/8 | D172: 5731 | E172: 404.0355 | F172: 458.48 | G172: 212.047 | H172: 6805.5625 | I172: 1701.390625 | J172: 8506.953125 | K172: 54.35752796
A173: 70 | B173: 9 | C173: 70/9 | D173: 5895 | E173: 415.5975 | F173: 471.6 | G173: 218.115 | H173: 7000.3125 | I173: 1750.078125 | J173: 8750.390625 | K173: 55.91303914
A174: 70 | B174: 10 | C174: 70/10 | D174: 6061 | E174: 427.3005 | F174: 484.88 | G174: 224.257 | H174: 7197.4375 | I174: 1799.359375 | J174: 8996.796875 | K174: 57.48751997
A175: 70 | B175: 11 | C175: 70/11 | D175: 6147 | E175: 433.3635 | F175: 491.76 | G175: 227.439 | H175: 7299.5625 | I175: 1824.890625 | J175: 9124.453125 | K175: 58.30321486
A176: 70 | B176: 12 | C176: 70/12 | D176: 6229 | E176: 439.1445 | F176: 498.32 | G176: 230.473 | H176: 7396.9375 | I176: 1849.234375 | J176: 9246.171875 | K176: 59.08097045
A177: 70 | B177: 13 | C177: 70/13 | D177: 6311 | E177: 444.9255 | F177: 504.88 | G177: 233.507 | H177: 7494.3125 | I177: 1873.578125 | J177: 9367.890625 | K177: 59.85872604
A178: 70 | B178: 14 | C178: 70/14 | D178: 6396 | E178: 450.918 | F178: 511.68 | G178: 236.652 | H178: 7595.25 | I178: 1898.8125 | J178: 9494.0625 | K178: 60.6649361
A179: 75 | B179: 0 | C179: 75/0 | D179: 5034 | E179: 354.897 | F179: 402.72 | G179: 186.258 | H179: 5977.875 | I179: 1494.46875 | J179: 7472.34375 | K179: 47.74660543
A180: 75 | B180: 1 | C180: 75/1 | D180: 5231 | E180: 368.7855 | F180: 418.48 | G180: 193.547 | H180: 6211.8125 | I180: 1552.953125 | J180: 7764.765625 | K180: 49.61511581
A181: 75 | B181: 2 | C181: 75/2 | D181: 5430 | E181: 382.815 | F181: 434.4 | G181: 200.91 | H181: 6448.125 | I181: 1612.03125 | J181: 8060.15625 | K181: 51.50259585
A182: 75 | B182: 3 | C182: 75/3 | D182: 5647 | E182: 398.1135 | F182: 451.76 | G182: 208.939 | H182: 6705.8125 | I182: 1676.453125 | J182: 8382.265625 | K182: 53.56080272
A183: 75 | B183: 4 | C183: 75/4 | D183: 5895 | E183: 415.5975 | F183: 471.6 | G183: 218.115 | H183: 7000.3125 | I183: 1750.078125 | J183: 8750.390625 | K183: 55.91303914
A184: 75 | B184: 5 | C184: 75/5 | D184: 6147 | E184: 433.3635 | F184: 491.76 | G184: 227.439 | H184: 7299.5625 | I184: 1824.890625 | J184: 9124.453125 | K184: 58.30321486
A185: 75 | B185: 6 | C185: 75/6 | D185: 6396 | E185: 450.918 | F185: 511.68 | G185: 236.652 | H185: 7595.25 | I185: 1898.8125 | J185: 9494.0625 | K185: 60.6649361
A186: 75 | B186: 7 | C186: 75/7 | D186: 6560 | E186: 462.48 | F186: 524.8 | G186: 242.72 | H186: 7790 | I186: 1947.5 | J186: 9737.5 | K186: 62.22044728
A187: 75 | B187: 8 | C187: 75/8 | D187: 6736 | E187: 474.888 | F187: 538.88 | G187: 249.232 | H187: 7999 | I187: 1999.75 | J187: 9998.75 | K187: 63.88977636
A188: 75 | B188: 9 | C188: 75/9 | D188: 6921 | E188: 487.9305 | F188: 553.68 | G188: 256.077 | H188: 8218.6875 | I188: 2054.671875 | J188: 10273.35938 | K188: 65.64446885
A189: 75 | B189: 10 | C189: 75/10 | D189: 7107 | E189: 501.0435 | F189: 568.56 | G189: 262.959 | H189: 8439.5625 | I189: 2109.890625 | J189: 10549.45312 | K189: 67.40864617
A190: 75 | B190: 11 | C190: 75/11 | D190: 7200 | E190: 507.6 | F190: 576 | G190: 266.4 | H190: 8550 | I190: 2137.5 | J190: 10687.5 | K190: 68.29073482
A191: 75 | B191: 12 | C191: 75/12 | D191: 7294 | E191: 514.227 | F191: 583.52 | G191: 269.878 | H191: 8661.625 | I191: 2165.40625 | J191: 10827.03125 | K191: 69.18230831
A192: 75 | B192: 13 | C192: 75/13 | D192: 7402 | E192: 521.841 | F192: 592.16 | G192: 273.874 | H192: 8789.875 | I192: 2197.46875 | J192: 10987.34375 | K192: 70.20666933
A193: 75 | B193: 14 | C193: 75/14 | D193: 7511 | E193: 529.5255 | F193: 600.88 | G193: 277.907 | H193: 8919.3125 | I193: 2229.828125 | J193: 11149.14062 | K193: 71.24051518
A194: 75 | B194: 15 | C194: 75/15 | D194: 7619 | E194: 537.1395 | F194: 609.52 | G194: 281.903 | H194: 9047.5625 | I194: 2261.890625 | J194: 11309.45312 | K194: 72.2648762
A195: 75 | B195: 16 | C195: 75/16 | D195: 7729 | E195: 544.8945 | F195: 618.32 | G195: 285.973 | H195: 9178.1875 | I195: 2294.546875 | J195: 11472.73438 | K195: 73.30820687
A196: 80 | B196: 0 | C196: 80/0 | D196: 5895 | E196: 415.5975 | F196: 471.6 | G196: 218.115 | H196: 7000.3125 | I196: 1750.078125 | J196: 8750.390625 | K196: 55.91303914
A197: 80 | B197: 1 | C197: 80/1 | D197: 6147 | E197: 433.3635 | F197: 491.76 | G197: 227.439 | H197: 7299.5625 | I197: 1824.890625 | J197: 9124.453125 | K197: 58.30321486
A198: 80 | B198: 2 | C198: 80/2 | D198: 6396 | E198: 450.918 | F198: 511.68 | G198: 236.652 | H198: 7595.25 | I198: 1898.8125 | J198: 9494.0625 | K198: 60.6649361
A199: 80 | B199: 3 | C199: 80/3 | D199: 6641 | E199: 468.1905 | F199: 531.28 | G199: 245.717 | H199: 7886.1875 | I199: 1971.546875 | J199: 9857.734375 | K199: 62.98871805
A200: 80 | B200: 4 | C200: 80/4 | D200: 6921 | E200: 487.9305 | F200: 553.68 | G200: 256.077 | H200: 8218.6875 | I200: 2054.671875 | J200: 10273.35938 | K200: 65.64446885
... 12 more rows

Sheet Data CAO VVT 2019 (verbergen) (hidden)
A1: Cao VVT schalen per 1-1-2019
E2: 0.04 | G2: 0.074 | H2: 0.08 | K2: =17%+8% -> 0.25 | M2: =1878/12 -> 156.5
A3: Funct.schaal | B3: Trede | C3: Samengesteld | D3: Salaris | E3: Verhoging | F3: Nieuw salaris | G3: EJU | H3: Vak toeslag | I3: PBL | J3: Brutoloon | K3: Soc.lasten + pens.pr. | L3: Tot incl soc lst + pens.pr. | M3: Uurloon
A4: 10 | B4: 0 | C4: =CONCATENATE(A4,"/",B4) -> 10/0 | D4: 1475.14 | E4: =D4*$E$2 -> 59.0056 | F4: =D4+E4 -> 1534.1456 | G4: =F4*$G$2 -> 113.5267744 | H4: =F4*$H$2 -> 122.731648 | I4: =D4*$I$2 -> 0 | J4: =SUM(F4:I4) -> 1770.404022 | K4: =J4*$K$2 -> 442.6010056 | L4: =SUM(J4:K4) -> 2213.005028 | M4: =L4/$M$2 -> 14.14060721
A5: 10 | B5: 1 | C5: 10/1 | D5: 1503.01 | E5: 60.1204 | F5: 1563.1304 | G5: 115.6716496 | H5: 125.050432 | I5: 0 | J5: 1803.852482 | K5: 450.9631204 | L5: 2254.815602 | M5: 14.40776742
A6: 10 | B6: 2 | C6: 10/2 | D6: 1530.87 | E6: 61.2348 | F6: 1592.1048 | G6: 117.8157552 | H6: 127.368384 | I6: 0 | J6: 1837.288939 | K6: 459.3222348 | L6: 2296.611174 | M6: 14.67483178
A7: 10 | B7: 3 | C7: 10/3 | D7: 1590.46 | E7: 63.6184 | F7: 1654.0784 | G7: 122.4018016 | H7: 132.326272 | I7: 0 | J7: 1908.806474 | K7: 477.2016184 | L7: 2386.008092 | M7: 15.2460581
A8: 10 | B8: 4 | C8: 10/4 | D8: 1648.73 | E8: 65.9492 | F8: 1714.6792 | G8: 126.8862608 | H8: 137.174336 | I8: 0 | J8: 1978.739797 | K8: 494.6849492 | L8: 2473.424746 | M8: 15.80463096
A9: 15 | B9: 0 | C9: 15/0 | D9: 1648.73 | E9: 65.9492 | F9: 1714.6792 | G9: 126.8862608 | H9: 137.174336 | I9: 0 | J9: 1978.739797 | K9: 494.6849492 | L9: 2473.424746 | M9: 15.80463096
A10: 15 | B10: 1 | C10: 15/1 | D10: 1680.44 | E10: 67.2176 | F10: 1747.6576 | G10: 129.3266624 | H10: 139.812608 | I10: 0 | J10: 2016.79687 | K10: 504.1992176 | L10: 2520.996088 | M10: 16.1086012
A11: 15 | B11: 2 | C11: 15/2 | D11: 1724.78 | E11: 68.9912 | F11: 1793.7712 | G11: 132.7390688 | H11: 143.501696 | I11: 0 | J11: 2070.011965 | K11: 517.5029912 | L11: 2587.514956 | M11: 16.53364189
A12: 15 | B12: 3 | C12: 15/3 | D12: 1767.87 | E12: 70.7148 | F12: 1838.5848 | G12: 136.0552752 | H12: 147.086784 | I12: 0 | J12: 2121.726859 | K12: 530.4317148 | L12: 2652.158574 | M12: 16.94670015
A13: 15 | B13: 4 | C13: 15/4 | D13: 1814.76 | E13: 72.5904 | F13: 1887.3504 | G13: 139.6639296 | H13: 150.988032 | I13: 0 | J13: 2178.002362 | K13: 544.5005904 | L13: 2722.502952 | M13: 17.396185
A14: 15 | B14: 5 | C14: 15/5 | D14: 1865.45 | E14: 74.618 | F14: 1940.068 | G14: 143.565032 | H14: 155.20544 | I14: 0 | J14: 2238.838472 | K14: 559.709618 | L14: 2798.54809 | M14: 17.88209642
A15: 15 | B15: 6 | C15: 15/6 | D15: 1922.47 | E15: 76.8988 | F15: 1999.3688 | G15: 147.9532912 | H15: 159.949504 | I15: 0 | J15: 2307.271595 | K15: 576.8178988 | L15: 2884.089494 | M15: 18.42868686
A16: 15 | B16: 7 | C16: 15/7 | D16: 1982.03 | E16: 79.2812 | F16: 2061.3112 | G16: 152.5370288 | H16: 164.904896 | I16: 0 | J16: 2378.753125 | K16: 594.6882812 | L16: 2973.441406 | M16: 18.9996256
A17: 15 | B17: 8 | C17: 15/8 | D17: 2049.21 | E17: 81.9684 | F17: 2131.1784 | G17: 157.7072016 | H17: 170.494272 | I17: 0 | J17: 2459.379874 | K17: 614.8449684 | L17: 3074.224842 | M17: 19.64360921
A18: 20 | B18: 0 | C18: 20/0 | D18: 1724.78 | E18: 68.9912 | F18: 1793.7712 | G18: 132.7390688 | H18: 143.501696 | I18: 0 | J18: 2070.011965 | K18: 517.5029912 | L18: 2587.514956 | M18: 16.53364189
A19: 20 | B19: 1 | C19: 20/1 | D19: 1767.87 | E19: 70.7148 | F19: 1838.5848 | G19: 136.0552752 | H19: 147.086784 | I19: 0 | J19: 2121.726859 | K19: 530.4317148 | L19: 2652.158574 | M19: 16.94670015
A20: 20 | B20: 2 | C20: 20/2 | D20: 1814.76 | E20: 72.5904 | F20: 1887.3504 | G20: 139.6639296 | H20: 150.988032 | I20: 0 | J20: 2178.002362 | K20: 544.5005904 | L20: 2722.502952 | M20: 17.396185
A21: 20 | B21: 3 | C21: 20/3 | D21: 1865.45 | E21: 74.618 | F21: 1940.068 | G21: 143.565032 | H21: 155.20544 | I21: 0 | J21: 2238.838472 | K21: 559.709618 | L21: 2798.54809 | M21: 17.88209642
A22: 20 | B22: 4 | C22: 20/4 | D22: 1922.47 | E22: 76.8988 | F22: 1999.3688 | G22: 147.9532912 | H22: 159.949504 | I22: 0 | J22: 2307.271595 | K22: 576.8178988 | L22: 2884.089494 | M22: 18.42868686
A23: 20 | B23: 5 | C23: 20/5 | D23: 1982.03 | E23: 79.2812 | F23: 2061.3112 | G23: 152.5370288 | H23: 164.904896 | I23: 0 | J23: 2378.753125 | K23: 594.6882812 | L23: 2973.441406 | M23: 18.9996256
A24: 20 | B24: 6 | C24: 20/6 | D24: 2049.21 | E24: 81.9684 | F24: 2131.1784 | G24: 157.7072016 | H24: 170.494272 | I24: 0 | J24: 2459.379874 | K24: 614.8449684 | L24: 3074.224842 | M24: 19.64360921
A25: 20 | B25: 7 | C25: 20/7 | D25: 2116.36 | E25: 84.6544 | F25: 2201.0144 | G25: 162.8750656 | H25: 176.081152 | I25: 0 | J25: 2539.970618 | K25: 634.9926544 | L25: 3174.963272 | M25: 20.28730525
A26: 20 | B26: 8 | C26: 20/8 | D26: 2178.49 | E26: 87.1396 | F26: 2265.6296 | G26: 167.6565904 | H26: 181.250368 | I26: 0 | J26: 2614.536558 | K26: 653.6341396 | L26: 3268.170698 | M26: 20.88287986
A27: 25 | B27: 0 | C27: 25/0 | D27: 1767.87 | E27: 70.7148 | F27: 1838.5848 | G27: 136.0552752 | H27: 147.086784 | I27: 0 | J27: 2121.726859 | K27: 530.4317148 | L27: 2652.158574 | M27: 16.94670015
A28: 25 | B28: 1 | C28: 25/1 | D28: 1814.76 | E28: 72.5904 | F28: 1887.3504 | G28: 139.6639296 | H28: 150.988032 | I28: 0 | J28: 2178.002362 | K28: 544.5005904 | L28: 2722.502952 | M28: 17.396185
A29: 25 | B29: 2 | C29: 25/2 | D29: 1865.45 | E29: 74.618 | F29: 1940.068 | G29: 143.565032 | H29: 155.20544 | I29: 0 | J29: 2238.838472 | K29: 559.709618 | L29: 2798.54809 | M29: 17.88209642
A30: 25 | B30: 3 | C30: 25/3 | D30: 1922.47 | E30: 76.8988 | F30: 1999.3688 | G30: 147.9532912 | H30: 159.949504 | I30: 0 | J30: 2307.271595 | K30: 576.8178988 | L30: 2884.089494 | M30: 18.42868686
A31: 25 | B31: 4 | C31: 25/4 | D31: 1982.03 | E31: 79.2812 | F31: 2061.3112 | G31: 152.5370288 | H31: 164.904896 | I31: 0 | J31: 2378.753125 | K31: 594.6882812 | L31: 2973.441406 | M31: 18.9996256
A32: 25 | B32: 5 | C32: 25/5 | D32: 2049.21 | E32: 81.9684 | F32: 2131.1784 | G32: 157.7072016 | H32: 170.494272 | I32: 0 | J32: 2459.379874 | K32: 614.8449684 | L32: 3074.224842 | M32: 19.64360921
A33: 25 | B33: 6 | C33: 25/6 | D33: 2116.36 | E33: 84.6544 | F33: 2201.0144 | G33: 162.8750656 | H33: 176.081152 | I33: 0 | J33: 2539.970618 | K33: 634.9926544 | L33: 3174.963272 | M33: 20.28730525
A34: 25 | B34: 7 | C34: 25/7 | D34: 2178.49 | E34: 87.1396 | F34: 2265.6296 | G34: 167.6565904 | H34: 181.250368 | I34: 0 | J34: 2614.536558 | K34: 653.6341396 | L34: 3268.170698 | M34: 20.88287986
A35: 25 | B35: 8 | C35: 25/8 | D35: 2248.15 | E35: 89.926 | F35: 2338.076 | G35: 173.017624 | H35: 187.04608 | I35: 0 | J35: 2698.139704 | K35: 674.534926 | L35: 3372.67463 | M35: 21.55063661
A36: 25 | B36: 9 | C36: 25/9 | D36: 2305.18 | E36: 92.2072 | F36: 2397.3872 | G36: 177.4066528 | H36: 191.790976 | I36: 0 | J36: 2766.584829 | K36: 691.6462072 | L36: 3458.231036 | M36: 22.09732291
A37: 30 | B37: 0 | C37: 30/0 | D37: 1767.87 | E37: 70.7148 | F37: 1838.5848 | G37: 136.0552752 | H37: 147.086784 | I37: 0 | J37: 2121.726859 | K37: 530.4317148 | L37: 2652.158574 | M37: 16.94670015
A38: 30 | B38: 1 | C38: 30/1 | D38: 1814.76 | E38: 72.5904 | F38: 1887.3504 | G38: 139.6639296 | H38: 150.988032 | I38: 0 | J38: 2178.002362 | K38: 544.5005904 | L38: 2722.502952 | M38: 17.396185
A39: 30 | B39: 2 | C39: 30/2 | D39: 1865.45 | E39: 74.618 | F39: 1940.068 | G39: 143.565032 | H39: 155.20544 | I39: 0 | J39: 2238.838472 | K39: 559.709618 | L39: 2798.54809 | M39: 17.88209642
A40: 30 | B40: 3 | C40: 30/3 | D40: 1922.47 | E40: 76.8988 | F40: 1999.3688 | G40: 147.9532912 | H40: 159.949504 | I40: 0 | J40: 2307.271595 | K40: 576.8178988 | L40: 2884.089494 | M40: 18.42868686
A41: 30 | B41: 4 | C41: 30/4 | D41: 1982.03 | E41: 79.2812 | F41: 2061.3112 | G41: 152.5370288 | H41: 164.904896 | I41: 0 | J41: 2378.753125 | K41: 594.6882812 | L41: 2973.441406 | M41: 18.9996256
A42: 30 | B42: 5 | C42: 30/5 | D42: 2049.21 | E42: 81.9684 | F42: 2131.1784 | G42: 157.7072016 | H42: 170.494272 | I42: 0 | J42: 2459.379874 | K42: 614.8449684 | L42: 3074.224842 | M42: 19.64360921
A43: 30 | B43: 6 | C43: 30/6 | D43: 2116.36 | E43: 84.6544 | F43: 2201.0144 | G43: 162.8750656 | H43: 176.081152 | I43: 0 | J43: 2539.970618 | K43: 634.9926544 | L43: 3174.963272 | M43: 20.28730525
A44: 30 | B44: 7 | C44: 30/7 | D44: 2178.49 | E44: 87.1396 | F44: 2265.6296 | G44: 167.6565904 | H44: 181.250368 | I44: 0 | J44: 2614.536558 | K44: 653.6341396 | L44: 3268.170698 | M44: 20.88287986
A45: 30 | B45: 8 | C45: 30/8 | D45: 2248.15 | E45: 89.926 | F45: 2338.076 | G45: 173.017624 | H45: 187.04608 | I45: 0 | J45: 2698.139704 | K45: 674.534926 | L45: 3372.67463 | M45: 21.55063661
A46: 30 | B46: 9 | C46: 30/9 | D46: 2305.18 | E46: 92.2072 | F46: 2397.3872 | G46: 177.4066528 | H46: 191.790976 | I46: 0 | J46: 2766.584829 | K46: 691.6462072 | L46: 3458.231036 | M46: 22.09732291
A47: 30 | B47: 10 | C47: 30/10 | D47: 2373.63 | E47: 94.9452 | F47: 2468.5752 | G47: 182.6745648 | H47: 197.486016 | I47: 0 | J47: 2848.735781 | K47: 712.1839452 | L47: 3560.919726 | M47: 22.75348068
A48: 35 | B48: 0 | C48: 35/0 | D48: 1865.45 | E48: 74.618 | F48: 1940.068 | G48: 143.565032 | H48: 155.20544 | I48: 0 | J48: 2238.838472 | K48: 559.709618 | L48: 2798.54809 | M48: 17.88209642
A49: 35 | B49: 1 | C49: 35/1 | D49: 1922.47 | E49: 76.8988 | F49: 1999.3688 | G49: 147.9532912 | H49: 159.949504 | I49: 0 | J49: 2307.271595 | K49: 576.8178988 | L49: 2884.089494 | M49: 18.42868686
A50: 35 | B50: 2 | C50: 35/2 | D50: 1982.03 | E50: 79.2812 | F50: 2061.3112 | G50: 152.5370288 | H50: 164.904896 | I50: 0 | J50: 2378.753125 | K50: 594.6882812 | L50: 2973.441406 | M50: 18.9996256
A51: 35 | B51: 3 | C51: 35/3 | D51: 2049.21 | E51: 81.9684 | F51: 2131.1784 | G51: 157.7072016 | H51: 170.494272 | I51: 0 | J51: 2459.379874 | K51: 614.8449684 | L51: 3074.224842 | M51: 19.64360921
A52: 35 | B52: 4 | C52: 35/4 | D52: 2116.36 | E52: 84.6544 | F52: 2201.0144 | G52: 162.8750656 | H52: 176.081152 | I52: 0 | J52: 2539.970618 | K52: 634.9926544 | L52: 3174.963272 | M52: 20.28730525
A53: 35 | B53: 5 | C53: 35/5 | D53: 2178.49 | E53: 87.1396 | F53: 2265.6296 | G53: 167.6565904 | H53: 181.250368 | I53: 0 | J53: 2614.536558 | K53: 653.6341396 | L53: 3268.170698 | M53: 20.88287986
A54: 35 | B54: 6 | C54: 35/6 | D54: 2248.15 | E54: 89.926 | F54: 2338.076 | G54: 173.017624 | H54: 187.04608 | I54: 0 | J54: 2698.139704 | K54: 674.534926 | L54: 3372.67463 | M54: 21.55063661
A55: 35 | B55: 7 | C55: 35/7 | D55: 2305.18 | E55: 92.2072 | F55: 2397.3872 | G55: 177.4066528 | H55: 191.790976 | I55: 0 | J55: 2766.584829 | K55: 691.6462072 | L55: 3458.231036 | M55: 22.09732291
A56: 35 | B56: 8 | C56: 35/8 | D56: 2373.63 | E56: 94.9452 | F56: 2468.5752 | G56: 182.6745648 | H56: 197.486016 | I56: 0 | J56: 2848.735781 | K56: 712.1839452 | L56: 3560.919726 | M56: 22.75348068
A57: 35 | B57: 9 | C57: 35/9 | D57: 2435.72 | E57: 97.4288 | F57: 2533.1488 | G57: 187.4530112 | H57: 202.651904 | I57: 0 | J57: 2923.253715 | K57: 730.8134288 | L57: 3654.067144 | M57: 23.34867185
A58: 35 | B58: 10 | C58: 35/10 | D58: 2501.63 | E58: 100.0652 | F58: 2601.6952 | G58: 192.5254448 | H58: 208.135616 | I58: 0 | J58: 3002.356261 | K58: 750.5890652 | L58: 3752.945326 | M58: 23.98048132
A59: 35 | B59: 11 | C59: 35/11 | D59: 2566.28 | E59: 102.6512 | F59: 2668.9312 | G59: 197.5009088 | H59: 213.514496 | I59: 0 | J59: 3079.946605 | K59: 769.9866512 | L59: 3849.933256 | M59: 24.6002125
A60: 40 | B60: 0 | C60: 40/0 | D60: 1982.03 | E60: 79.2812 | F60: 2061.3112 | G60: 152.5370288 | H60: 164.904896 | I60: 0 | J60: 2378.753125 | K60: 594.6882812 | L60: 2973.441406 | M60: 18.9996256
A61: 40 | B61: 1 | C61: 40/1 | D61: 2116.36 | E61: 84.6544 | F61: 2201.0144 | G61: 162.8750656 | H61: 176.081152 | I61: 0 | J61: 2539.970618 | K61: 634.9926544 | L61: 3174.963272 | M61: 20.28730525
A62: 40 | B62: 2 | C62: 40/2 | D62: 2248.15 | E62: 89.926 | F62: 2338.076 | G62: 173.017624 | H62: 187.04608 | I62: 0 | J62: 2698.139704 | K62: 674.534926 | L62: 3372.67463 | M62: 21.55063661
A63: 40 | B63: 3 | C63: 40/3 | D63: 2305.18 | E63: 92.2072 | F63: 2397.3872 | G63: 177.4066528 | H63: 191.790976 | I63: 0 | J63: 2766.584829 | K63: 691.6462072 | L63: 3458.231036 | M63: 22.09732291
A64: 40 | B64: 4 | C64: 40/4 | D64: 2373.63 | E64: 94.9452 | F64: 2468.5752 | G64: 182.6745648 | H64: 197.486016 | I64: 0 | J64: 2848.735781 | K64: 712.1839452 | L64: 3560.919726 | M64: 22.75348068
A65: 40 | B65: 5 | C65: 40/5 | D65: 2435.72 | E65: 97.4288 | F65: 2533.1488 | G65: 187.4530112 | H65: 202.651904 | I65: 0 | J65: 2923.253715 | K65: 730.8134288 | L65: 3654.067144 | M65: 23.34867185
A66: 40 | B66: 6 | C66: 40/6 | D66: 2501.63 | E66: 100.0652 | F66: 2601.6952 | G66: 192.5254448 | H66: 208.135616 | I66: 0 | J66: 3002.356261 | K66: 750.5890652 | L66: 3752.945326 | M66: 23.98048132
A67: 40 | B67: 7 | C67: 40/7 | D67: 2566.28 | E67: 102.6512 | F67: 2668.9312 | G67: 197.5009088 | H67: 213.514496 | I67: 0 | J67: 3079.946605 | K67: 769.9866512 | L67: 3849.933256 | M67: 24.6002125
A68: 40 | B68: 8 | C68: 40/8 | D68: 2629.63 | E68: 105.1852 | F68: 2734.8152 | G68: 202.3763248 | H68: 218.785216 | I68: 0 | J68: 3155.976741 | K68: 788.9941852 | L68: 3944.970926 | M68: 25.20748196
A69: 40 | B69: 9 | C69: 40/9 | D69: 2694.26 | E69: 107.7704 | F69: 2802.0304 | G69: 207.3502496 | H69: 224.162432 | I69: 0 | J69: 3233.543082 | K69: 808.3857704 | L69: 4041.928852 | M69: 25.82702142
A70: 40 | B70: 10 | C70: 40/10 | D70: 2760.17 | E70: 110.4068 | F70: 2870.5768 | G70: 212.4226832 | H70: 229.646144 | I70: 0 | J70: 3312.645627 | K70: 828.1614068 | L70: 4140.807034 | M70: 26.45883089
A71: 45 | B71: 0 | C71: 45/0 | D71: 2501.63 | E71: 100.0652 | F71: 2601.6952 | G71: 192.5254448 | H71: 208.135616 | I71: 0 | J71: 3002.356261 | K71: 750.5890652 | L71: 3752.945326 | M71: 23.98048132
A72: 45 | B72: 1 | C72: 45/1 | D72: 2566.28 | E72: 102.6512 | F72: 2668.9312 | G72: 197.5009088 | H72: 213.514496 | I72: 0 | J72: 3079.946605 | K72: 769.9866512 | L72: 3849.933256 | M72: 24.6002125
A73: 45 | B73: 2 | C73: 45/2 | D73: 2629.63 | E73: 105.1852 | F73: 2734.8152 | G73: 202.3763248 | H73: 218.785216 | I73: 0 | J73: 3155.976741 | K73: 788.9941852 | L73: 3944.970926 | M73: 25.20748196
A74: 45 | B74: 3 | C74: 45/3 | D74: 2694.26 | E74: 107.7704 | F74: 2802.0304 | G74: 207.3502496 | H74: 224.162432 | I74: 0 | J74: 3233.543082 | K74: 808.3857704 | L74: 4041.928852 | M74: 25.82702142
A75: 45 | B75: 4 | C75: 45/4 | D75: 2760.17 | E75: 110.4068 | F75: 2870.5768 | G75: 212.4226832 | H75: 229.646144 | I75: 0 | J75: 3312.645627 | K75: 828.1614068 | L75: 4140.807034 | M75: 26.45883089
A76: 45 | B76: 5 | C76: 45/5 | D76: 2827.32 | E76: 113.0928 | F76: 2940.4128 | G76: 217.5905472 | H76: 235.233024 | I76: 0 | J76: 3393.236371 | K76: 848.3090928 | L76: 4241.545464 | M76: 27.10252693
A77: 45 | B77: 6 | C77: 45/6 | D77: 2897.01 | E77: 115.8804 | F77: 3012.8904 | G77: 222.9538896 | H77: 241.031232 | I77: 0 | J77: 3476.875522 | K77: 869.2188804 | L77: 4346.094402 | M77: 27.77057126
A78: 45 | B78: 7 | C78: 45/7 | D78: 2969.29 | E78: 118.7716 | F78: 3088.0616 | G78: 228.5165584 | H78: 247.044928 | I78: 0 | J78: 3563.623086 | K78: 890.9057716 | L78: 4454.528858 | M78: 28.46344318
A79: 45 | B79: 8 | C79: 45/8 | D79: 3032.6 | E79: 121.304 | F79: 3153.904 | G79: 233.388896 | H79: 252.31232 | I79: 0 | J79: 3639.605216 | K79: 909.901304 | L79: 4549.50652 | M79: 29.0703292
A80: 50 | B80: 0 | C80: 50/0 | D80: 2566.28 | E80: 102.6512 | F80: 2668.9312 | G80: 197.5009088 | H80: 213.514496 | I80: 0 | J80: 3079.946605 | K80: 769.9866512 | L80: 3849.933256 | M80: 24.6002125
A81: 50 | B81: 1 | C81: 50/1 | D81: 2694.26 | E81: 107.7704 | F81: 2802.0304 | G81: 207.3502496 | H81: 224.162432 | I81: 0 | J81: 3233.543082 | K81: 808.3857704 | L81: 4041.928852 | M81: 25.82702142
A82: 50 | B82: 2 | C82: 50/2 | D82: 2827.32 | E82: 113.0928 | F82: 2940.4128 | G82: 217.5905472 | H82: 235.233024 | I82: 0 | J82: 3393.236371 | K82: 848.3090928 | L82: 4241.545464 | M82: 27.10252693
A83: 50 | B83: 3 | C83: 50/3 | D83: 2969.29 | E83: 118.7716 | F83: 3088.0616 | G83: 228.5165584 | H83: 247.044928 | I83: 0 | J83: 3563.623086 | K83: 890.9057716 | L83: 4454.528858 | M83: 28.46344318
A84: 50 | B84: 4 | C84: 50/4 | D84: 3032.6 | E84: 121.304 | F84: 3153.904 | G84: 233.388896 | H84: 252.31232 | I84: 0 | J84: 3639.605216 | K84: 909.901304 | L84: 4549.50652 | M84: 29.0703292
A85: 50 | B85: 5 | C85: 50/5 | D85: 3103.58 | E85: 124.1432 | F85: 3227.7232 | G85: 238.8515168 | H85: 258.217856 | I85: 0 | J85: 3724.792573 | K85: 931.1981432 | L85: 4655.990716 | M85: 29.7507394
A86: 50 | B86: 6 | C86: 50/6 | D86: 3173.31 | E86: 126.9324 | F86: 3300.2424 | G86: 244.2179376 | H86: 264.019392 | I86: 0 | J86: 3808.47973 | K86: 952.1199324 | L86: 4760.599662 | M86: 30.41916717
A87: 50 | B87: 7 | C87: 50/7 | D87: 3239.2 | E87: 129.568 | F87: 3368.768 | G87: 249.288832 | H87: 269.50144 | I87: 0 | J87: 3887.558272 | K87: 971.889568 | L87: 4859.44784 | M87: 31.05078492
A88: 50 | B88: 8 | C88: 50/8 | D88: 3305.07 | E88: 132.2028 | F88: 3437.2728 | G88: 254.3581872 | H88: 274.981824 | I88: 0 | J88: 3966.612811 | K88: 991.6532028 | L88: 4958.266014 | M88: 31.68221095
A89: 50 | B89: 9 | C89: 50/9 | D89: 3374.78 | E89: 134.9912 | F89: 3509.7712 | G89: 259.7230688 | H89: 280.781696 | I89: 0 | J89: 4050.275965 | K89: 1012.568991 | L89: 5062.844956 | M89: 32.350447
A90: 50 | B90: 10 | C90: 50/10 | D90: 3444.48 | E90: 137.7792 | F90: 3582.2592 | G90: 265.0871808 | H90: 286.580736 | I90: 0 | J90: 4133.927117 | K90: 1033.481779 | L90: 5167.408896 | M90: 33.01858719
A91: 55 | B91: 0 | C91: 55/0 | D91: 2694.26 | E91: 107.7704 | F91: 2802.0304 | G91: 207.3502496 | H91: 224.162432 | I91: 0 | J91: 3233.543082 | K91: 808.3857704 | L91: 4041.928852 | M91: 25.82702142
A92: 55 | B92: 1 | C92: 55/1 | D92: 2897.01 | E92: 115.8804 | F92: 3012.8904 | G92: 222.9538896 | H92: 241.031232 | I92: 0 | J92: 3476.875522 | K92: 869.2188804 | L92: 4346.094402 | M92: 27.77057126
A93: 55 | B93: 2 | C93: 55/2 | D93: 3032.6 | E93: 121.304 | F93: 3153.904 | G93: 233.388896 | H93: 252.31232 | I93: 0 | J93: 3639.605216 | K93: 909.901304 | L93: 4549.50652 | M93: 29.0703292
A94: 55 | B94: 3 | C94: 55/3 | D94: 3173.31 | E94: 126.9324 | F94: 3300.2424 | G94: 244.2179376 | H94: 264.019392 | I94: 0 | J94: 3808.47973 | K94: 952.1199324 | L94: 4760.599662 | M94: 30.41916717
A95: 55 | B95: 4 | C95: 55/4 | D95: 3305.07 | E95: 132.2028 | F95: 3437.2728 | G95: 254.3581872 | H95: 274.981824 | I95: 0 | J95: 3966.612811 | K95: 991.6532028 | L95: 4958.266014 | M95: 31.68221095
A96: 55 | B96: 5 | C96: 55/5 | D96: 3444.48 | E96: 137.7792 | F96: 3582.2592 | G96: 265.0871808 | H96: 286.580736 | I96: 0 | J96: 4133.927117 | K96: 1033.481779 | L96: 5167.408896 | M96: 33.01858719
A97: 55 | B97: 6 | C97: 55/6 | D97: 3509.14 | E97: 140.3656 | F97: 3649.5056 | G97: 270.0634144 | H97: 291.960448 | I97: 0 | J97: 4211.529462 | K97: 1052.882366 | L97: 5264.411828 | M97: 33.63841424
A98: 55 | B98: 7 | C98: 55/7 | D98: 3573.76 | E98: 142.9504 | F98: 3716.7104 | G98: 275.0365696 | H98: 297.336832 | I98: 0 | J98: 4289.083802 | K98: 1072.27095 | L98: 5361.354752 | M98: 34.25785784
A99: 55 | B99: 8 | C99: 55/8 | D99: 3648.55 | E99: 145.942 | F99: 3794.492 | G99: 280.792408 | H99: 303.55936 | I99: 0 | J99: 4378.843768 | K99: 1094.710942 | L99: 5473.55471 | M99: 34.97479048
A100: 55 | B100: 9 | C100: 55/9 | D100: 3724.58 | E100: 148.9832 | F100: 3873.5632 | G100: 286.6436768 | H100: 309.885056 | I100: 0 | J100: 4470.091933 | K100: 1117.522983 | L100: 5587.614916 | M100: 35.70360969
A101: 55 | B101: 10 | C101: 55/10 | D101: 3799.35 | E101: 151.974 | F101: 3951.324 | G101: 292.397976 | H101: 316.10592 | I101: 0 | J101: 4559.827896 | K101: 1139.956974 | L101: 5699.78487 | M101: 36.42035061
A102: 55 | B102: 11 | C102: 55/11 | D102: 3866.52 | E102: 154.6608 | F102: 4021.1808 | G102: 297.5673792 | H102: 321.694464 | I102: 0 | J102: 4640.442643 | K102: 1160.110661 | L102: 5800.553304 | M102: 37.06423836
A103: 60 | B103: 0 | C103: 60/0 | D103: 3305.07 | E103: 132.2028 | F103: 3437.2728 | G103: 254.3581872 | H103: 274.981824 | I103: 0 | J103: 3966.612811 | K103: 991.6532028 | L103: 4958.266014 | M103: 31.68221095
A104: 60 | B104: 1 | C104: 60/1 | D104: 3444.48 | E104: 137.7792 | F104: 3582.2592 | G104: 265.0871808 | H104: 286.580736 | I104: 0 | J104: 4133.927117 | K104: 1033.481779 | L104: 5167.408896 | M104: 33.01858719
A105: 60 | B105: 2 | C105: 60/2 | D105: 3573.76 | E105: 142.9504 | F105: 3716.7104 | G105: 275.0365696 | H105: 297.336832 | I105: 0 | J105: 4289.083802 | K105: 1072.27095 | L105: 5361.354752 | M105: 34.25785784
A106: 60 | B106: 3 | C106: 60/3 | D106: 3724.58 | E106: 148.9832 | F106: 3873.5632 | G106: 286.6436768 | H106: 309.885056 | I106: 0 | J106: 4470.091933 | K106: 1117.522983 | L106: 5587.614916 | M106: 35.70360969
A107: 60 | B107: 4 | C107: 60/4 | D107: 3866.52 | E107: 154.6608 | F107: 4021.1808 | G107: 297.5673792 | H107: 321.694464 | I107: 0 | J107: 4640.442643 | K107: 1160.110661 | L107: 5800.553304 | M107: 37.06423836
A108: 60 | B108: 5 | C108: 60/5 | D108: 4012.27 | E108: 160.4908 | F108: 4172.7608 | G108: 308.7842992 | H108: 333.820864 | I108: 0 | J108: 4815.365963 | K108: 1203.841491 | L108: 6019.207454 | M108: 38.46138948
A109: 60 | B109: 6 | C109: 60/6 | D109: 4152.9 | E109: 166.116 | F109: 4319.016 | G109: 319.607184 | H109: 345.52128 | I109: 0 | J109: 4984.144464 | K109: 1246.036116 | L109: 6230.18058 | M109: 39.80946058
A110: 60 | B110: 7 | C110: 60/7 | D110: 4215.02 | E110: 168.6008 | F110: 4383.6208 | G110: 324.3879392 | H110: 350.689664 | I110: 0 | J110: 5058.698403 | K110: 1264.674601 | L110: 6323.373004 | M110: 40.40493932
A111: 60 | B111: 8 | C111: 60/8 | D111: 4278.38 | E111: 171.1352 | F111: 4449.5152 | G111: 329.2641248 | H111: 355.961216 | I111: 0 | J111: 5134.740541 | K111: 1283.685135 | L111: 6418.425676 | M111: 41.01230464
A112: 60 | B112: 9 | C112: 60/9 | D112: 4344.27 | E112: 173.7708 | F112: 4518.0408 | G112: 334.3350192 | H112: 361.443264 | I112: 0 | J112: 5213.819083 | K112: 1303.454771 | L112: 6517.273854 | M112: 41.64392239
A113: 60 | B113: 10 | C113: 60/10 | D113: 4407.65 | E113: 176.306 | F113: 4583.956 | G113: 339.212744 | H113: 366.71648 | I113: 0 | J113: 5289.885224 | K113: 1322.471306 | L113: 6612.35653 | M113: 42.25147942
A114: 65 | B114: 0 | C114: 65/0 | D114: 3724.58 | E114: 148.9832 | F114: 3873.5632 | G114: 286.6436768 | H114: 309.885056 | I114: 0 | J114: 4470.091933 | K114: 1117.522983 | L114: 5587.614916 | M114: 35.70360969
A115: 65 | B115: 1 | C115: 65/1 | D115: 3866.52 | E115: 154.6608 | F115: 4021.1808 | G115: 297.5673792 | H115: 321.694464 | I115: 0 | J115: 4640.442643 | K115: 1160.110661 | L115: 5800.553304 | M115: 37.06423836
A116: 65 | B116: 2 | C116: 65/2 | D116: 3941.29 | E116: 157.6516 | F116: 4098.9416 | G116: 303.3216784 | H116: 327.915328 | I116: 0 | J116: 4730.178606 | K116: 1182.544652 | L116: 5912.723258 | M116: 37.78097928
A117: 65 | B117: 3 | C117: 65/3 | D117: 4012.27 | E117: 160.4908 | F117: 4172.7608 | G117: 308.7842992 | H117: 333.820864 | I117: 0 | J117: 4815.365963 | K117: 1203.841491 | L117: 6019.207454 | M117: 38.46138948
A118: 65 | B118: 4 | C118: 65/4 | D118: 4084.5 | E118: 163.38 | F118: 4247.88 | G118: 314.34312 | H118: 339.8304 | I118: 0 | J118: 4902.05352 | K118: 1225.51338 | L118: 6127.5669 | M118: 39.15378211
A119: 65 | B119: 5 | C119: 65/5 | D119: 4152.9 | E119: 166.116 | F119: 4319.016 | G119: 319.607184 | H119: 345.52128 | I119: 0 | J119: 4984.144464 | K119: 1246.036116 | L119: 6230.18058 | M119: 39.80946058
A120: 65 | B120: 6 | C120: 65/6 | D120: 4278.38 | E120: 171.1352 | F120: 4449.5152 | G120: 329.2641248 | H120: 355.961216 | I120: 0 | J120: 5134.740541 | K120: 1283.685135 | L120: 6418.425676 | M120: 41.01230464
A121: 65 | B121: 7 | C121: 65/7 | D121: 4407.65 | E121: 176.306 | F121: 4583.956 | G121: 339.212744 | H121: 366.71648 | I121: 0 | J121: 5289.885224 | K121: 1322.471306 | L121: 6612.35653 | M121: 42.25147942
A122: 65 | B122: 8 | C122: 65/8 | D122: 4538.18 | E122: 181.5272 | F122: 4719.7072 | G122: 349.2583328 | H122: 377.576576 | I122: 0 | J122: 5446.542109 | K122: 1361.635527 | L122: 6808.177636 | M122: 43.5027325
A123: 65 | B123: 9 | C123: 65/9 | D123: 4667.42 | E123: 186.6968 | F123: 4854.1168 | G123: 359.2046432 | H123: 388.329344 | I123: 0 | J123: 5601.650787 | K123: 1400.412697 | L123: 7002.063484 | M123: 44.74161971
A124: 65 | B124: 10 | C124: 65/10 | D124: 4797.96 | E124: 191.9184 | F124: 4989.8784 | G124: 369.2510016 | H124: 399.190272 | I124: 0 | J124: 5758.319674 | K124: 1439.579918 | L124: 7197.899592 | M124: 45.99296864
A125: 65 | B125: 11 | C125: 65/11 | D125: 4928.5 | E125: 197.14 | F125: 5125.64 | G125: 379.29736 | H125: 410.0512 | I125: 0 | J125: 5914.98856 | K125: 1478.74714 | L125: 7393.7357 | M125: 47.24431757
A126: 65 | B126: 12 | C126: 65/12 | D126: 4991.87 | E126: 199.6748 | F126: 5191.5448 | G126: 384.1743152 | H126: 415.323584 | I126: 0 | J126: 5991.042699 | K126: 1497.760675 | L126: 7488.803374 | M126: 47.85177875
A127: 65 | B127: 13 | C127: 65/13 | D127: 5056.48 | E127: 202.2592 | F127: 5258.7392 | G127: 389.1467008 | H127: 420.699136 | I127: 0 | J127: 6068.585037 | K127: 1517.146259 | L127: 7585.731296 | M127: 48.47112649
A128: 65 | B128: 14 | C128: 65/14 | D128: 5123.66 | E128: 204.9464 | F128: 5328.6064 | G128: 394.3168736 | H128: 426.288512 | I128: 0 | J128: 6149.211786 | K128: 1537.302946 | L128: 7686.514732 | M128: 49.11511011
A129: 65 | B129: 15 | C129: 65/15 | D129: 5188.29 | E129: 207.5316 | F129: 5395.8216 | G129: 399.2907984 | H129: 431.665728 | I129: 0 | J129: 6226.778126 | K129: 1556.694532 | L129: 7783.472658 | M129: 49.73464957
A130: 70 | B130: 0 | C130: 70/0 | D130: 4407.65 | E130: 176.306 | F130: 4583.956 | G130: 339.212744 | H130: 366.71648 | I130: 0 | J130: 5289.885224 | K130: 1322.471306 | L130: 6612.35653 | M130: 42.25147942
A131: 70 | B131: 1 | C131: 70/1 | D131: 4538.18 | E131: 181.5272 | F131: 4719.7072 | G131: 349.2583328 | H131: 377.576576 | I131: 0 | J131: 5446.542109 | K131: 1361.635527 | L131: 6808.177636 | M131: 43.5027325
A132: 70 | B132: 2 | C132: 70/2 | D132: 4604.07 | E132: 184.1628 | F132: 4788.2328 | G132: 354.3292272 | H132: 383.058624 | I132: 0 | J132: 5525.620651 | K132: 1381.405163 | L132: 6907.025814 | M132: 44.13435025
A133: 70 | B133: 3 | C133: 70/3 | D133: 4667.42 | E133: 186.6968 | F133: 4854.1168 | G133: 359.2046432 | H133: 388.329344 | I133: 0 | J133: 5601.650787 | K133: 1400.412697 | L133: 7002.063484 | M133: 44.74161971
A134: 70 | B134: 4 | C134: 70/4 | D134: 4734.6 | E134: 189.384 | F134: 4923.984 | G134: 364.374816 | H134: 393.91872 | I134: 0 | J134: 5682.277536 | K134: 1420.569384 | L134: 7102.84692 | M134: 45.38560332
A135: 70 | B135: 5 | C135: 70/5 | D135: 4928.5 | E135: 197.14 | F135: 5125.64 | G135: 379.29736 | H135: 410.0512 | I135: 0 | J135: 5914.98856 | K135: 1478.74714 | L135: 7393.7357 | M135: 47.24431757
A136: 70 | B136: 6 | C136: 70/6 | D136: 5123.66 | E136: 204.9464 | F136: 5328.6064 | G136: 394.3168736 | H136: 426.288512 | I136: 0 | J136: 6149.211786 | K136: 1537.302946 | L136: 7686.514732 | M136: 49.11511011
A137: 70 | B137: 7 | C137: 70/7 | D137: 5318.82 | E137: 212.7528 | F137: 5531.5728 | G137: 409.3363872 | H137: 442.525824 | I137: 0 | J137: 6383.435011 | K137: 1595.858753 | L137: 7979.293764 | M137: 50.98590265
A138: 70 | B138: 8 | C138: 70/8 | D138: 5449.34 | E138: 217.9736 | F138: 5667.3136 | G138: 419.3812064 | H138: 453.385088 | I138: 0 | J138: 6540.079894 | K138: 1635.019974 | L138: 8175.099868 | M138: 52.23705986
A139: 70 | B139: 9 | C139: 70/9 | D139: 5610.33 | E139: 224.4132 | F139: 5834.7432 | G139: 431.7709968 | H139: 466.779456 | I139: 0 | J139: 6733.293653 | K139: 1683.323413 | L139: 8416.617066 | M139: 53.78030074
A140: 70 | B140: 10 | C140: 70/10 | D140: 5773.78 | E140: 230.9512 | F140: 6004.7312 | G140: 444.3501088 | H140: 480.378496 | I140: 0 | J140: 6929.459805 | K140: 1732.364951 | L140: 8661.824756 | M140: 55.34712304
A141: 70 | B141: 11 | C141: 70/11 | D141: 5936 | E141: 237.44 | F141: 6173.44 | G141: 456.83456 | H141: 493.8752 | I141: 0 | J141: 7124.14976 | K141: 1781.03744 | L141: 8905.1872 | M141: 56.90215463
A142: 70 | B142: 12 | C142: 70/12 | D142: 6015.84 | E142: 240.6336 | F142: 6256.4736 | G142: 462.9790464 | H142: 500.517888 | I142: 0 | J142: 7219.970534 | K142: 1804.992634 | L142: 9024.963168 | M142: 57.66749628
A143: 70 | B143: 13 | C143: 70/13 | D143: 6099.46 | E143: 243.9784 | F143: 6343.4384 | G143: 469.4144416 | H143: 507.475072 | I143: 0 | J143: 7320.327914 | K143: 1830.081978 | L143: 9150.409892 | M143: 58.46907279
A144: 70 | B144: 14 | C144: 70/14 | D144: 6180.59 | E144: 247.2236 | F144: 6427.8136 | G144: 475.6582064 | H144: 514.225088 | I144: 0 | J144: 7417.696894 | K144: 1854.424224 | L144: 9272.121118 | M144: 59.24678031
A145: 70 | B145: 15 | C145: 70/15 | D145: 6261.7 | E145: 250.468 | F145: 6512.168 | G145: 481.900432 | H145: 520.97344 | I145: 0 | J145: 7515.041872 | K145: 1878.760468 | L145: 9393.80234 | M145: 60.0242961
A146: 75 | B146: 0 | C146: 75/0 | D146: 5056.48 | E146: 202.2592 | F146: 5258.7392 | G146: 389.1467008 | H146: 420.699136 | I146: 0 | J146: 6068.585037 | K146: 1517.146259 | L146: 7585.731296 | M146: 48.47112649
A147: 75 | B147: 1 | C147: 75/1 | D147: 5188.29 | E147: 207.5316 | F147: 5395.8216 | G147: 399.2907984 | H147: 431.665728 | I147: 0 | J147: 6226.778126 | K147: 1556.694532 | L147: 7783.472658 | M147: 49.73464957
A148: 75 | B148: 2 | C148: 75/2 | D148: 5318.82 | E148: 212.7528 | F148: 5531.5728 | G148: 409.3363872 | H148: 442.525824 | I148: 0 | J148: 6383.435011 | K148: 1595.858753 | L148: 7979.293764 | M148: 50.98590265
A149: 75 | B149: 3 | C149: 75/3 | D149: 5382.19 | E149: 215.2876 | F149: 5597.4776 | G149: 414.2133424 | H149: 447.798208 | I149: 0 | J149: 6459.48915 | K149: 1614.872288 | L149: 8074.361438 | M149: 51.59336382
A150: 75 | B150: 4 | C150: 75/4 | D150: 5449.34 | E150: 217.9736 | F150: 5667.3136 | G150: 419.3812064 | H150: 453.385088 | I150: 0 | J150: 6540.079894 | K150: 1635.019974 | L150: 8175.099868 | M150: 52.23705986
A151: 75 | B151: 5 | C151: 75/5 | D151: 5529.18 | E151: 221.1672 | F151: 5750.3472 | G151: 425.5256928 | H151: 460.027776 | I151: 0 | J151: 6635.900669 | K151: 1658.975167 | L151: 8294.875836 | M151: 53.00240151
A152: 75 | B152: 6 | C152: 75/6 | D152: 5773.78 | E152: 230.9512 | F152: 6004.7312 | G152: 444.3501088 | H152: 480.378496 | I152: 0 | J152: 6929.459805 | K152: 1732.364951 | L152: 8661.824756 | M152: 55.34712304
A153: 75 | B153: 7 | C153: 75/7 | D153: 6015.84 | E153: 240.6336 | F153: 6256.4736 | G153: 462.9790464 | H153: 500.517888 | I153: 0 | J153: 7219.970534 | K153: 1804.992634 | L153: 9024.963168 | M153: 57.66749628
A154: 75 | B154: 8 | C154: 75/8 | D154: 6261.7 | E154: 250.468 | F154: 6512.168 | G154: 481.900432 | H154: 520.97344 | I154: 0 | J154: 7515.041872 | K154: 1878.760468 | L154: 9393.80234 | M154: 60.0242961
A155: 75 | B155: 9 | C155: 75/9 | D155: 6425.17 | E155: 257.0068 | F155: 6682.1768 | G155: 494.4810832 | H155: 534.574144 | I155: 0 | J155: 7711.232027 | K155: 1927.808007 | L155: 9639.040034 | M155: 61.59131012
A156: 75 | B156: 10 | C156: 75/10 | D156: 6595 | E156: 263.8 | F156: 6858.8 | G156: 507.5512 | H156: 548.704 | I156: 0 | J156: 7915.0552 | K156: 1978.7638 | L156: 9893.819 | M156: 63.21929073
A157: 75 | B157: 11 | C157: 75/11 | D157: 6776.2 | E157: 271.048 | F157: 7047.248 | G157: 521.496352 | H157: 563.77984 | I157: 0 | J157: 8132.524192 | K157: 2033.131048 | L157: 10165.65524 | M157: 64.95626351
A158: 75 | B158: 12 | C158: 75/12 | D158: 6960 | E158: 278.4 | F158: 7238.4 | G158: 535.6416 | H158: 579.072 | I158: 0 | J158: 8353.1136 | K158: 2088.2784 | L158: 10441.392 | M158: 66.71815974
A159: 75 | B159: 13 | C159: 75/13 | D159: 7048.67 | E159: 281.9468 | F159: 7330.6168 | G159: 542.4656432 | H159: 586.449344 | I159: 0 | J159: 8459.531787 | K159: 2114.882947 | L159: 10574.41473 | M159: 67.56814527
A160: 75 | B160: 14 | C160: 75/14 | D160: 7141.19 | E160: 285.6476 | F160: 7426.8376 | G160: 549.5859824 | H160: 594.147008 | I160: 0 | J160: 8570.57059 | K160: 2142.642648 | L160: 10713.21324 | M160: 68.45503666
A161: 75 | B161: 15 | C161: 75/15 | D161: 7247.63 | E161: 289.9052 | F161: 7537.5352 | G161: 557.7776048 | H161: 603.002816 | I161: 0 | J161: 8698.315621 | K161: 2174.578905 | L161: 10872.89453 | M161: 69.47536438
A162: 75 | B162: 16 | C162: 75/16 | D162: 7355.37 | E162: 294.2148 | F162: 7649.5848 | G162: 566.0692752 | H162: 611.966784 | I162: 0 | J162: 8827.620859 | K162: 2206.905215 | L162: 11034.52607 | M162: 70.50815383
A163: 75 | B163: 17 | C163: 75/17 | D163: 7460.53 | E163: 298.4212 | F163: 7758.9512 | G163: 574.1623888 | H163: 620.716096 | I163: 0 | J163: 8953.829685 | K163: 2238.457421 | L163: 11192.28711 | M163: 71.51621154
A164: 75 | B164: 18 | C164: 75/18 | D164: 7568.26 | E164: 302.7304 | F164: 7870.9904 | G164: 582.4532896 | H164: 629.679232 | I164: 0 | J164: 9083.122922 | K164: 2270.78073 | L164: 11353.90365 | M164: 72.54890512
A165: 80 | B165: 0 | C165: 80/0 | D165: 5936 | E165: 237.44 | F165: 6173.44 | G165: 456.83456 | H165: 493.8752 | I165: 0 | J165: 7124.14976 | K165: 1781.03744 | L165: 8905.1872 | M165: 56.90215463
A166: 80 | B166: 1 | C166: 80/1 | D166: 6099.46 | E166: 243.9784 | F166: 6343.4384 | G166: 469.4144416 | H166: 507.475072 | I166: 0 | J166: 7320.327914 | K166: 1830.081978 | L166: 9150.409892 | M166: 58.46907279
A167: 80 | B167: 2 | C167: 80/2 | D167: 6261.7 | E167: 250.468 | F167: 6512.168 | G167: 481.900432 | H167: 520.97344 | I167: 0 | J167: 7515.041872 | K167: 1878.760468 | L167: 9393.80234 | M167: 60.0242961
A168: 80 | B168: 3 | C168: 80/3 | D168: 6342.79 | E168: 253.7116 | F168: 6596.5016 | G168: 488.1411184 | H168: 527.720128 | I168: 0 | J168: 7612.362846 | K168: 1903.090712 | L168: 9515.453558 | M168: 60.80162018
A169: 80 | B169: 4 | C169: 80/4 | D169: 6425.17 | E169: 257.0068 | F169: 6682.1768 | G169: 494.4810832 | H169: 534.574144 | I169: 0 | J169: 7711.232027 | K169: 1927.808007 | L169: 9639.040034 | M169: 61.59131012
A170: 80 | B170: 5 | C170: 80/5 | D170: 6505 | E170: 260.2 | F170: 6765.2 | G170: 500.6248 | H170: 541.216 | I170: 0 | J170: 7807.0408 | K170: 1951.7602 | L170: 9758.801 | M170: 62.35655591
A171: 80 | B171: 6 | C171: 80/6 | D171: 6776.2 | E171: 271.048 | F171: 7047.248 | G171: 521.496352 | H171: 563.77984 | I171: 0 | J171: 8132.524192 | K171: 2033.131048 | L171: 10165.65524 | M171: 64.95626351
A172: 80 | B172: 7 | C172: 80/7 | D172: 7048.67 | E172: 281.9468 | F172: 7330.6168 | G172: 542.4656432 | H172: 586.449344 | I172: 0 | J172: 8459.531787 | K172: 2114.882947 | L172: 10574.41473 | M172: 67.56814527
A173: 80 | B173: 8 | C173: 80/8 | D173: 7355.37 | E173: 294.2148 | F173: 7649.5848 | G173: 566.0692752 | H173: 611.966784 | I173: 0 | J173: 8827.620859 | K173: 2206.905215 | L173: 11034.52607 | M173: 70.50815383
A174: 80 | B174: 9 | C174: 80/9 | D174: 7568.26 | E174: 302.7304 | F174: 7870.9904 | G174: 582.4532896 | H174: 629.679232 | I174: 0 | J174: 9083.122922 | K174: 2270.78073 | L174: 11353.90365 | M174: 72.54890512
A175: 80 | B175: 10 | C175: 80/10 | D175: 7778.63 | E175: 311.1452 | F175: 8089.7752 | G175: 598.6433648 | H175: 647.182016 | I175: 0 | J175: 9335.600581 | K175: 2333.900145 | L175: 11669.50073 | M175: 74.56549985
A176: 80 | B176: 11 | C176: 80/11 | D176: 7991.54 | E176: 319.6616 | F176: 8311.2016 | G176: 615.0289184 | H176: 664.896128 | I176: 0 | J176: 9591.126646 | K176: 2397.781662 | L176: 11988.90831 | M176: 76.60644286
A177: 80 | B177: 12 | C177: 80/12 | D177: 8207.01 | E177: 328.2804 | F177: 8535.2904 | G177: 631.6114896 | H177: 682.823232 | I177: 0 | J177: 9849.725122 | K177: 2462.43128 | L177: 12312.1564 | M177: 78.67192589
A178: 80 | B178: 13 | C178: 80/13 | D178: 8313.45 | E178: 332.538 | F178: 8645.988 | G178: 639.803112 | H178: 691.67904 | I178: 0 | J178: 9977.470152 | K178: 2494.367538 | L178: 12471.83769 | M178: 79.69225361
A179: 80 | B179: 14 | C179: 80/14 | D179: 8421.17 | E179: 336.8468 | F179: 8758.0168 | G179: 648.0932432 | H179: 700.641344 | I179: 0 | J179: 10106.75139 | K179: 2526.687847 | L179: 12633.43923 | M179: 80.72485134
A180: 80 | B180: 15 | C180: 80/15 | D180: 8527.61 | E180: 341.1044 | F180: 8868.7144 | G180: 656.2848656 | H180: 709.497152 | I180: 0 | J180: 10234.49642 | K180: 2558.624104 | L180: 12793.12052 | M180: 81.74517905
A181: 80 | B181: 16 | C181: 80/16 | D181: 8634.06 | E181: 345.3624 | F181: 8979.4224 | G181: 664.4772576 | H181: 718.353792 | I181: 0 | J181: 10362.25345 | K181: 2590.563362 | L181: 12952.81681 | M181: 82.76560263
A182: 80 | B182: 17 | C182: 80/17 | D182: 8743.02 | E182: 349.7208 | F182: 9092.7408 | G182: 672.8628192 | H182: 727.419264 | I182: 0 | J182: 10493.02288 | K182: 2623.255721 | L182: 13116.2786 | M182: 83.81008693
A183: 80 | B183: 18 | C183: 80/18 | D183: 8849.49 | E183: 353.9796 | F183: 9203.4696 | G183: 681.0567504 | H183: 736.277568 | I183: 0 | J183: 10620.80392 | K183: 2655.20098 | L183: 13276.0049 | M183: 84.83070222

Sheet Data CAO GGZ 2019 (verbergen) (hidden)
A1: Cao GGZ schalen per 1-1-2019
E2: 0 | G2: 0.0833 | H2: 0.08 | I2: 0.0175 | K2: =17%+8% -> 0.25 | M2: =1878/12 -> 156.5
A3: Funct.schaal | B3: Trede | C3: Samengesteld | D3: Salaris | E3: Verhoging | F3: Nieuw salaris | G3: EJU | H3: Vak toeslag | I3: LFB | J3: Brutoloon | K3: Soc.lasten + pens.pr. | L3: Tot incl soc lst + pens.pr. | M3: Uurloon
A4: 10 | B4: 0 | C4: =CONCATENATE(A4,"/",B4) -> 10/0 | D4: 1571 | E4: =D4*$E$2 -> 0 | F4: =D4+E4 -> 1571 | G4: =F4*$G$2 -> 130.8643 | H4: =F4*$H$2 -> 125.68 | I4: =D4*$I$2 -> 27.4925 | J4: =SUM(F4:I4) -> 1855.0368 | K4: =J4*$K$2 -> 463.7592 | L4: =SUM(J4:K4) -> 2318.796 | M4: =L4/$M$2 -> 14.81658786
A5: 10 | B5: 1 | C5: 10/1 | D5: 1629 | E5: 0 | F5: 1629 | G5: 135.6957 | H5: 130.32 | I5: 28.5075 | J5: 1923.5232 | K5: 480.8808 | L5: 2404.404 | M5: 15.36360383
A6: 10 | B6: 2 | C6: 10/2 | D6: 1660 | E6: 0 | F6: 1660 | G6: 138.278 | H6: 132.8 | I6: 29.05 | J6: 1960.128 | K6: 490.032 | L6: 2450.16 | M6: 15.65597444
A7: 10 | B7: 3 | C7: 10/3 | D7: 1704 | E7: 0 | F7: 1704 | G7: 141.9432 | H7: 136.32 | I7: 29.82 | J7: 2012.0832 | K7: 503.0208 | L7: 2515.104 | M7: 16.07095208
A8: 10 | B8: 4 | C8: 10/4 | D8: 1748 | E8: 0 | F8: 1748 | G8: 145.6084 | H8: 139.84 | I8: 30.59 | J8: 2064.0384 | K8: 516.0096 | L8: 2580.048 | M8: 16.48592971
A9: 10 | B9: 5 | C9: 10/5 | D9: 1793 | E9: 0 | F9: 1793 | G9: 149.3569 | H9: 143.44 | I9: 31.3775 | J9: 2117.1744 | K9: 529.2936 | L9: 2646.468 | M9: 16.91033866
A10: 10 | B10: 6 | C10: 10/6 | D10: 1843 | E10: 0 | F10: 1843 | G10: 153.5219 | H10: 147.44 | I10: 32.2525 | J10: 2176.2144 | K10: 544.0536 | L10: 2720.268 | M10: 17.38190415
A11: 10 | B11: 7 | C11: 10/7 | D11: 1899 | E11: 0 | F11: 1899 | G11: 158.1867 | H11: 151.92 | I11: 33.2325 | J11: 2242.3392 | K11: 560.5848 | L11: 2802.924 | M11: 17.91005751
A12: 10 | B12: 8 | C12: 10/8 | D12: 1958 | E12: 0 | F12: 1958 | G12: 163.1014 | H12: 156.64 | I12: 34.265 | J12: 2312.0064 | K12: 578.0016 | L12: 2890.008 | M12: 18.46650479
A13: 15 | B13: 0 | C13: 15/0 | D13: 1629 | E13: 0 | F13: 1629 | G13: 135.6957 | H13: 130.32 | I13: 28.5075 | J13: 1923.5232 | K13: 480.8808 | L13: 2404.404 | M13: 15.36360383
A14: 15 | B14: 1 | C14: 15/1 | D14: 1660 | E14: 0 | F14: 1660 | G14: 138.278 | H14: 132.8 | I14: 29.05 | J14: 1960.128 | K14: 490.032 | L14: 2450.16 | M14: 15.65597444
A15: 15 | B15: 2 | C15: 15/2 | D15: 1704 | E15: 0 | F15: 1704 | G15: 141.9432 | H15: 136.32 | I15: 29.82 | J15: 2012.0832 | K15: 503.0208 | L15: 2515.104 | M15: 16.07095208
A16: 15 | B16: 3 | C16: 15/3 | D16: 1748 | E16: 0 | F16: 1748 | G16: 145.6084 | H16: 139.84 | I16: 30.59 | J16: 2064.0384 | K16: 516.0096 | L16: 2580.048 | M16: 16.48592971
A17: 15 | B17: 4 | C17: 15/4 | D17: 1793 | E17: 0 | F17: 1793 | G17: 149.3569 | H17: 143.44 | I17: 31.3775 | J17: 2117.1744 | K17: 529.2936 | L17: 2646.468 | M17: 16.91033866
A18: 15 | B18: 5 | C18: 15/5 | D18: 1843 | E18: 0 | F18: 1843 | G18: 153.5219 | H18: 147.44 | I18: 32.2525 | J18: 2176.2144 | K18: 544.0536 | L18: 2720.268 | M18: 17.38190415
A19: 15 | B19: 6 | C19: 15/6 | D19: 1899 | E19: 0 | F19: 1899 | G19: 158.1867 | H19: 151.92 | I19: 33.2325 | J19: 2242.3392 | K19: 560.5848 | L19: 2802.924 | M19: 17.91005751
A20: 15 | B20: 7 | C20: 15/7 | D20: 1958 | E20: 0 | F20: 1958 | G20: 163.1014 | H20: 156.64 | I20: 34.265 | J20: 2312.0064 | K20: 578.0016 | L20: 2890.008 | M20: 18.46650479
A21: 15 | B21: 8 | C21: 15/8 | D21: 2024 | E21: 0 | F21: 2024 | G21: 168.5992 | H21: 161.92 | I21: 35.42 | J21: 2389.9392 | K21: 597.4848 | L21: 2987.424 | M21: 19.08897125
A22: 15 | B22: 9 | C22: 15/9 | D22: 2091 | E22: 0 | F22: 2091 | G22: 174.1803 | H22: 167.28 | I22: 36.5925 | J22: 2469.0528 | K22: 617.2632 | L22: 3086.316 | M22: 19.72086901
A23: 20 | B23: 0 | C23: 20/0 | D23: 1660 | E23: 0 | F23: 1660 | G23: 138.278 | H23: 132.8 | I23: 29.05 | J23: 1960.128 | K23: 490.032 | L23: 2450.16 | M23: 15.65597444
A24: 20 | B24: 1 | C24: 20/1 | D24: 1704 | E24: 0 | F24: 1704 | G24: 141.9432 | H24: 136.32 | I24: 29.82 | J24: 2012.0832 | K24: 503.0208 | L24: 2515.104 | M24: 16.07095208
A25: 20 | B25: 2 | C25: 20/2 | D25: 1748 | E25: 0 | F25: 1748 | G25: 145.6084 | H25: 139.84 | I25: 30.59 | J25: 2064.0384 | K25: 516.0096 | L25: 2580.048 | M25: 16.48592971
A26: 20 | B26: 3 | C26: 20/3 | D26: 1793 | E26: 0 | F26: 1793 | G26: 149.3569 | H26: 143.44 | I26: 31.3775 | J26: 2117.1744 | K26: 529.2936 | L26: 2646.468 | M26: 16.91033866
A27: 20 | B27: 4 | C27: 20/4 | D27: 1843 | E27: 0 | F27: 1843 | G27: 153.5219 | H27: 147.44 | I27: 32.2525 | J27: 2176.2144 | K27: 544.0536 | L27: 2720.268 | M27: 17.38190415
A28: 20 | B28: 5 | C28: 20/5 | D28: 1899 | E28: 0 | F28: 1899 | G28: 158.1867 | H28: 151.92 | I28: 33.2325 | J28: 2242.3392 | K28: 560.5848 | L28: 2802.924 | M28: 17.91005751
A29: 20 | B29: 6 | C29: 20/6 | D29: 1958 | E29: 0 | F29: 1958 | G29: 163.1014 | H29: 156.64 | I29: 34.265 | J29: 2312.0064 | K29: 578.0016 | L29: 2890.008 | M29: 18.46650479
A30: 20 | B30: 7 | C30: 20/7 | D30: 2024 | E30: 0 | F30: 2024 | G30: 168.5992 | H30: 161.92 | I30: 35.42 | J30: 2389.9392 | K30: 597.4848 | L30: 2987.424 | M30: 19.08897125
A31: 20 | B31: 8 | C31: 20/8 | D31: 2091 | E31: 0 | F31: 2091 | G31: 174.1803 | H31: 167.28 | I31: 36.5925 | J31: 2469.0528 | K31: 617.2632 | L31: 3086.316 | M31: 19.72086901
A32: 20 | B32: 9 | C32: 20/9 | D32: 2152 | E32: 0 | F32: 2152 | G32: 179.2616 | H32: 172.16 | I32: 37.66 | J32: 2541.0816 | K32: 635.2704 | L32: 3176.352 | M32: 20.29617891
A33: 20 | B33: 10 | C33: 20/10 | D33: 2222 | E33: 0 | F33: 2222 | G33: 185.0926 | H33: 177.76 | I33: 38.885 | J33: 2623.7376 | K33: 655.9344 | L33: 3279.672 | M33: 20.95637061
A34: 25 | B34: 0 | C34: 25/0 | D34: 1704 | E34: 0 | F34: 1704 | G34: 141.9432 | H34: 136.32 | I34: 29.82 | J34: 2012.0832 | K34: 503.0208 | L34: 2515.104 | M34: 16.07095208
A35: 25 | B35: 1 | C35: 25/1 | D35: 1793 | E35: 0 | F35: 1793 | G35: 149.3569 | H35: 143.44 | I35: 31.3775 | J35: 2117.1744 | K35: 529.2936 | L35: 2646.468 | M35: 16.91033866
A36: 25 | B36: 2 | C36: 25/2 | D36: 1843 | E36: 0 | F36: 1843 | G36: 153.5219 | H36: 147.44 | I36: 32.2525 | J36: 2176.2144 | K36: 544.0536 | L36: 2720.268 | M36: 17.38190415
A37: 25 | B37: 3 | C37: 25/3 | D37: 1899 | E37: 0 | F37: 1899 | G37: 158.1867 | H37: 151.92 | I37: 33.2325 | J37: 2242.3392 | K37: 560.5848 | L37: 2802.924 | M37: 17.91005751
A38: 25 | B38: 4 | C38: 25/4 | D38: 1958 | E38: 0 | F38: 1958 | G38: 163.1014 | H38: 156.64 | I38: 34.265 | J38: 2312.0064 | K38: 578.0016 | L38: 2890.008 | M38: 18.46650479
A39: 25 | B39: 5 | C39: 25/5 | D39: 2024 | E39: 0 | F39: 2024 | G39: 168.5992 | H39: 161.92 | I39: 35.42 | J39: 2389.9392 | K39: 597.4848 | L39: 2987.424 | M39: 19.08897125
A40: 25 | B40: 6 | C40: 25/6 | D40: 2091 | E40: 0 | F40: 2091 | G40: 174.1803 | H40: 167.28 | I40: 36.5925 | J40: 2469.0528 | K40: 617.2632 | L40: 3086.316 | M40: 19.72086901
A41: 25 | B41: 7 | C41: 25/7 | D41: 2152 | E41: 0 | F41: 2152 | G41: 179.2616 | H41: 172.16 | I41: 37.66 | J41: 2541.0816 | K41: 635.2704 | L41: 3176.352 | M41: 20.29617891
A42: 25 | B42: 8 | C42: 25/8 | D42: 2222 | E42: 0 | F42: 2222 | G42: 185.0926 | H42: 177.76 | I42: 38.885 | J42: 2623.7376 | K42: 655.9344 | L42: 3279.672 | M42: 20.95637061
A43: 25 | B43: 9 | C43: 25/9 | D43: 2278 | E43: 0 | F43: 2278 | G43: 189.7574 | H43: 182.24 | I43: 39.865 | J43: 2689.8624 | K43: 672.4656 | L43: 3362.328 | M43: 21.48452396
A44: 25 | B44: 10 | C44: 25/10 | D44: 2345 | E44: 0 | F44: 2345 | G44: 195.3385 | H44: 187.6 | I44: 41.0375 | J44: 2768.976 | K44: 692.244 | L44: 3461.22 | M44: 22.11642173
A45: 30 | B45: 0 | C45: 30/0 | D45: 1748 | E45: 0 | F45: 1748 | G45: 145.6084 | H45: 139.84 | I45: 30.59 | J45: 2064.0384 | K45: 516.0096 | L45: 2580.048 | M45: 16.48592971
A46: 30 | B46: 1 | C46: 30/1 | D46: 1843 | E46: 0 | F46: 1843 | G46: 153.5219 | H46: 147.44 | I46: 32.2525 | J46: 2176.2144 | K46: 544.0536 | L46: 2720.268 | M46: 17.38190415
A47: 30 | B47: 2 | C47: 30/2 | D47: 1958 | E47: 0 | F47: 1958 | G47: 163.1014 | H47: 156.64 | I47: 34.265 | J47: 2312.0064 | K47: 578.0016 | L47: 2890.008 | M47: 18.46650479
A48: 30 | B48: 3 | C48: 30/3 | D48: 2024 | E48: 0 | F48: 2024 | G48: 168.5992 | H48: 161.92 | I48: 35.42 | J48: 2389.9392 | K48: 597.4848 | L48: 2987.424 | M48: 19.08897125
A49: 30 | B49: 4 | C49: 30/4 | D49: 2091 | E49: 0 | F49: 2091 | G49: 174.1803 | H49: 167.28 | I49: 36.5925 | J49: 2469.0528 | K49: 617.2632 | L49: 3086.316 | M49: 19.72086901
A50: 30 | B50: 5 | C50: 30/5 | D50: 2152 | E50: 0 | F50: 2152 | G50: 179.2616 | H50: 172.16 | I50: 37.66 | J50: 2541.0816 | K50: 635.2704 | L50: 3176.352 | M50: 20.29617891
A51: 30 | B51: 6 | C51: 30/6 | D51: 2222 | E51: 0 | F51: 2222 | G51: 185.0926 | H51: 177.76 | I51: 38.885 | J51: 2623.7376 | K51: 655.9344 | L51: 3279.672 | M51: 20.95637061
A52: 30 | B52: 7 | C52: 30/7 | D52: 2278 | E52: 0 | F52: 2278 | G52: 189.7574 | H52: 182.24 | I52: 39.865 | J52: 2689.8624 | K52: 672.4656 | L52: 3362.328 | M52: 21.48452396
A53: 30 | B53: 8 | C53: 30/8 | D53: 2345 | E53: 0 | F53: 2345 | G53: 195.3385 | H53: 187.6 | I53: 41.0375 | J53: 2768.976 | K53: 692.244 | L53: 3461.22 | M53: 22.11642173
A54: 30 | B54: 9 | C54: 30/9 | D54: 2407 | E54: 0 | F54: 2407 | G54: 200.5031 | H54: 192.56 | I54: 42.1225 | J54: 2842.1856 | K54: 710.5464 | L54: 3552.732 | M54: 22.70116294
A55: 30 | B55: 10 | C55: 30/10 | D55: 2471 | E55: 0 | F55: 2471 | G55: 205.8343 | H55: 197.68 | I55: 43.2425 | J55: 2917.7568 | K55: 729.4392 | L55: 3647.196 | M55: 23.30476677
A56: 35 | B56: 0 | C56: 35/0 | D56: 1843 | E56: 0 | F56: 1843 | G56: 153.5219 | H56: 147.44 | I56: 32.2525 | J56: 2176.2144 | K56: 544.0536 | L56: 2720.268 | M56: 17.38190415
A57: 35 | B57: 1 | C57: 35/1 | D57: 1958 | E57: 0 | F57: 1958 | G57: 163.1014 | H57: 156.64 | I57: 34.265 | J57: 2312.0064 | K57: 578.0016 | L57: 2890.008 | M57: 18.46650479
A58: 35 | B58: 2 | C58: 35/2 | D58: 2091 | E58: 0 | F58: 2091 | G58: 174.1803 | H58: 167.28 | I58: 36.5925 | J58: 2469.0528 | K58: 617.2632 | L58: 3086.316 | M58: 19.72086901
A59: 35 | B59: 3 | C59: 35/3 | D59: 2152 | E59: 0 | F59: 2152 | G59: 179.2616 | H59: 172.16 | I59: 37.66 | J59: 2541.0816 | K59: 635.2704 | L59: 3176.352 | M59: 20.29617891
A60: 35 | B60: 4 | C60: 35/4 | D60: 2222 | E60: 0 | F60: 2222 | G60: 185.0926 | H60: 177.76 | I60: 38.885 | J60: 2623.7376 | K60: 655.9344 | L60: 3279.672 | M60: 20.95637061
A61: 35 | B61: 5 | C61: 35/5 | D61: 2278 | E61: 0 | F61: 2278 | G61: 189.7574 | H61: 182.24 | I61: 39.865 | J61: 2689.8624 | K61: 672.4656 | L61: 3362.328 | M61: 21.48452396
A62: 35 | B62: 6 | C62: 35/6 | D62: 2345 | E62: 0 | F62: 2345 | G62: 195.3385 | H62: 187.6 | I62: 41.0375 | J62: 2768.976 | K62: 692.244 | L62: 3461.22 | M62: 22.11642173
A63: 35 | B63: 7 | C63: 35/7 | D63: 2407 | E63: 0 | F63: 2407 | G63: 200.5031 | H63: 192.56 | I63: 42.1225 | J63: 2842.1856 | K63: 710.5464 | L63: 3552.732 | M63: 22.70116294
A64: 35 | B64: 8 | C64: 35/8 | D64: 2471 | E64: 0 | F64: 2471 | G64: 205.8343 | H64: 197.68 | I64: 43.2425 | J64: 2917.7568 | K64: 729.4392 | L64: 3647.196 | M64: 23.30476677
A65: 35 | B65: 9 | C65: 35/9 | D65: 2535 | E65: 0 | F65: 2535 | G65: 211.1655 | H65: 202.8 | I65: 44.3625 | J65: 2993.328 | K65: 748.332 | L65: 3741.66 | M65: 23.90837061
A66: 35 | B66: 10 | C66: 35/10 | D66: 2599 | E66: 0 | F66: 2599 | G66: 216.4967 | H66: 207.92 | I66: 45.4825 | J66: 3068.8992 | K66: 767.2248 | L66: 3836.124 | M66: 24.51197444
A67: 40 | B67: 0 | C67: 40/0 | D67: 1958 | E67: 0 | F67: 1958 | G67: 163.1014 | H67: 156.64 | I67: 34.265 | J67: 2312.0064 | K67: 578.0016 | L67: 2890.008 | M67: 18.46650479
A68: 40 | B68: 1 | C68: 40/1 | D68: 2091 | E68: 0 | F68: 2091 | G68: 174.1803 | H68: 167.28 | I68: 36.5925 | J68: 2469.0528 | K68: 617.2632 | L68: 3086.316 | M68: 19.72086901
A69: 40 | B69: 2 | C69: 40/2 | D69: 2222 | E69: 0 | F69: 2222 | G69: 185.0926 | H69: 177.76 | I69: 38.885 | J69: 2623.7376 | K69: 655.9344 | L69: 3279.672 | M69: 20.95637061
A70: 40 | B70: 3 | C70: 40/3 | D70: 2278 | E70: 0 | F70: 2278 | G70: 189.7574 | H70: 182.24 | I70: 39.865 | J70: 2689.8624 | K70: 672.4656 | L70: 3362.328 | M70: 21.48452396
A71: 40 | B71: 4 | C71: 40/4 | D71: 2345 | E71: 0 | F71: 2345 | G71: 195.3385 | H71: 187.6 | I71: 41.0375 | J71: 2768.976 | K71: 692.244 | L71: 3461.22 | M71: 22.11642173
A72: 40 | B72: 5 | C72: 40/5 | D72: 2407 | E72: 0 | F72: 2407 | G72: 200.5031 | H72: 192.56 | I72: 42.1225 | J72: 2842.1856 | K72: 710.5464 | L72: 3552.732 | M72: 22.70116294
A73: 40 | B73: 6 | C73: 40/6 | D73: 2471 | E73: 0 | F73: 2471 | G73: 205.8343 | H73: 197.68 | I73: 43.2425 | J73: 2917.7568 | K73: 729.4392 | L73: 3647.196 | M73: 23.30476677
A74: 40 | B74: 7 | C74: 40/7 | D74: 2535 | E74: 0 | F74: 2535 | G74: 211.1655 | H74: 202.8 | I74: 44.3625 | J74: 2993.328 | K74: 748.332 | L74: 3741.66 | M74: 23.90837061
A75: 40 | B75: 8 | C75: 40/8 | D75: 2599 | E75: 0 | F75: 2599 | G75: 216.4967 | H75: 207.92 | I75: 45.4825 | J75: 3068.8992 | K75: 767.2248 | L75: 3836.124 | M75: 24.51197444
A76: 40 | B76: 9 | C76: 40/9 | D76: 2663 | E76: 0 | F76: 2663 | G76: 221.8279 | H76: 213.04 | I76: 46.6025 | J76: 3144.4704 | K76: 786.1176 | L76: 3930.588 | M76: 25.11557827
A77: 40 | B77: 10 | C77: 40/10 | D77: 2727 | E77: 0 | F77: 2727 | G77: 227.1591 | H77: 218.16 | I77: 47.7225 | J77: 3220.0416 | K77: 805.0104 | L77: 4025.052 | M77: 25.71918211
A78: 40 | B78: 11 | C78: 40/11 | D78: 2793 | E78: 0 | F78: 2793 | G78: 232.6569 | H78: 223.44 | I78: 48.8775 | J78: 3297.9744 | K78: 824.4936 | L78: 4122.468 | M78: 26.34164856
A79: 40 | B79: 12 | C79: 40/12 | D79: 2863 | E79: 0 | F79: 2863 | G79: 238.4879 | H79: 229.04 | I79: 50.1025 | J79: 3380.6304 | K79: 845.1576 | L79: 4225.788 | M79: 27.00184026
A80: 45 | B80: 0 | C80: 45/0 | D80: 2222 | E80: 0 | F80: 2222 | G80: 185.0926 | H80: 177.76 | I80: 38.885 | J80: 2623.7376 | K80: 655.9344 | L80: 3279.672 | M80: 20.95637061
A81: 45 | B81: 1 | C81: 45/1 | D81: 2345 | E81: 0 | F81: 2345 | G81: 195.3385 | H81: 187.6 | I81: 41.0375 | J81: 2768.976 | K81: 692.244 | L81: 3461.22 | M81: 22.11642173
A82: 45 | B82: 2 | C82: 45/2 | D82: 2471 | E82: 0 | F82: 2471 | G82: 205.8343 | H82: 197.68 | I82: 43.2425 | J82: 2917.7568 | K82: 729.4392 | L82: 3647.196 | M82: 23.30476677
A83: 45 | B83: 3 | C83: 45/3 | D83: 2535 | E83: 0 | F83: 2535 | G83: 211.1655 | H83: 202.8 | I83: 44.3625 | J83: 2993.328 | K83: 748.332 | L83: 3741.66 | M83: 23.90837061
A84: 45 | B84: 4 | C84: 45/4 | D84: 2599 | E84: 0 | F84: 2599 | G84: 216.4967 | H84: 207.92 | I84: 45.4825 | J84: 3068.8992 | K84: 767.2248 | L84: 3836.124 | M84: 24.51197444
A85: 45 | B85: 5 | C85: 45/5 | D85: 2663 | E85: 0 | F85: 2663 | G85: 221.8279 | H85: 213.04 | I85: 46.6025 | J85: 3144.4704 | K85: 786.1176 | L85: 3930.588 | M85: 25.11557827
A86: 45 | B86: 6 | C86: 45/6 | D86: 2727 | E86: 0 | F86: 2727 | G86: 227.1591 | H86: 218.16 | I86: 47.7225 | J86: 3220.0416 | K86: 805.0104 | L86: 4025.052 | M86: 25.71918211
A87: 45 | B87: 7 | C87: 45/7 | D87: 2793 | E87: 0 | F87: 2793 | G87: 232.6569 | H87: 223.44 | I87: 48.8775 | J87: 3297.9744 | K87: 824.4936 | L87: 4122.468 | M87: 26.34164856
A88: 45 | B88: 8 | C88: 45/8 | D88: 2863 | E88: 0 | F88: 2863 | G88: 238.4879 | H88: 229.04 | I88: 50.1025 | J88: 3380.6304 | K88: 845.1576 | L88: 4225.788 | M88: 27.00184026
A89: 45 | B89: 9 | C89: 45/9 | D89: 2934 | E89: 0 | F89: 2934 | G89: 244.4022 | H89: 234.72 | I89: 51.345 | J89: 3464.4672 | K89: 866.1168 | L89: 4330.584 | M89: 27.67146326
A90: 45 | B90: 10 | C90: 45/10 | D90: 2996 | E90: 0 | F90: 2996 | G90: 249.5668 | H90: 239.68 | I90: 52.43 | J90: 3537.6768 | K90: 884.4192 | L90: 4422.096 | M90: 28.25620447
A91: 45 | B91: 11 | C91: 45/11 | D91: 3066 | E91: 0 | F91: 3066 | G91: 255.3978 | H91: 245.28 | I91: 53.655 | J91: 3620.3328 | K91: 905.0832 | L91: 4525.416 | M91: 28.91639617
A92: 45 | B92: 12 | C92: 45/12 | D92: 3135 | E92: 0 | F92: 3135 | G92: 261.1455 | H92: 250.8 | I92: 54.8625 | J92: 3701.808 | K92: 925.452 | L92: 4627.26 | M92: 29.56715655
A93: 50 | B93: 0 | C93: 50/0 | D93: 2535 | E93: 0 | F93: 2535 | G93: 211.1655 | H93: 202.8 | I93: 44.3625 | J93: 2993.328 | K93: 748.332 | L93: 3741.66 | M93: 23.90837061
A94: 50 | B94: 1 | C94: 50/1 | D94: 2663 | E94: 0 | F94: 2663 | G94: 221.8279 | H94: 213.04 | I94: 46.6025 | J94: 3144.4704 | K94: 786.1176 | L94: 3930.588 | M94: 25.11557827
A95: 50 | B95: 2 | C95: 50/2 | D95: 2793 | E95: 0 | F95: 2793 | G95: 232.6569 | H95: 223.44 | I95: 48.8775 | J95: 3297.9744 | K95: 824.4936 | L95: 4122.468 | M95: 26.34164856
A96: 50 | B96: 3 | C96: 50/3 | D96: 2934 | E96: 0 | F96: 2934 | G96: 244.4022 | H96: 234.72 | I96: 51.345 | J96: 3464.4672 | K96: 866.1168 | L96: 4330.584 | M96: 27.67146326
A97: 50 | B97: 4 | C97: 50/4 | D97: 2996 | E97: 0 | F97: 2996 | G97: 249.5668 | H97: 239.68 | I97: 52.43 | J97: 3537.6768 | K97: 884.4192 | L97: 4422.096 | M97: 28.25620447
A98: 50 | B98: 5 | C98: 50/5 | D98: 3066 | E98: 0 | F98: 3066 | G98: 255.3978 | H98: 245.28 | I98: 53.655 | J98: 3620.3328 | K98: 905.0832 | L98: 4525.416 | M98: 28.91639617
A99: 50 | B99: 6 | C99: 50/6 | D99: 3135 | E99: 0 | F99: 3135 | G99: 261.1455 | H99: 250.8 | I99: 54.8625 | J99: 3701.808 | K99: 925.452 | L99: 4627.26 | M99: 29.56715655
A100: 50 | B100: 7 | C100: 50/7 | D100: 3200 | E100: 0 | F100: 3200 | G100: 266.56 | H100: 256 | I100: 56 | J100: 3778.56 | K100: 944.64 | L100: 4723.2 | M100: 30.18019169
A101: 50 | B101: 8 | C101: 50/8 | D101: 3266 | E101: 0 | F101: 3266 | G101: 272.0578 | H101: 261.28 | I101: 57.155 | J101: 3856.4928 | K101: 964.1232 | L101: 4820.616 | M101: 30.80265815
A102: 50 | B102: 9 | C102: 50/9 | D102: 3334 | E102: 0 | F102: 3334 | G102: 277.7222 | H102: 266.72 | I102: 58.345 | J102: 3936.7872 | K102: 984.1968 | L102: 4920.984 | M102: 31.44398722
A103: 50 | B103: 10 | C103: 50/10 | D103: 3403 | E103: 0 | F103: 3403 | G103: 283.4699 | H103: 272.24 | I103: 59.5525 | J103: 4018.2624 | K103: 1004.5656 | L103: 5022.828 | M103: 32.0947476
A104: 50 | B104: 11 | C104: 50/11 | D104: 3467 | E104: 0 | F104: 3467 | G104: 288.8011 | H104: 277.36 | I104: 60.6725 | J104: 4093.8336 | K104: 1023.4584 | L104: 5117.292 | M104: 32.69835144
A105: 55 | B105: 0 | C105: 55/0 | D105: 2863 | E105: 0 | F105: 2863 | G105: 238.4879 | H105: 229.04 | I105: 50.1025 | J105: 3380.6304 | K105: 845.1576 | L105: 4225.788 | M105: 27.00184026
A106: 55 | B106: 1 | C106: 55/1 | D106: 2996 | E106: 0 | F106: 2996 | G106: 249.5668 | H106: 239.68 | I106: 52.43 | J106: 3537.6768 | K106: 884.4192 | L106: 4422.096 | M106: 28.25620447
A107: 55 | B107: 2 | C107: 55/2 | D107: 3135 | E107: 0 | F107: 3135 | G107: 261.1455 | H107: 250.8 | I107: 54.8625 | J107: 3701.808 | K107: 925.452 | L107: 4627.26 | M107: 29.56715655
A108: 55 | B108: 3 | C108: 55/3 | D108: 3266 | E108: 0 | F108: 3266 | G108: 272.0578 | H108: 261.28 | I108: 57.155 | J108: 3856.4928 | K108: 964.1232 | L108: 4820.616 | M108: 30.80265815
A109: 55 | B109: 4 | C109: 55/4 | D109: 3403 | E109: 0 | F109: 3403 | G109: 283.4699 | H109: 272.24 | I109: 59.5525 | J109: 4018.2624 | K109: 1004.5656 | L109: 5022.828 | M109: 32.0947476
A110: 55 | B110: 5 | C110: 55/5 | D110: 3467 | E110: 0 | F110: 3467 | G110: 288.8011 | H110: 277.36 | I110: 60.6725 | J110: 4093.8336 | K110: 1023.4584 | L110: 5117.292 | M110: 32.69835144
A111: 55 | B111: 6 | C111: 55/6 | D111: 3532 | E111: 0 | F111: 3532 | G111: 294.2156 | H111: 282.56 | I111: 61.81 | J111: 4170.5856 | K111: 1042.6464 | L111: 5213.232 | M111: 33.31138658
A112: 55 | B112: 7 | C112: 55/7 | D112: 3605 | E112: 0 | F112: 3605 | G112: 300.2965 | H112: 288.4 | I112: 63.0875 | J112: 4256.784 | K112: 1064.196 | L112: 5320.98 | M112: 33.9998722
A113: 55 | B113: 8 | C113: 55/8 | D113: 3680 | E113: 0 | F113: 3680 | G113: 306.544 | H113: 294.4 | I113: 64.4 | J113: 4345.344 | K113: 1086.336 | L113: 5431.68 | M113: 34.70722045
A114: 55 | B114: 9 | C114: 55/9 | D114: 3754 | E114: 0 | F114: 3754 | G114: 312.7082 | H114: 300.32 | I114: 65.695 | J114: 4432.7232 | K114: 1108.1808 | L114: 5540.904 | M114: 35.40513738
A115: 55 | B115: 10 | C115: 55/10 | D115: 3820 | E115: 0 | F115: 3820 | G115: 318.206 | H115: 305.6 | I115: 66.85 | J115: 4510.656 | K115: 1127.664 | L115: 5638.32 | M115: 36.02760383
A116: 55 | B116: 11 | C116: 55/11 | D116: 3894 | E116: 0 | F116: 3894 | G116: 324.3702 | H116: 311.52 | I116: 68.145 | J116: 4598.0352 | K116: 1149.5088 | L116: 5747.544 | M116: 36.72552077
A117: 60 | B117: 0 | C117: 60/0 | D117: 3266 | E117: 0 | F117: 3266 | G117: 272.0578 | H117: 261.28 | I117: 57.155 | J117: 3856.4928 | K117: 964.1232 | L117: 4820.616 | M117: 30.80265815
A118: 60 | B118: 1 | C118: 60/1 | D118: 3403 | E118: 0 | F118: 3403 | G118: 283.4699 | H118: 272.24 | I118: 59.5525 | J118: 4018.2624 | K118: 1004.5656 | L118: 5022.828 | M118: 32.0947476
A119: 60 | B119: 2 | C119: 60/2 | D119: 3532 | E119: 0 | F119: 3532 | G119: 294.2156 | H119: 282.56 | I119: 61.81 | J119: 4170.5856 | K119: 1042.6464 | L119: 5213.232 | M119: 33.31138658
A120: 60 | B120: 3 | C120: 60/3 | D120: 3680 | E120: 0 | F120: 3680 | G120: 306.544 | H120: 294.4 | I120: 64.4 | J120: 4345.344 | K120: 1086.336 | L120: 5431.68 | M120: 34.70722045
A121: 60 | B121: 4 | C121: 60/4 | D121: 3820 | E121: 0 | F121: 3820 | G121: 318.206 | H121: 305.6 | I121: 66.85 | J121: 4510.656 | K121: 1127.664 | L121: 5638.32 | M121: 36.02760383
A122: 60 | B122: 5 | C122: 60/5 | D122: 3965 | E122: 0 | F122: 3965 | G122: 330.2845 | H122: 317.2 | I122: 69.3875 | J122: 4681.872 | K122: 1170.468 | L122: 5852.34 | M122: 37.39514377
A123: 60 | B123: 6 | C123: 60/6 | D123: 4104 | E123: 0 | F123: 4104 | G123: 341.8632 | H123: 328.32 | I123: 71.82 | J123: 4846.0032 | K123: 1211.5008 | L123: 6057.504 | M123: 38.70609585
A124: 60 | B124: 7 | C124: 60/7 | D124: 4165 | E124: 0 | F124: 4165 | G124: 346.9445 | H124: 333.2 | I124: 72.8875 | J124: 4918.032 | K124: 1229.508 | L124: 6147.54 | M124: 39.28140575
A125: 60 | B125: 8 | C125: 60/8 | D125: 4228 | E125: 0 | F125: 4228 | G125: 352.1924 | H125: 338.24 | I125: 73.99 | J125: 4992.4224 | K125: 1248.1056 | L125: 6240.528 | M125: 39.87557827
A126: 60 | B126: 9 | C126: 60/9 | D126: 4293 | E126: 0 | F126: 4293 | G126: 357.6069 | H126: 343.44 | I126: 75.1275 | J126: 5069.1744 | K126: 1267.2936 | L126: 6336.468 | M126: 40.48861342
A127: 60 | B127: 10 | C127: 60/10 | D127: 4355 | E127: 0 | F127: 4355 | G127: 362.7715 | H127: 348.4 | I127: 76.2125 | J127: 5142.384 | K127: 1285.596 | L127: 6427.98 | M127: 41.07335463
A128: 65 | B128: 0 | C128: 65/0 | D128: 3820 | E128: 0 | F128: 3820 | G128: 318.206 | H128: 305.6 | I128: 66.85 | J128: 4510.656 | K128: 1127.664 | L128: 5638.32 | M128: 36.02760383
A129: 65 | B129: 1 | C129: 65/1 | D129: 3965 | E129: 0 | F129: 3965 | G129: 330.2845 | H129: 317.2 | I129: 69.3875 | J129: 4681.872 | K129: 1170.468 | L129: 5852.34 | M129: 37.39514377
A130: 65 | B130: 2 | C130: 65/2 | D130: 4104 | E130: 0 | F130: 4104 | G130: 341.8632 | H130: 328.32 | I130: 71.82 | J130: 4846.0032 | K130: 1211.5008 | L130: 6057.504 | M130: 38.70609585
A131: 65 | B131: 3 | C131: 65/3 | D131: 4228 | E131: 0 | F131: 4228 | G131: 352.1924 | H131: 338.24 | I131: 73.99 | J131: 4992.4224 | K131: 1248.1056 | L131: 6240.528 | M131: 39.87557827
A132: 65 | B132: 4 | C132: 65/4 | D132: 4355 | E132: 0 | F132: 4355 | G132: 362.7715 | H132: 348.4 | I132: 76.2125 | J132: 5142.384 | K132: 1285.596 | L132: 6427.98 | M132: 41.07335463
A133: 65 | B133: 5 | C133: 65/5 | D133: 4485 | E133: 0 | F133: 4485 | G133: 373.6005 | H133: 358.8 | I133: 78.4875 | J133: 5295.888 | K133: 1323.972 | L133: 6619.86 | M133: 42.29942492
A134: 65 | B134: 6 | C134: 65/6 | D134: 4613 | E134: 0 | F134: 4613 | G134: 384.2629 | H134: 369.04 | I134: 80.7275 | J134: 5447.0304 | K134: 1361.7576 | L134: 6808.788 | M134: 43.50663259
A135: 65 | B135: 7 | C135: 65/7 | D135: 4741 | E135: 0 | F135: 4741 | G135: 394.9253 | H135: 379.28 | I135: 82.9675 | J135: 5598.1728 | K135: 1399.5432 | L135: 6997.716 | M135: 44.71384026
A136: 65 | B136: 8 | C136: 65/8 | D136: 4871 | E136: 0 | F136: 4871 | G136: 405.7543 | H136: 389.68 | I136: 85.2425 | J136: 5751.6768 | K136: 1437.9192 | L136: 7189.596 | M136: 45.93991054
A137: 65 | B137: 9 | C137: 65/9 | D137: 4933 | E137: 0 | F137: 4933 | G137: 410.9189 | H137: 394.64 | I137: 86.3275 | J137: 5824.8864 | K137: 1456.2216 | L137: 7281.108 | M137: 46.52465176
A138: 65 | B138: 10 | C138: 65/10 | D138: 4997 | E138: 0 | F138: 4997 | G138: 416.2501 | H138: 399.76 | I138: 87.4475 | J138: 5900.4576 | K138: 1475.1144 | L138: 7375.572 | M138: 47.12825559
A139: 65 | B139: 11 | C139: 65/11 | D139: 5063 | E139: 0 | F139: 5063 | G139: 421.7479 | H139: 405.04 | I139: 88.6025 | J139: 5978.3904 | K139: 1494.5976 | L139: 7472.988 | M139: 47.75072204
A140: 65 | B140: 12 | C140: 65/12 | D140: 5126 | E140: 0 | F140: 5126 | G140: 426.9958 | H140: 410.08 | I140: 89.705 | J140: 6052.7808 | K140: 1513.1952 | L140: 7565.976 | M140: 48.34489457
A141: 70 | B141: 0 | C141: 70/0 | D141: 4485 | E141: 0 | F141: 4485 | G141: 373.6005 | H141: 358.8 | I141: 78.4875 | J141: 5295.888 | K141: 1323.972 | L141: 6619.86 | M141: 42.29942492
A142: 70 | B142: 1 | C142: 70/1 | D142: 4679 | E142: 0 | F142: 4679 | G142: 389.7607 | H142: 374.32 | I142: 81.8825 | J142: 5524.9632 | K142: 1381.2408 | L142: 6906.204 | M142: 44.12909904
A143: 70 | B143: 2 | C143: 70/2 | D143: 4871 | E143: 0 | F143: 4871 | G143: 405.7543 | H143: 389.68 | I143: 85.2425 | J143: 5751.6768 | K143: 1437.9192 | L143: 7189.596 | M143: 45.93991054
A144: 70 | B144: 3 | C144: 70/3 | D144: 5063 | E144: 0 | F144: 5063 | G144: 421.7479 | H144: 405.04 | I144: 88.6025 | J144: 5978.3904 | K144: 1494.5976 | L144: 7472.988 | M144: 47.75072204
A145: 70 | B145: 4 | C145: 70/4 | D145: 5255 | E145: 0 | F145: 5255 | G145: 437.7415 | H145: 420.4 | I145: 91.9625 | J145: 6205.104 | K145: 1551.276 | L145: 7756.38 | M145: 49.56153355
A146: 70 | B146: 5 | C146: 70/5 | D146: 5384 | E146: 0 | F146: 5384 | G146: 448.4872 | H146: 430.72 | I146: 94.22 | J146: 6357.4272 | K146: 1589.3568 | L146: 7946.784 | M146: 50.77817252
A147: 70 | B147: 6 | C147: 70/6 | D147: 5544 | E147: 0 | F147: 5544 | G147: 461.8152 | H147: 443.52 | I147: 97.02 | J147: 6546.3552 | K147: 1636.5888 | L147: 8182.944 | M147: 52.28718211
A148: 70 | B148: 7 | C148: 70/7 | D148: 5705 | E148: 0 | F148: 5705 | G148: 475.2265 | H148: 456.4 | I148: 99.8375 | J148: 6736.464 | K148: 1684.116 | L148: 8420.58 | M148: 53.805623
A149: 70 | B149: 8 | C149: 70/8 | D149: 5865 | E149: 0 | F149: 5865 | G149: 488.5545 | H149: 469.2 | I149: 102.6375 | J149: 6925.392 | K149: 1731.348 | L149: 8656.74 | M149: 55.31463259
A150: 70 | B150: 9 | C150: 70/9 | D150: 5945 | E150: 0 | F150: 5945 | G150: 495.2185 | H150: 475.6 | I150: 104.0375 | J150: 7019.856 | K150: 1754.964 | L150: 8774.82 | M150: 56.06913738
A151: 70 | B151: 10 | C151: 70/10 | D151: 6027 | E151: 0 | F151: 6027 | G151: 502.0491 | H151: 482.16 | I151: 105.4725 | J151: 7116.6816 | K151: 1779.1704 | L151: 8895.852 | M151: 56.84250479
A152: 70 | B152: 11 | C152: 70/11 | D152: 6107 | E152: 0 | F152: 6107 | G152: 508.7131 | H152: 488.56 | I152: 106.8725 | J152: 7211.1456 | K152: 1802.7864 | L152: 9013.932 | M152: 57.59700958
A153: 70 | B153: 12 | C153: 70/12 | D153: 6188 | E153: 0 | F153: 6188 | G153: 515.4604 | H153: 495.04 | I153: 108.29 | J153: 7306.7904 | K153: 1826.6976 | L153: 9133.488 | M153: 58.36094569
A154: 75 | B154: 0 | C154: 75/0 | D154: 5255 | E154: 0 | F154: 5255 | G154: 437.7415 | H154: 420.4 | I154: 91.9625 | J154: 6205.104 | K154: 1551.276 | L154: 7756.38 | M154: 49.56153355
A155: 75 | B155: 1 | C155: 75/1 | D155: 5463 | E155: 0 | F155: 5463 | G155: 455.0679 | H155: 437.04 | I155: 95.6025 | J155: 6450.7104 | K155: 1612.6776 | L155: 8063.388 | M155: 51.52324601
A156: 75 | B156: 2 | C156: 75/2 | D156: 5705 | E156: 0 | F156: 5705 | G156: 475.2265 | H156: 456.4 | I156: 99.8375 | J156: 6736.464 | K156: 1684.116 | L156: 8420.58 | M156: 53.805623
A157: 75 | B157: 3 | C157: 75/3 | D157: 5945 | E157: 0 | F157: 5945 | G157: 495.2185 | H157: 475.6 | I157: 104.0375 | J157: 7019.856 | K157: 1754.964 | L157: 8774.82 | M157: 56.06913738
A158: 75 | B158: 4 | C158: 75/4 | D158: 6188 | E158: 0 | F158: 6188 | G158: 515.4604 | H158: 495.04 | I158: 108.29 | J158: 7306.7904 | K158: 1826.6976 | L158: 9133.488 | M158: 58.36094569
A159: 75 | B159: 5 | C159: 75/5 | D159: 6349 | E159: 0 | F159: 6349 | G159: 528.8717 | H159: 507.92 | I159: 111.1075 | J159: 7496.8992 | K159: 1874.2248 | L159: 9371.124 | M159: 59.87938658
A160: 75 | B160: 6 | C160: 75/6 | D160: 6518 | E160: 0 | F160: 6518 | G160: 542.9494 | H160: 521.44 | I160: 114.065 | J160: 7696.4544 | K160: 1924.1136 | L160: 9620.568 | M160: 61.47327796
A161: 75 | B161: 7 | C161: 75/7 | D161: 6697 | E161: 0 | F161: 6697 | G161: 557.8601 | H161: 535.76 | I161: 117.1975 | J161: 7907.8176 | K161: 1976.9544 | L161: 9884.772 | M161: 63.16148243
A162: 75 | B162: 8 | C162: 75/8 | D162: 6878 | E162: 0 | F162: 6878 | G162: 572.9374 | H162: 550.24 | I162: 120.365 | J162: 8121.5424 | K162: 2030.3856 | L162: 10151.928 | M162: 64.86854952
A163: 75 | B163: 9 | C163: 75/9 | D163: 6966 | E163: 0 | F163: 6966 | G163: 580.2678 | H163: 557.28 | I163: 121.905 | J163: 8225.4528 | K163: 2056.3632 | L163: 10281.816 | M163: 65.69850479
A164: 75 | B164: 10 | C164: 75/10 | D164: 7057 | E164: 0 | F164: 7057 | G164: 587.8481 | H164: 564.56 | I164: 123.4975 | J164: 8332.9056 | K164: 2083.2264 | L164: 10416.132 | M164: 66.55675399
A165: 75 | B165: 11 | C165: 75/11 | D165: 7162 | E165: 0 | F165: 7162 | G165: 596.5946 | H165: 572.96 | I165: 125.335 | J165: 8456.8896 | K165: 2114.2224 | L165: 10571.112 | M165: 67.54704153
A166: 75 | B166: 12 | C166: 75/12 | D166: 7269 | E166: 0 | F166: 7269 | G166: 605.5077 | H166: 581.52 | I166: 127.2075 | J166: 8583.2352 | K166: 2145.8088 | L166: 10729.044 | M166: 68.55619169
A167: 75 | B167: 13 | C167: 75/13 | D167: 7372 | E167: 0 | F167: 7372 | G167: 614.0876 | H167: 589.76 | I167: 129.01 | J167: 8704.8576 | K167: 2176.2144 | L167: 10881.072 | M167: 69.52761661
A168: 75 | B168: 14 | C168: 75/14 | D168: 7479 | E168: 0 | F168: 7479 | G168: 623.0007 | H168: 598.32 | I168: 130.8825 | J168: 8831.2032 | K168: 2207.8008 | L168: 11039.004 | M168: 70.53676677
A169: 80 | B169: 0 | C169: 80/0 | D169: 6188 | E169: 0 | F169: 6188 | G169: 515.4604 | H169: 495.04 | I169: 108.29 | J169: 7306.7904 | K169: 1826.6976 | L169: 9133.488 | M169: 58.36094569
A170: 80 | B170: 1 | C170: 80/1 | D170: 6429 | E170: 0 | F170: 6429 | G170: 535.5357 | H170: 514.32 | I170: 112.5075 | J170: 7591.3632 | K170: 1897.8408 | L170: 9489.204 | M170: 60.63389137
A171: 80 | B171: 2 | C171: 80/2 | D171: 6697 | E171: 0 | F171: 6697 | G171: 557.8601 | H171: 535.76 | I171: 117.1975 | J171: 7907.8176 | K171: 1976.9544 | L171: 9884.772 | M171: 63.16148243
A172: 80 | B172: 3 | C172: 80/3 | D172: 6966 | E172: 0 | F172: 6966 | G172: 580.2678 | H172: 557.28 | I172: 121.905 | J172: 8225.4528 | K172: 2056.3632 | L172: 10281.816 | M172: 65.69850479
A173: 80 | B173: 4 | C173: 80/4 | D173: 7269 | E173: 0 | F173: 7269 | G173: 605.5077 | H173: 581.52 | I173: 127.2075 | J173: 8583.2352 | K173: 2145.8088 | L173: 10729.044 | M173: 68.55619169
A174: 80 | B174: 5 | C174: 80/5 | D174: 7479 | E174: 0 | F174: 7479 | G174: 623.0007 | H174: 598.32 | I174: 130.8825 | J174: 8831.2032 | K174: 2207.8008 | L174: 11039.004 | M174: 70.53676677
A175: 80 | B175: 6 | C175: 80/6 | D175: 7688 | E175: 0 | F175: 7688 | G175: 640.4104 | H175: 615.04 | I175: 134.54 | J175: 9077.9904 | K175: 2269.4976 | L175: 11347.488 | M175: 72.50791054
A176: 80 | B176: 7 | C176: 80/7 | D176: 7898 | E176: 0 | F176: 7898 | G176: 657.9034 | H176: 631.84 | I176: 138.215 | J176: 9325.9584 | K176: 2331.4896 | L176: 11657.448 | M176: 74.48848562
A177: 80 | B177: 8 | C177: 80/8 | D177: 8110 | E177: 0 | F177: 8110 | G177: 675.563 | H177: 648.8 | I177: 141.925 | J177: 9576.288 | K177: 2394.072 | L177: 11970.36 | M177: 76.48792332
A178: 80 | B178: 9 | C178: 80/9 | D178: 8216 | E178: 0 | F178: 8216 | G178: 684.3928 | H178: 657.28 | I178: 143.78 | J178: 9701.4528 | K178: 2425.3632 | L178: 12126.816 | M178: 77.48764217
A179: 80 | B179: 10 | C179: 80/10 | D179: 8322 | E179: 0 | F179: 8322 | G179: 693.2226 | H179: 665.76 | I179: 145.635 | J179: 9826.6176 | K179: 2456.6544 | L179: 12283.272 | M179: 78.48736102
A180: 80 | B180: 11 | C180: 80/11 | D180: 8428 | E180: 0 | F180: 8428 | G180: 702.0524 | H180: 674.24 | I180: 147.49 | J180: 9951.7824 | K180: 2487.9456 | L180: 12439.728 | M180: 79.48707987
A181: 80 | B181: 12 | C181: 80/12 | D181: 8533 | E181: 0 | F181: 8533 | G181: 710.7989 | H181: 682.64 | I181: 149.3275 | J181: 10075.7664 | K181: 2518.9416 | L181: 12594.708 | M181: 80.47736741
A182: 80 | B182: 13 | C182: 80/13 | D182: 8640 | E182: 0 | F182: 8640 | G182: 719.712 | H182: 691.2 | I182: 151.2 | J182: 10202.112 | K182: 2550.528 | L182: 12752.64 | M182: 81.48651757
A183: 80 | B183: 14 | C183: 80/14 | D183: 8745 | E183: 0 | F183: 8745 | G183: 728.4585 | H183: 699.6 | I183: 153.0375 | J183: 10326.096 | K183: 2581.524 | L183: 12907.62 | M183: 82.47680511
